Workbook

Sheet Main
A1: Retinoids and reproduction (female) | G1: PubMed query used: (retinoid OR retinoic OR Vitamin A) AND ((reproduction AND female) OR breast OR Genitalia, Female[mh] OR uterus or Genital Diseases, Female[mh]) AND (review[pt] OR review[tiab])
B2: Your search terms
A3: PMID | B3: retin | C3: pregnancy | D3: uteru | E3: Total | F3: Pub Yr | G3: Title | H3: Fauthor | I3: LinkPMID | J3: tiab
A4: =HYPERLINK("http://www.ncbi.nlm.nih.gov/pubmed/" & I4,I4) -> 16433796 | B4: =(LEN($J4) - LEN(SUBSTITUTE(LOWER($J4),LOWER(B$3),"")))/LEN(B$3) -> 22 | C4: =(LEN($J4) - LEN(SUBSTITUTE(LOWER($J4),LOWER(C$3),"")))/LEN(C$3) -> 2 | D4: =(LEN($J4) - LEN(SUBSTITUTE(LOWER($J4),LOWER(D$3),"")))/LEN(D$3) -> 0 | E4: =SUM(B4:D4) -> 24 | F4: 2006 | G4: Oral retinoid therapy for disorders of keratinization: single-centre retrospective 25 years experience on 23 patients. | H4: Katugampola | I4: 16433796 | J4: Oral retinoid therapy for disorders of keratinization: single-centre retrospective 25 years experience on 23 patients. Abstract: BACKGROUND : Over the last three decades, the oral retinoids etretinate and acitretin have revolutionized the treatment of disorders of keratinization (DOK). Many patients with DOK require life-long treatment with oral retinoids. However, the longest follow-up data of patients with DOK on oral retinoid therapy is 10 years for adults and up to 11 years for children. OBJECTIVES : The aim of our study was to collect long-term retrospective data including disease response, side-effects and pregnancy outcome in a cohort of patients with DOK who were among the first in the world to commence oral retinoids 25 years ago. METHODS : Between 1979 and 1981, 30 patients with DOK were commenced on oral etretinate in our department. Case notes of these patients were reviewed retrospectively, and patients interviewed where possible to obtain the following information: diagnosis, age when treatment commenced, duration of treatment, reason for discontinuation of therapy, side-effects, abnormal investigation results and pregnancy outcomes. RESULTS : Case notes of 23 of the 30 patients were available for review; of these, two patients were deceased and 14 were interviewed. In the 23 patients, the mean age of commencing treatment was 33.5 years (range 4.2-61) and the mean duration of etretinate therapy was 5.2 years (range 1 month to 14 years). Reasons for discontinuing treatment were an overall improvement in the skin disease (six of 23), no benefit +/- side-effects (11 of 23) and noncompliance (one of 23). Two patients died of causes unrelated to their skin disease or treatment, 12 and 4 years after stopping etretinate. Five patients (one female, four males) subsequently changed to acitretin and are currently continuing therapy. The mean total duration of retinoid therapy (etretinate and acitretin) for the four males was 23.7 years (range 20.6-25.1). The female patient continued intermittent courses (due to planned pregnancies) of oral retinoids for a total of 10.1 years over the last 25 years. Abnormal investigation results included elevated serum triglycerides and cholesterol (two of 23), isolated high triglycerides (three of 23), isolated high cholesterol (three of 23), worsening of liver enzymes in a patient with alcohol dependence, and elevated serum alkaline phosphatase (ALP) in healthy adults (three of 23). In two children, the elevated pretreatment ALP levels increased further after commencing etretinate but returned to normal in adulthood while treatment continued. One patient developed diffuse idiopathic skeletal hyperostosis after 21 years of retinoid therapy. One female patient had two early spontaneous abortions 2.75 and 3.2 years after discontinuing etretinate; she subsequently had two normal children. Two other females had normal children 1, 3 and 5 years after stopping etretinate. Two male patients fathered a total of three healthy children while on etretinate. CONCLUSIONS : This study provides the longest available follow-up data of children and adults with DOK on oral retinoid therapy. Such information is essential for clinicians and their patients with DOK embarking on life-long treatment with retinoids.
A5: =HYPERLINK("http://www.ncbi.nlm.nih.gov/pubmed/" & I5,I5) -> 10874003 | B5: =(LEN($J5) - LEN(SUBSTITUTE(LOWER($J5),LOWER(B$3),"")))/LEN(B$3) -> 23 | C5: =(LEN($J5) - LEN(SUBSTITUTE(LOWER($J5),LOWER(C$3),"")))/LEN(C$3) -> 0 | D5: =(LEN($J5) - LEN(SUBSTITUTE(LOWER($J5),LOWER(D$3),"")))/LEN(D$3) -> 0 | E5: =SUM(B5:D5) -> 23 | F5: 2000 | G5: Retinoids in chemoprevention and differentiation therapy. | H5: Hansen | I5: 10874003 | J5: Retinoids in chemoprevention and differentiation therapy. Abstract: Retinoids are essential for the maintenance of epithelial differentiation. As such, they play a fundamental role in chemoprevention of epithelial carcinogenesis and in differentiation therapy. Physiological retinoic acid is obtained through two oxidation steps from dietary retinol, i.e. retinol--gt;retinal--gt;retinoic acid. The latter retinal--gt;retinoic acid step is irreversible and eventually marks disposal of this essential nutrient, through cytochrome P450-dependent oxidative steps. Mutant mice deficient in aryl hydrocarbon receptor (AHR) accumulate retinyl palmitate, retinol and retinoic acid. This suggests a direct connection between the AHR and retinoid homeostasis. Retinoids control gene expression through the nuclear retinoic acid receptors (RARs) alpha, beta and gamma and 9-cis-retinoic acid receptors alpha, beta and gamma, which bind with high affinity the natural ligands all-trans-retinoic acid and 9-cis-retinoic acid, respectively. Retinoids are effective chemopreventive agents against skin, head and neck, breast, liver and other forms of cancer. Differentiation therapy of acute promyelocytic leukemia (APL) is based on the ability of retinoic acid to induce differentiation of leukemic promyelocytes. Patients with relapsed, retinoid-resistant APL are now being treated with arsenic oxide, which results in apoptosis of the leukemic cells. Interestingly, induction of differentiation in promyelocytes and consequent remission of APL following retinoid therapy depends on expression of a chimeric PML-RAR alpha fusion protein resulting from a t(15;17) chromosomal translocation. This protein functions as a dominant negative against the function of both PML and RARs and its overexpression is able to recreate the phenotypes of the disease in transgenic mice. The development of new, more effective and less toxic retinoids, alone or in combination with other drugs, may provide additional avenues for cancer chemoprevention and differentiation therapy.
A6: =HYPERLINK("http://www.ncbi.nlm.nih.gov/pubmed/" & I6,I6) -> 23740788 | B6: =(LEN($J6) - LEN(SUBSTITUTE(LOWER($J6),LOWER(B$3),"")))/LEN(B$3) -> 21 | C6: =(LEN($J6) - LEN(SUBSTITUTE(LOWER($J6),LOWER(C$3),"")))/LEN(C$3) -> 0 | D6: =(LEN($J6) - LEN(SUBSTITUTE(LOWER($J6),LOWER(D$3),"")))/LEN(D$3) -> 0 | E6: =SUM(B6:D6) -> 21 | F6: 2013 | G6: Retinoids for preventing the progression of cervical intra-epithelial neoplasia. | H6: Helm | I6: 23740788 | J6: Retinoids for preventing the progression of cervical intra-epithelial neoplasia. Abstract: BACKGROUND : Invasive cervical carcinoma is preceded by a precancerous phase, cervical intra-epithelial neoplasia (CIN), which can be detected on cervical smears and confirmed by colposcopy and biopsy. Moderate and severe cases of intra-epithelial neoplasia (CIN2 and CIN3) are treated mainly with surgery to prevent progression to invasive carcinoma. Medical methods of preventing the progression or inducing the regression of CIN are needed. Retinoids are potent modulators of epithelial cell growth and differentiation that may have potential for the treatment of CIN. OBJECTIVES : To ascertain whether retinoids can cause regression or prevent progression of CIN. SEARCH METHODS : We searched the Cochrane Gynaecological Cancer Review Groups Specialised Register and Non-Trials Database, the Cochrane Central Register of Controlled Trials (CENTRAL) (Issue 3, 2010), and MEDLINE and EMBASE (July 2010).For the 2013 update, the searches were re-run as follows: CENTRAL, Issue 3, 2013; MEDLINE, April, Week 2, 2013; and EMBASE, Week 16, 2013. SELECTION CRITERIA : Randomized controlled trials (RCTs) and non-RCTs of retinoids for treating CIN in women. DATA COLLECTION AND ANALYSIS : Two review authors independently assessed trial quality and extracted data from the trials. Adverse effects information was also collected from the trials. MAIN RESULTS : Five RCTs comparing the efficacy of four different retinoids were identified. Two studies examined the effects on CIN2 and CIN3 of the retinoids N-(4-hydroxyphenyl)retinamide (fenretinide) and 9-cis-retinoic acid (aliretinoin) given orally. Two examined the effect of all-trans-retinoic acid administered topically to the cervix. The fifth study investigated the use of 13-cis-retinoic acid (isotretinoin) given orally to human immunodeficiency virus (HIV)-positive participants with CIN1 and condyloma.Four studies reported no significant effect of retinoids on the progression to higher grades of CIN, and the fifth did not report data on progression. In all studies retinoids had no significant effect on regression of CIN3. Two studies reported that retinoids were associated with regression of CIN2. One reported a greater complete regression of CIN2 over that seen with placebo, which was of borderline statistical significance (odds ratio (OR) 0.5, 95% confidence interval (CI) 0.25 to 1.02). The other study reported a nonsignificant dose-related trend toward increased rates of complete and partial regression compared with placebo. One study reported significantly worse outcomes in women receiving retinoid (OR for regression 6.00, 95% CI 1.00 to 35.91). In general, the retinoid medications were well tolerated.In the 2010 review and in this update, no new studies were identified for inclusion. AUTHORS CONCLUSIONS : The retinoids studied are not effective in causing regression of CIN3 but may have some effect on CIN2. The data on CIN1 are inadequate. Retinoids are not effective in preventing progression of CIN of any grade. At the doses given for the duration of treatment studied, the retinoids were reasonably well tolerated.
A7: =HYPERLINK("http://www.ncbi.nlm.nih.gov/pubmed/" & I7,I7) -> 17943787 | B7: =(LEN($J7) - LEN(SUBSTITUTE(LOWER($J7),LOWER(B$3),"")))/LEN(B$3) -> 21 | C7: =(LEN($J7) - LEN(SUBSTITUTE(LOWER($J7),LOWER(C$3),"")))/LEN(C$3) -> 0 | D7: =(LEN($J7) - LEN(SUBSTITUTE(LOWER($J7),LOWER(D$3),"")))/LEN(D$3) -> 0 | E7: =SUM(B7:D7) -> 21 | F7: 2007 | G7: Retinoids for preventing the progression of cervical intra-epithelial neoplasia. | H7: Helm | I7: 17943787 | J7: Retinoids for preventing the progression of cervical intra-epithelial neoplasia. Abstract: BACKGROUND : Invasive cervical carcinoma is preceded by a precancerous phase, cervical intra-epithelial neoplasia (CIN), which can be detected on cervical smears and confirmed by colposcopy and biopsy. Moderate and severe intra-epithelial neoplasia (CIN2 and CIN3) are treated mainly with surgery to prevent progression to invasive carcinoma. Medical methods of preventing the progression or inducing regression of CIN are needed. Retinoids are potent modulators of epithelial cell growth and differentiation and may have potential for the treatment of CIN. OBJECTIVES : To ascertain whether retinoids can cause regression or prevent progression of CIN. SEARCH STRATEGY : Cochrane Gynaecological Cancer Review Groups Specialised Register and Non-Trials Database, Cochrane Central Register of Controlled Trials (CENTRAL) (Issue 2,2007),MEDLINE and EMBASE (June 2007). SELECTION CRITERIA : Randomized controlled trials (RCTs) and non-RCTs of retinoids for treating CIN in women. DATA COLLECTION AND ANALYSIS : Two authors independently assessed trial quality and extracted data from the trials. Adverse effects information was also collected from the trials. MAIN RESULTS : Five RCTs comparing the efficacy of four different retinoids were identified. Two studies examined the effect on CIN2 and CIN3 of retinoids N-(4-hydroxyphenyl)retinamide (fenretinide) (Follen 2001) and 9-cis-retinoic acid (aliretinoin) (Alvarez 2003) given orally and two examined the effect of all-trans-retinoic acid given topically to the cervix (Meyskens 1994; Ruffin 2004). The fifth study investigated the use of 13-cis-retinoic acid (isotretinoin) given orally in HIV positive patients with CIN1 and condyloma (Robinson 2002).Four studies reported no significant effect of retinoids on the progression to higher grades of CIN, whilst the fifth did not report data on progression. In all studies retinoids had no significant effect on regression of CIN3. Two studies reported that retinoids were associated with regression of CIN2. One reported a greater complete regression of CIN2 over placebo, which was of borderline statistical significance, odds ratio(OR) = 0.5 (95% confidence interval (CI) 0.25 to 1.02). The other study reported a non-significant dose-related trend towards increased rates of complete and partial regression compared with placebo. One study reported a significantly worse outcome in women receiving retinoid, OR for regression = 6.00 (95% CI 1.00 to 35.91). In general, the retinoid medications were well tolerated. AUTHORS CONCLUSIONS : The retinoids studied are not effective at causing regression of CIN3 but may have some effect on CIN2. The data on CIN1 is inadequate. Retinoids are not effective at preventing progression of CIN of any grade. At the doses given and duration of treatment studied, the retinoids were reasonably well-tolerated.
A8: =HYPERLINK("http://www.ncbi.nlm.nih.gov/pubmed/" & I8,I8) -> 11306068 | B8: =(LEN($J8) - LEN(SUBSTITUTE(LOWER($J8),LOWER(B$3),"")))/LEN(B$3) -> 19 | C8: =(LEN($J8) - LEN(SUBSTITUTE(LOWER($J8),LOWER(C$3),"")))/LEN(C$3) -> 0 | D8: =(LEN($J8) - LEN(SUBSTITUTE(LOWER($J8),LOWER(D$3),"")))/LEN(D$3) -> 0 | E8: =SUM(B8:D8) -> 19 | F8: 2001 | G8: Genetic dissection of retinoid dehydrogenases. | H8: Duester | I8: 11306068 | J8: Genetic dissection of retinoid dehydrogenases. Abstract: Biochemical studies indicate that alcohol dehydrogenase (ADH) metabolizes retinol to retinal, and that aldehyde dehydrogenase (ALDH) metabolizes retinal to retinoic acid, a molecule essential for growth and development. Summarized herein are several genetic studies supporting in vivo functions for ADH and ALDH in retinoic acid synthesis. Gene targeting was used to create knockout mice for either Adh1 or Adh4. Both knockout mice were viable and fertile without obvious defects. However, when wild-type and Adh4 knockout mice were subjected to vitamin A deficiency during gestation, the survival rate at birth was 3.3-fold lower for Adh4 knockout mice. When adult mice were examined for production of retinoic acid following retinol administration, Adh1 knockout mice exhibited 10-fold lower retinoic acid levels in liver compared with wild-type, whereas Adh4 knockout mice differed from wild-type by less than 2-fold. Thus, Adh1 plays a major role in the metabolism of a large dose of retinol to retinoic acid in adults, whereas Adh4 plays a role in maintaining sufficient retinol metabolism for development during retinol deficiency. ALDHs were examined by overexpression studies in frog embryos. Injection of mRNAs for either mouse Raldh1 or Raldh2 stimulated retinoic acid synthesis in frog embryos at the blastula stage when retinoic acid is normally undetectable. Overexpression of human ALDH2, human ALDH3, and mouse Aldh-pb did not stimulate retinoic acid production. In addition, Raldh2 knockout mice exhibit embryonic lethality with defects in retinoid-dependent tissues. Overall, these studies provide genetic evidence that Adh1, Adh4, Raldh1, and Raldh2 encode retinoid dehydrogenases involved in retinoic acid synthesis in vivo.
A9: =HYPERLINK("http://www.ncbi.nlm.nih.gov/pubmed/" & I9,I9) -> 8647698 | B9: =(LEN($J9) - LEN(SUBSTITUTE(LOWER($J9),LOWER(B$3),"")))/LEN(B$3) -> 18 | C9: =(LEN($J9) - LEN(SUBSTITUTE(LOWER($J9),LOWER(C$3),"")))/LEN(C$3) -> 1 | D9: =(LEN($J9) - LEN(SUBSTITUTE(LOWER($J9),LOWER(D$3),"")))/LEN(D$3) -> 0 | E9: =SUM(B9:D9) -> 19 | F9: 1996 | G9: [Trans-acitretin is metabolized back to etretinate. Importance for oral retinoid therapy]. | H9: Almond-Roesler | I9: 8647698 | J9: [Trans-acitretin is metabolized back to etretinate. Importance for oral retinoid therapy]. Abstract: The oral retinoid etretinate (Tigason) has recently been replaced by trans-acitretin (Neotigason) in the treatment of severe psoriasis, primarily because of its short half-life and the assumption that a shorter period of subsequent contraception would be required. After introduction of the new drug, however, circulating quantities of etretinate were detected in patients treated with trans-acitretin. Thus far, re-esterification has been detected in at least 83 cases. The 2-month period of strict contraception initially recommended after oral intake of trans-acitretin has been extended to 2 years, as with etretinate. We review some aspects of trans-acitretin metabolism, with special emphasis on etretinate formation. Re-esterification of trans-acitretin into etretinate takes place under varying conditions in volunteers and patients, as well as in animal models. Ethanol is a co-factor for the enzymatic re-esterification of trans-acitretin. It is unclear whether the introduction of trans-acitretin has been of any significant benefit to patients. Monitoring of plasma retinoid levels during and after retinoid therapy remains of decisive importance in managing difficult cases and or in approving decisions for pregnancy.
A10: =HYPERLINK("http://www.ncbi.nlm.nih.gov/pubmed/" & I10,I10) -> 8744592 | B10: =(LEN($J10) - LEN(SUBSTITUTE(LOWER($J10),LOWER(B$3),"")))/LEN(B$3) -> 18 | C10: =(LEN($J10) - LEN(SUBSTITUTE(LOWER($J10),LOWER(C$3),"")))/LEN(C$3) -> 0 | D10: =(LEN($J10) - LEN(SUBSTITUTE(LOWER($J10),LOWER(D$3),"")))/LEN(D$3) -> 0 | E10: =SUM(B10:D10) -> 18 | F10: 1996 | G10: Receptor-selective retinoid agonists and teratogenic activity. | H10: Willhite | I10: 8744592 | J10: Receptor-selective retinoid agonists and teratogenic activity. Abstract: Retinoid mechanism of action is dependent upon interaction with the retinoid nuclear RAR and RXR subfamilies of receptors. Study of ligands selective for the different receptors or which modify that interaction may provide insight into which receptors play roles in or contribute to retinoid teratogenesis. The retinoids considered here include in the RAR alpha-selective arylcarboxamidobenzoic acid CD 336 (Am580), the RAR beta/gamma-selective naphthalenecarboxylic acid CD 135 and the adamantyl-phenylcarboxamidobenzoic acid CD 394, the RAR-selective tetrahydrotetra-methylanthracenylbenzoic acid (TTAB) SRI 3961, the carboxyphenylretinamide SRI 7167-67, and the RXR-selective diarylisopropylidene SR 11217. CD 135 has a 3-fold higher affinity for RAR beta when compared with RAR gamma, whereas CD 394 has a 3-fold higher affinity for RAR gamma when compared with RAR beta. A separate investigation into potential amelioration of retinoid teratogenesis by concomitant administration of the cyclohexanetrione (Ro 31-0521) was also conducted. When pregnant hamsters were given an oral bolus of CD 336 or CD 135 during the early primitive streak stage of gestation, these retinoids proved 60-100 times more potent teratogens than all-trans-retinoic acid. Intubation of CD 394 resulted in production of terata similar to that seen after an equivalent dose of all-trans-retinoic acid. Administration of SRI 3961 found this compound 8000 times more potent than all-trans-retinoic acid, while SRI 7167-67 failed to show any evidence for developmental toxicity even after exposure to 105 mg/kg. Studies with the RXR-selective SR 11217 found it to be far less potent than all-trans-retinoic acid. These data point to the conclusion that those retinoids which have no affinity for retinoid nuclear receptors also have little potential for induction of developmental toxicity at doses which do not also provoke maternal intoxication. Comparing in vitro transcriptional activation of wild-type human RAR for the supertoxic TTNBP (Ro 13-7410) and TTAB (SRI 3961) with their relative teratogenic potency in hamster found that the more toxic congener also had the lower in vitro EC50 transactivation value (at ratios approximating their differential toxicities measured as administered dose). The RAR beta/gamma-selective CD 135 (TTNN) was not as efficient as TTNBP (Ro 13-7410) or TTAB (SRI 3961) in hRAR transactivation and CD 135 was less toxic than either Ro 13-7410 or SRI 3961. Although the RXR-selective SR 11217 failed to elicit terata after moderate doses, malformations consistent with those induced by high doses of retinoic acid could be produced following a single large bolus of SR 11217. Under the conditions here, simultaneous administration of Ro 31-0521 with all-trans-retinoic acid appeared to reduce the total percentage of abnormal fetuses seen after exposure to retinoic acid alone, but fetal body weights remained depressed and the numbers of dead embryos remained elevated, suggesting only limited influence of the cyclohexanetrione on retinoid developmental toxicity.
A11: =HYPERLINK("http://www.ncbi.nlm.nih.gov/pubmed/" & I11,I11) -> 2052162 | B11: =(LEN($J11) - LEN(SUBSTITUTE(LOWER($J11),LOWER(B$3),"")))/LEN(B$3) -> 17 | C11: =(LEN($J11) - LEN(SUBSTITUTE(LOWER($J11),LOWER(C$3),"")))/LEN(C$3) -> 0 | D11: =(LEN($J11) - LEN(SUBSTITUTE(LOWER($J11),LOWER(D$3),"")))/LEN(D$3) -> 1 | E11: =SUM(B11:D11) -> 18 | F11: 1991 | G11: The intracellular vitamin A-binding proteins: an overview of their functions. | H11: Wolf | I11: 2052162 | J11: The intracellular vitamin A-binding proteins: an overview of their functions. Abstract: The intracellular retinoid-binding proteins bind retinol, retinaldehyde, and retinoic acid for purposes of protection against decomposition, solubilize them in aqueous medium, render them nontoxic, and transport them within cells to their site of action. These binding proteins also function by presenting the retinoids to the appropriate enzymes for metabolism. The cytosolic retinol and retinoic acid-binding proteins--CRBP, CRABP, CRBP (II)--function in transport and metabolism of retinoids within parenchymal, intestinal, reproductive, and fetal cells and across blood-organ barriers. A different group of retinoid-binding proteins, more related to serum retinol-binding protein, functions in epididymis and uterus. Retinaldehyde-binding protein aids in the oxidation-reduction reaction of 11-cis-retinol-11-cis-retinaldehyde in the retina, where the interphotoreceptor retinol-binding protein transports retinol between pigment epithelium and photoreceptors. Finally, a group of retinoic acid-binding proteins termed quot;receptorsquot; functions in the nucleus by attaching to promoter regions of a number of specific genes to stimulate their transcription and thus affect growth, development, and differentiation.
A12: =HYPERLINK("http://www.ncbi.nlm.nih.gov/pubmed/" & I12,I12) -> 17368313 | B12: =(LEN($J12) - LEN(SUBSTITUTE(LOWER($J12),LOWER(B$3),"")))/LEN(B$3) -> 17 | C12: =(LEN($J12) - LEN(SUBSTITUTE(LOWER($J12),LOWER(C$3),"")))/LEN(C$3) -> 0 | D12: =(LEN($J12) - LEN(SUBSTITUTE(LOWER($J12),LOWER(D$3),"")))/LEN(D$3) -> 0 | E12: =SUM(B12:D12) -> 17 | F12: 2007 | G12: Metabolism of retinol during mammalian placental and embryonic development. | H12: Marceau | I12: 17368313 | J12: Metabolism of retinol during mammalian placental and embryonic development. Abstract: Retinol (vitamin A) is a fat-soluble nutrient indispensable for a harmonious mammalian gestation. The absence or excess of retinol and its active derivatives [i.e., the retinoic acids (RAs)] can lead to abnormal development of embryonic and extraembryonic (placental) structures. The embryo is unable to synthesize the retinol and is strongly dependent on the maternal delivery of retinol itself or precursors: retinyl esters or carotenoids. Before reaching the embryonic tissue, the retinol or the precursors have to pass through the placental structures. During this placental step, a simple diffusion of retinol can occur between maternal and fetal compartments; but retinol can also be used in situ after its activation into RA(1) or stored as retinyl esters. Using retinol-binding protein knockout model, an alternative way of embryonic retinol supply was described using retinyl esters incorporated into maternal chylomicrons. In the embryo, the principal metabolic event occurring for retinol is its conversion into RAs, the active molecules implicated on the molecular control of embryonic morphogenesis and organogenesis. All these placental and embryonic events of retinol transport and metabolism are highly regulated. Nevertheless, some genetic and/or environmental abnormalities in the transport and/or metabolism of retinol can be related to developmental pathologies during mammalian development.
A13: =HYPERLINK("http://www.ncbi.nlm.nih.gov/pubmed/" & I13,I13) -> 16054987 | B13: =(LEN($J13) - LEN(SUBSTITUTE(LOWER($J13),LOWER(B$3),"")))/LEN(B$3) -> 17 | C13: =(LEN($J13) - LEN(SUBSTITUTE(LOWER($J13),LOWER(C$3),"")))/LEN(C$3) -> 0 | D13: =(LEN($J13) - LEN(SUBSTITUTE(LOWER($J13),LOWER(D$3),"")))/LEN(D$3) -> 0 | E13: =SUM(B13:D13) -> 17 | F13: 2005 | G13: Alcohol, vitamin A, and cancer. | H13: Wang | I13: 16054987 | J13: Alcohol, vitamin A, and cancer. Abstract: Chronic and excessive alcohol intake is associated with an increased risk of a variety of cancers (e.g., oral cavity, larynx, esophagus, liver, lung, colorectal, and breast). Retinoids (vitamin A and its derivatives) are known to exert profound effects on cellular growth, cellular differentiation, and apoptosis, thereby controlling carcinogenesis. Lower hepatic vitamin A levels have been well documented in alcoholics. Substantial research has been done, investigating the mechanisms by which excessive alcohol interferes with retinoid metabolism. More specifically, (1) alcohol acts as a competitive inhibitor of vitamin A oxidation to retinoic acid involving alcohol dehydrogenases and acetaldehyde dehydrogenases; (2) alcohol-induced cytochrome P450 enzymes (CYP), particularly CYP2E1, enhance catabolism of vitamin A and retinoic acid; and (3) alcohol alters retinoid homeostasis by increasing vitamin A mobilization from liver to extrahepatic tissues. As a consequence, long-term and excessive alcohol intake results in impaired status of retinoic acid, the most active derivative of vitamin A and a ligand for both retinoic acid receptors and retinoid X receptors. Moreover, this alcohol-impaired retinoic acid homeostasis interferes with (1) retinoic acid signaling (e.g., down-regulates retinoid target gene expression) and (2) retinoic acid quot;cross-talkquot; with the mitogen-activated protein kinase [(MAPK), including Jun N-terminal kinase, extracellular signal-regulated kinase, and p38 kinase] signaling pathway. In addition, restoration of retinoic acid homeostasis by retinoic acid supplementation restored the normal status of both retinoid and MAPK signaling, thereby maintaining normal cell proliferation and apoptosis in alcohol-fed animals. These observations would have implications for the prevention of alcohol-promoted liver (and peripheral tissue) carcinogenesis. However, a better understanding of the alcohol-retinoid interaction and the molecular mechanisms involved is needed before retinoids can be pursued in the prevention of alcohol-related carcinogenesis in human beings, particularly regarding the detrimental effects of polar metabolites of vitamin A.
A14: =HYPERLINK("http://www.ncbi.nlm.nih.gov/pubmed/" & I14,I14) -> 11606951 | B14: =(LEN($J14) - LEN(SUBSTITUTE(LOWER($J14),LOWER(B$3),"")))/LEN(B$3) -> 17 | C14: =(LEN($J14) - LEN(SUBSTITUTE(LOWER($J14),LOWER(C$3),"")))/LEN(C$3) -> 0 | D14: =(LEN($J14) - LEN(SUBSTITUTE(LOWER($J14),LOWER(D$3),"")))/LEN(D$3) -> 0 | E14: =SUM(B14:D14) -> 17 | F14: 2001 | G14: Teratogenicity of isotretinoin revisited: species variation and the role of all-trans-retinoic acid. | H14: Nau | I14: 11606951 | J14: Teratogenicity of isotretinoin revisited: species variation and the role of all-trans-retinoic acid. Abstract: This paper reviews the teratogenicity of isotretinoin in regard to aspects of species variation, toxicokinetics, and metabolism. Particular emphasis is given to the hypothesis that most effects of isotretinoin (13-cis-retinoic acid) are mediated by isomerization to the all-trans-retinoic acid. This mechanism of action would provide a basis for the understanding of species differences and the extrapolation of experimental results to the human situation and thus improve drug development. The insensitive species (rat, mouse) eliminate the drug rapidly through detoxification to the beta-glucuronide; also, placental transfer is limited in these species. On the other hand, in sensitive species (primates), the drug is predominantly metabolized to the active 13-cis-4-oxo-retinoic acid; placental transfer is more extensive here. The beta-glucuronides showed limited placental transfer in all species examined; these metabolites exhibited very low, if any, measurable concentrations in the human. The 13-cis-retinoic acid is not appreciably bound to cellular retinoid-binding proteins or nuclear receptors and exhibits low tissue distribution and placental transfer. Its access to the nucleus may be extensive. Because of the long half life of 13-cis-retinoic acid, continuous isomerization results in significant area under the concentration-time curve levels of all-trans-retinoic acid in the mouse, monkey and the human; the all-trans-retinoic acid formed is extensively distributed across the placenta and may be an important factor that contributes to the teratogenic potency of 13-cis-retinoic acid. Isomerization cannot explain the teratogenic effects of 13-cis-retinoic acid in the rat and rabbit. It is concluded that the high teratogenic activity of isotretinoin in sensitive species (human, monkey) is related to slow elimination of the 13-cis-isomer, to metabolism to the 4-oxo-derivative, to increased placental transfer, to continuous isomerization and significant exposure of the target tissue to all-trans-retinoic acid; and to lack of binding to cytoplasmic retinoid binding proteins that could possibly result in ready access to the nucleus.
A15: =HYPERLINK("http://www.ncbi.nlm.nih.gov/pubmed/" & I15,I15) -> 8142110 | B15: =(LEN($J15) - LEN(SUBSTITUTE(LOWER($J15),LOWER(B$3),"")))/LEN(B$3) -> 17 | C15: =(LEN($J15) - LEN(SUBSTITUTE(LOWER($J15),LOWER(C$3),"")))/LEN(C$3) -> 0 | D15: =(LEN($J15) - LEN(SUBSTITUTE(LOWER($J15),LOWER(D$3),"")))/LEN(D$3) -> 0 | E15: =SUM(B15:D15) -> 17 | F15: 1993 | G15: Embryotoxicity and teratogenicity of topical retinoic acid. | H15: Nau | I15: 8142110 | J15: Embryotoxicity and teratogenicity of topical retinoic acid. Abstract: All-trans-retinoic acid is a potent developmental toxicant in all species examined. The teratogenic risk of topical all-trans-retinoic acid is reviewed. Experimental studies are limited because of the high maternal toxicity, including skin irritation, with doses below those resulting in significant teratogenic response with other application routes, such as oral application. The maximal systemic availability reported for transdermal exposure of all-trans-retinoic acid was 5-6% in the rat, 9.6% in the monkey (48% with dermatitic skin) and 5-7% in the human. Oral administration of threshold teratogenic doses of all-trans-retinoic acid (6 mg/kg/day) to Wistar rats and Swiss hare rabbits resulted in embryonic area under the concentration time curve levels (approximately 1,000 ng.h/g) which were 2- to 4-fold higher than the endogenous all-trans-retinoic acid levels; corresponding maternal plasma area under the concentration time curve values were 98 and 321 ng.h/ml in rat and rabbit, respectively. The 4-oxo-metabolite was also found in maternal plasma and embryo. Large, controlled studies on the possible developmental toxicity of topical all-trans-retinoic acid in the human are not available. Isolated case reports appeared in the literature claiming teratogenic outcome resembling effects after oral isotretinoin use or those observed in experimental studies with oral or parenteral all-trans-retinoic acid administration. The dose absorbed from daily cosmetic or therapeutic application of all-trans-retinoic acid is expected to be below 0.015 mg/kg, which is at least 30-fold lower than the lowest teratogenic dose of isotretinoin in the human. Topical all-trans-retinoic acid application did not appreciably alter endogenous plasma retinoid levels. The influence of nutrition, diurnal variation and in particular oral vitamin A supplements are more important determinants of plasma retinoic acid compounds than topical all-trans-retinoic acid. These results imply a low risk of therapeutic or cosmetic application of topical all-trans-retinoic acid. However, the highly specific spatial and temporal distribution of binding proteins and nuclear receptors in the embryo suggests that even small alterations in endogenous levels of all-trans-retinoic acid in the embryo may alter crucial developmental processes such as morphogenes; this aspect should be further investigated.
A16: =HYPERLINK("http://www.ncbi.nlm.nih.gov/pubmed/" & I16,I16) -> 21073338 | B16: =(LEN($J16) - LEN(SUBSTITUTE(LOWER($J16),LOWER(B$3),"")))/LEN(B$3) -> 15 | C16: =(LEN($J16) - LEN(SUBSTITUTE(LOWER($J16),LOWER(C$3),"")))/LEN(C$3) -> 0 | D16: =(LEN($J16) - LEN(SUBSTITUTE(LOWER($J16),LOWER(D$3),"")))/LEN(D$3) -> 0 | E16: =SUM(B16:D16) -> 15 | F16: 2011 | G16: Retinoids, retinoic acid receptors, and cancer. | H16: Tang | I16: 21073338 | J16: Retinoids, retinoic acid receptors, and cancer. Abstract: Retinoids (i.e., vitamin A, all-trans retinoic acid, and related signaling molecules) induce the differentiation of various types of stem cells. Nuclear retinoic acid receptors mediate most but not all of the effects of retinoids. Retinoid signaling is often compromised early in carcinogenesis, which suggests that a reduction in retinoid signaling may be required for tumor development. Retinoids interact with other signaling pathways, including estrogen signaling in breast cancer. Retinoids are used to treat cancer, in part because of their ability to induce differentiation and arrest proliferation. Delivery of retinoids to patients is challenging because of the rapid metabolism of some retinoids and because epigenetic changes can render cells retinoid resistant. Successful cancer therapy with retinoids is likely to require combination therapy with drugs that regulate the epigenome, such as DNA methyltransferase and histone deacetylase inhibitors, as well as classical chemotherapeutic agents. Thus, retinoid research benefits both cancer prevention and cancer treatment.
A17: =HYPERLINK("http://www.ncbi.nlm.nih.gov/pubmed/" & I17,I17) -> 20716214 | B17: =(LEN($J17) - LEN(SUBSTITUTE(LOWER($J17),LOWER(B$3),"")))/LEN(B$3) -> 9 | C17: =(LEN($J17) - LEN(SUBSTITUTE(LOWER($J17),LOWER(C$3),"")))/LEN(C$3) -> 6 | D17: =(LEN($J17) - LEN(SUBSTITUTE(LOWER($J17),LOWER(D$3),"")))/LEN(D$3) -> 0 | E17: =SUM(B17:D17) -> 15 | F17: 2011 | G17: Compliance with pregnancy prevention programmes of isotretinoin in Europe: a systematic review. | H17: Crijns | I17: 20716214 | J17: Compliance with pregnancy prevention programmes of isotretinoin in Europe: a systematic review. Abstract: Most of the publications on isotretinoin, pregnancy and compliance with the pregnancy prevention programme (PPP) originate from North America. Information specific for the European situation is very limited. The aim of this study was to identify publications describing the use of isotretinoin in humans and the compliance with the PPP in Europe, a systematic search in Medline and Embase was conducted using the terms isotretinoin, pregnancy (and Europe). Furthermore, a manual search in publications was performed. A total of 17 publications were identified. Publications consisted of case reports of exposed pregnancies, surveys among dermatologists or pharmacists and database studies evaluating compliance with the PPP. The studies and surveys dealt with groups of patients exposed to isotretinoin before or during pregnancy and/or compliance with the isotretinoin PPP. Where the information was provided, in 6-26% of cases isotretinoin was prescribed in full accordance with the PPP. Pregnancy incidence was seen in 0·2-1·0 per 1000 women of childbearing age using isotretinoin. Between 65% and 87% of these pregnancies were terminated. This review of studies in Europe performed to date shows failures in the implementation of the PPP. Therefore, the isotretinoin PPP must be scrutinized to identify whether new measures should be taken or whether the failures in the implementation need to be corrected. New measures should take into account the definition of the ultimate goal of a PPP and the acceptable burden. In the meantime, stakeholders could make a start with adjustments in the implementation of the PPP by taking responsibility and enhancing the performance by explicit instructions, monitoring the performance and adjusting, if necessary.
A18: =HYPERLINK("http://www.ncbi.nlm.nih.gov/pubmed/" & I18,I18) -> 19678713 | B18: =(LEN($J18) - LEN(SUBSTITUTE(LOWER($J18),LOWER(B$3),"")))/LEN(B$3) -> 15 | C18: =(LEN($J18) - LEN(SUBSTITUTE(LOWER($J18),LOWER(C$3),"")))/LEN(C$3) -> 0 | D18: =(LEN($J18) - LEN(SUBSTITUTE(LOWER($J18),LOWER(D$3),"")))/LEN(D$3) -> 0 | E18: =SUM(B18:D18) -> 15 | F18: 2009 | G18: Alitretinoin: in severe chronic hand eczema. | H18: Garnock-Jones | I18: 19678713 | J18: Alitretinoin: in severe chronic hand eczema. Abstract: Alitretinoin is an endogenous retinoid and acts as a pan-agonist at retinoid receptors, binding with high affinity to both retinoic acid receptors and retinoid X receptors (RXR). Oral alitretinoin once daily is approved for use in patients with severe chronic hand eczema unresponsive to treatment with potent topical corticosteroids. In a large (n = 1032), randomized, double-blind, placebo-controlled, multicentre study (BACH) of up to 24 weeks duration in adults with severe chronic hand eczema, significantly more patients in the alitretinoin 10 or 30 mg/day groups than in the placebo group responded to treatment with clear/almost clear hands, as assessed by the Physician Global Assessment (PGA) [primary endpoint]. In an extension phase of the BACH study, alitretinoin was effective in patients who relapsed after responding to initial treatment with the drug. Of patients who had responded to initial treatment with alitretinoin 30 mg/day, significantly more alitretinoin 30 mg/day than placebo recipients responded on the PGA with clear/almost clear hands during the extension phase (primary endpoint; 80% vs 8%). Of those who had responded to initial treatment with alitretinoin 10 mg/day, 48% of alitretinoin 10 mg/day and 10% of placebo recipients responded during the extension phase. Alitretinoin was generally well tolerated in clinical trials excluding pregnant women. The most common treatment-emergent adverse events and abnormal laboratory test results were consistent with those previously observed with other oral retinoids and RXR agonists.
A19: =HYPERLINK("http://www.ncbi.nlm.nih.gov/pubmed/" & I19,I19) -> 16129372 | B19: =(LEN($J19) - LEN(SUBSTITUTE(LOWER($J19),LOWER(B$3),"")))/LEN(B$3) -> 15 | C19: =(LEN($J19) - LEN(SUBSTITUTE(LOWER($J19),LOWER(C$3),"")))/LEN(C$3) -> 0 | D19: =(LEN($J19) - LEN(SUBSTITUTE(LOWER($J19),LOWER(D$3),"")))/LEN(D$3) -> 0 | E19: =SUM(B19:D19) -> 15 | F19: 2005 | G19: Retinoic acid and retinoid receptors: potential chemopreventive and therapeutic role in cervical cancer. | H19: Abu | I19: 16129372 | J19: Retinoic acid and retinoid receptors: potential chemopreventive and therapeutic role in cervical cancer. Abstract: Retinoids are natural and synthetic derivatives of vitamin A, which can be obtained from animal products (milk, liver, beef, fish oils, and eggs) and vegetables (carrots, mangos, sweet potatoes, and spinach). Retinoids regulate various important cellular functions in the body through specific nuclear retinoic-acid receptors and retinoid-X receptors, which are encoded by separate genes. Retinoic-acid receptors specifically bind tretinoin and alitretinoin, whereas retinoid-X receptors bind only alitretinoin. Retinoids have long been established as crucial for several essential life processes-healthy growth, vision, maintenance of tissues, reproduction, metabolism, tissue differentiation (normal, premalignant cells, and malignant cells), haemopoiesis, bone development, spermatogenesis, embryogenesis, and overall survival. Therefore, deficiency of vitamin A can lead to various unwanted biological effects. Several experimental and epidemiological studies have shown the antiproliferative activity of retinoids and their potential use in cancer treatment and chemoprevention. Emerging clinical trials have shown the chemotherapeutic and chemopreventive potential of retinoids in cancerous and precancerous conditions of the uterine cervix. In this review, we explore the potential chemopreventive and therapeutic roles of retinoids in preinvasive and invasive cervical neoplasia.
A20: =HYPERLINK("http://www.ncbi.nlm.nih.gov/pubmed/" & I20,I20) -> 6192964 | B20: =(LEN($J20) - LEN(SUBSTITUTE(LOWER($J20),LOWER(B$3),"")))/LEN(B$3) -> 15 | C20: =(LEN($J20) - LEN(SUBSTITUTE(LOWER($J20),LOWER(C$3),"")))/LEN(C$3) -> 0 | D20: =(LEN($J20) - LEN(SUBSTITUTE(LOWER($J20),LOWER(D$3),"")))/LEN(D$3) -> 0 | E20: =SUM(B20:D20) -> 15 | F20: 1983 | G20: Isotretinoin: new therapy for severe acne. | H20: Perry | I20: 6192964 | J20: Isotretinoin: new therapy for severe acne. Abstract: The chemistry, pharmacology, pharmacokinetics, clinical use, adverse effects, dosage and administration, and FDA-approved indications of isotretinoin, a new agent used for treating acne, are reviewed. Isotretinoin is a synthetic retinoid compound with pharmacologic actions similar to those of other retinoids. Isotretinoins effects on nodulocystic acne lesions apparently result from its reduction of the size of sebaceous glands, inhibition of sebum production, and inhibition of follicular keratinization. Isotretinoin is administered orally; peak serum drug concentrations occur approximately three hours after ingestion. The drug is widely distributed throughout body tissues and metabolized by the liver by oxidation and glucuronidation; both parent drug and metabolites are excreted in the urine and feces. Clinical trials of isotretinoin have shown the drug to be effective in treating cystic or conglobate acne that is unresponsive to therapy with oral or topical antibiotics, topical tretinoin, or topical benzoyl peroxide. Isotretinoin is unique in that acne remission continues after discontinuance of therapy. The most frequent adverse effects involve mucocutaneous tissues and include cheilitis, xerosis, xerostomia, dry nose, epistaxis, and pruritus. Other adverse effects--including some serious ones--have been found rarely in humans or animals receiving isotretinoin. The usual oral dosage of isotretinoin for patients with cystic acne is 1-2 mg/kg/day in two divided doses; administration should continue for 15-20 weeks. Isotretinoin is currently more expensive than other acne treatments. Isotretinoin is an effective agent for treating cystic acne; pending accumulation of further data, its use should be limited to patients with severe conditions that do not respond to older therapies because of isotretinoins cost and sometimes serious adverse effects.
A21: =HYPERLINK("http://www.ncbi.nlm.nih.gov/pubmed/" & I21,I21) -> 15134535 | B21: =(LEN($J21) - LEN(SUBSTITUTE(LOWER($J21),LOWER(B$3),"")))/LEN(B$3) -> 14 | C21: =(LEN($J21) - LEN(SUBSTITUTE(LOWER($J21),LOWER(C$3),"")))/LEN(C$3) -> 0 | D21: =(LEN($J21) - LEN(SUBSTITUTE(LOWER($J21),LOWER(D$3),"")))/LEN(D$3) -> 0 | E21: =SUM(B21:D21) -> 14 | F21: 2004 | G21: Retinoids in cancer chemoprevention. | H21: Okuno | I21: 15134535 | J21: Retinoids in cancer chemoprevention. Abstract: We review the therapeutic and preventive applications of a retinoid analog (vitamin A and its derivatives) for human cancers. Chemoprevention of cancer is an intervention in the carcinogenic process by chemical agents that block or reverse the malignant transformation of cells. Retinoids are prime candidates for cancer chemoprevention since cancer is characterized by abnormal growth with a lack of differentiation, which could be modified by retinoids. Retinoids exert their biological functions through nuclear receptors, retinoic acid receptor (RAR) and retinoid X receptor (RXR). A number of experimental and clinical studies have been performed in the past two decades with retinoids showing that they inhibit or reverse the carcinogenic process in some organs, including hematological malignancy as well as premalignant and malignant lesions in the oral cavity, head and neck, breast, skin and liver. We particularly focus upon the therapeutic application of all-trans RA (atRA) to acute promyelocytic leukemia (APL) and on the preventive approach to hepatocellular carcinoma (HCC) by a synthetic retinoid analog, acyclic retinoid. In both malignancies, malfunction of retinoid nuclear receptors is closely related to their carcinogenic process. In APL, a chromosomal translocation produces a chimeric protein between RAR alpha and a protein called promyelocyte leukemia protein (PML). PML-RAR alpha works as a dominant negative receptor in the leukemic cells, interfering with the normal function of RAR alpha and/or PML, which in turn results in the arrest of cell maturation at the stage of promyelocytes. Oral administration of atRA induces differentiation of promyelocytic leukemic cells to mature neutrophils, and leads to a high rates (over 90%) of complete remission. AtRA therapy has become standard in the treatment of APL. In the case of HCC, post-translational modification of RXR by phosphorylation impairs its function, which leads to uncontrolled cell growth. Acyclic retinoid suppresses the phosphorylation of RXR alpha, restores its function in the presence of its endogenous ligand, 9-cis RA, and thereby induces apoptosis of the cancer cells. Acyclic retinoid given orally successfully suppresses the development of second primary tumors in cirrhotic patients who undergo curative removal of preceding HCC. Eradication of (pre)malignant clones (clonal deletion) from the liver is suggested as a mechanism of the chemopreventive effect. Further development of more effective retinoids as well as their use in combination with other classes of anticancer agents including immunopreventive drugs like interferons may provide strategies for cancer prevention.
A22: =HYPERLINK("http://www.ncbi.nlm.nih.gov/pubmed/" & I22,I22) -> 10721933 | B22: =(LEN($J22) - LEN(SUBSTITUTE(LOWER($J22),LOWER(B$3),"")))/LEN(B$3) -> 14 | C22: =(LEN($J22) - LEN(SUBSTITUTE(LOWER($J22),LOWER(C$3),"")))/LEN(C$3) -> 0 | D22: =(LEN($J22) - LEN(SUBSTITUTE(LOWER($J22),LOWER(D$3),"")))/LEN(D$3) -> 0 | E22: =SUM(B22:D22) -> 14 | F22: 2000 | G22: Advances in the development of retinoids as chemopreventive agents. | H22: Lippman | I22: 10721933 | J22: Advances in the development of retinoids as chemopreventive agents. Abstract: With the inclusion of brief discussions of retinoid drug development in animal carcinogenesis models (e.g., skin, breast, oral cavity, lung, prostate or bladder) and clinical trials (e.g., head and neck or cervix), this review will focus on recent advances in retinoid molecular targeting studies designed primarily to develop retinoids with reduced toxicity, while maintaining or enhancing activity in the context of chemoprevention. Major current retinoid molecular targets include the six known nuclear retinoid receptors (RAR and RXR). Receptor numbers, distinct functions, tissue-expression patterns, ligand specificities, functional redundancy and regulation of multiple pathways make retinoid signaling highly complex. Development of receptor-selective synthetic retinoids is a major focus of molecular retinoid development. RAR heterodimerize with RXR and mediate classic retinoid activity/toxicity. RXR are more promiscuous, heterodimerizing with several other members of the steroid receptor superfamily [e.g., peroxisome proliferator-activated receptors (PPAR) or vitamin D receptors]. RXR-selective ligands are less toxic and more active in animal breast cancer prevention studies and less toxic than RAR ligands in clinical trials. Other new avenues of retinoid molecular drug development include newly identified retinoid-regulated genes, orphan-receptor ligands/functions, novel retinoid mechanisms involving potent receptor-independent apoptosis-inducing activity (e.g., 4-HPR or anhydroretinol), synergistic combinations [e.g., RXR agonists plus selective estrogen receptor modulators (SERM)], activity in other diseases and novel delivery systems.
A23: =HYPERLINK("http://www.ncbi.nlm.nih.gov/pubmed/" & I23,I23) -> 10705921 | B23: =(LEN($J23) - LEN(SUBSTITUTE(LOWER($J23),LOWER(B$3),"")))/LEN(B$3) -> 14 | C23: =(LEN($J23) - LEN(SUBSTITUTE(LOWER($J23),LOWER(C$3),"")))/LEN(C$3) -> 0 | D23: =(LEN($J23) - LEN(SUBSTITUTE(LOWER($J23),LOWER(D$3),"")))/LEN(D$3) -> 0 | E23: =SUM(B23:D23) -> 14 | F23: 1999 | G23: Role of retinoid receptors in the prevention and treatment of breast cancer. | H23: Yang | I23: 10705921 | J23: Role of retinoid receptors in the prevention and treatment of breast cancer. Abstract: Retinoids are vitamin A-related compounds that have been found to prevent cancer in animals and humans. In this review, we discuss the role of retinoids and their receptors in the treatment and prevention of breast cancer. The retinoid receptors are expressed in normal and malignant breast cells, and are critical for normal development. In breast cells, when bound by retinoid hormones, these proteins regulate proliferation, apoptosis, and differentiation. The mechanism by which retinoids inhibit breast cell growth has not been completely elucidated, however, retinoids have been shown to affect multiple signal transduction pathways, including IGF-, TGFbeta-, and AP-1-dependent pathways. Retinoids have also been shown to suppress the growth and prevent the development of breast cancer in animals. These agents suppress tumorigenesis in carcinogen-treated rats and in transgenic mice, and inhibit the growth of transplanted breast tumors. These promising preclinical results have provided the rationale to test retinoids in clinical trials for the treatment and prevention of breast cancer. Several retinoids, including all trans retinoic acid and 9-cis retinoic acid, have been shown to have modest activity in the treatment of breast cancer, and these agents are now in clinical trials in combination with cytotoxic agents and anti-estrogens. Another retinoid, 4-HPR, is currently being tested in a human cancer prevention trial. Preliminary results suggest that 4-HPR may suppress breast cancer development in premenopausal women. Future clinical trials will focus on testing new synthetic retinoids that have reduced toxicity and enhanced therapeutic and preventive efficacy.
A24: =HYPERLINK("http://www.ncbi.nlm.nih.gov/pubmed/" & I24,I24) -> 8923019 | B24: =(LEN($J24) - LEN(SUBSTITUTE(LOWER($J24),LOWER(B$3),"")))/LEN(B$3) -> 14 | C24: =(LEN($J24) - LEN(SUBSTITUTE(LOWER($J24),LOWER(C$3),"")))/LEN(C$3) -> 0 | D24: =(LEN($J24) - LEN(SUBSTITUTE(LOWER($J24),LOWER(D$3),"")))/LEN(D$3) -> 0 | E24: =SUM(B24:D24) -> 14 | F24: 1996 | G24: Retinoids as cancer-preventive agents. | H24: Sankaranarayanan | I24: 8923019 | J24: Retinoids as cancer-preventive agents. Abstract: Vitamin A and its metabolites play a crucial role in regulating the differentiation and proliferation of epithelial cells, and are potent inducers of apoptosis. The effects of retinoids are thought to be mediated through the metabolite retinoic acid, which binds to nuclear retinoic acid receptors that then interact with specific retinoic acid response elements. The development of cancers involves alterations in growth and differentiation of cells as a result of carcinogen-induced damage to DNA of regulatory genes. Most of the results from experimental animal studies indicate that retinoids are effective in preventing or suppressing cancers. Although the relationship between preformed vitamin A in the diet and epithelial cancers remains to be further clarified, a high intake of vegetables and fruits has been consistently associated with a lower risk of these cancers. This interesting biological activity profile of retinoids has prompted investigators to study them in the chemoprevention of epithelial cancers and in the treatment of advanced cancers. Although the therapeutic response of retinoids against advanced cancers is disappointing, they have emerged as promising chemopreventive agents, particularly in head and neck sites. Both natural and synthetic analogues of vitamin A have been shown to be effective in suppressing micronucleated cells, reversing oral leukoplakia, and preventing new and recurrent lesions in subjects with oral leukoplakia, as well as in reducing the occurrence of second primaries in treated head and neck cancer patients. They have not been consistently effective in suppressing either bronchial atypia or metaplasia, nor have they been proven effective in reducing the occurrence of recurrent lesions in treated skin cancer patients, although some activity has been demonstrated in reducing lesion counts in actinic keratoses. Vitamin A in combination with other micronutrients has not reduced incidence and mortality from oesophageal and stomach cancers. A synthetic retinoid, fenretinide, is currently being evaluated in preventing contralateral breast cancer in treated breast cancer patients. Toxicity has been a major concern with retinoids, as prolonged administration is required in chemoprevention studies. Available evidence indicates that natural analogues of retinoids are less toxic than synthetic compounds such as isotretinoin. Large studies are currently evaluating retinoids in the prevention of head and neck cancers and lung cancers. The outcome of these studies will be important in directing future research initiatives and in forming policies regarding the use of vitamin A compounds in the prevention of cancers.
A25: =HYPERLINK("http://www.ncbi.nlm.nih.gov/pubmed/" & I25,I25) -> 7832047 | B25: =(LEN($J25) - LEN(SUBSTITUTE(LOWER($J25),LOWER(B$3),"")))/LEN(B$3) -> 12 | C25: =(LEN($J25) - LEN(SUBSTITUTE(LOWER($J25),LOWER(C$3),"")))/LEN(C$3) -> 2 | D25: =(LEN($J25) - LEN(SUBSTITUTE(LOWER($J25),LOWER(D$3),"")))/LEN(D$3) -> 0 | E25: =SUM(B25:D25) -> 14 | F25: 1994 | G25: The function of vitamin A in cellular growth and differentiation, and its roles during pregnancy and lactation. | H25: Ross | I25: 7832047 | J25: The function of vitamin A in cellular growth and differentiation, and its roles during pregnancy and lactation. Abstract: Recent advances in the molecular biology of the retinoids have provided a mechanistic explanation for the observations, first made several decades ago, that vitamin A profoundly influences the differentiation of tissues throughout the body. A central concept has recently emerged, namely that retinoids seldom exist quot;freequot; in solution but, rather, are nearly always associated with specific retinoid-binding proteins. In plasma, these include RBP and the chylomicron whereas, in cells two distinct classes of retinoid-binding proteins exist: the cellular (cytoplasmic) proteins (CRBPs and CRABPs) and the nuclear receptors proteins (RARs and RXRs). Whereas the cellular retinoid-binding proteins serve as buffers and as chaperones during metabolism (Ross, 1993b), the nuclear receptors are now recognized to be the direct mediators of retinoid actions on the genome. Both the cytoplasmic and nuclear classes of retinoid-binding proteins are expressed early in development and are proposed to control the concentration of retinoic acid and the transcription of retinoid-responsive genes, respectively. Given the profound effects of retinoic deficiency or excess on the developing fetus, it is not surprising that mechanisms have evolved to control the placental transfer of vitamin A. Transfer is nearly uniform over a rather wide range of maternal dietary vitamin A intake. The importance of RBP in transporting retinol to tissues is suggested by the observations that the visceral yolk sac and the liver of the fetus transcribe and translate RBP. In comparison to pregnancy, vitamin A transport during lactation is much more responsive to variations in maternal vitamin A intake. The young of mothers with good vitamin A nutriture may thus accumulate significant retinol reserves during the suckling period. Conversely, young nursed by mothers with poor vitamin A status and low intake during lactation may fail to develop adequate stores and be vulnerable to vitamin A deficiency if the post-weaning diet is also poor in vitamin A. In populations with low vitamin A status, the lactation period provides an excellent window of opportunity for supplementing mothers and, indirectly, their offspring, with vitamin A to replenish the mothers vitamin A reserves and assure that the infants growth and development are not limited by an inadequate quantity of this essential nutrient.
A26: =HYPERLINK("http://www.ncbi.nlm.nih.gov/pubmed/" & I26,I26) -> 25879031 | B26: =(LEN($J26) - LEN(SUBSTITUTE(LOWER($J26),LOWER(B$3),"")))/LEN(B$3) -> 13 | C26: =(LEN($J26) - LEN(SUBSTITUTE(LOWER($J26),LOWER(C$3),"")))/LEN(C$3) -> 0 | D26: =(LEN($J26) - LEN(SUBSTITUTE(LOWER($J26),LOWER(D$3),"")))/LEN(D$3) -> 0 | E26: =SUM(B26:D26) -> 13 | F26: 2015 | G26: Vitamin A, cancer treatment and prevention: the new role of cellular retinol binding proteins. | H26: Doldo | I26: 25879031 | J26: Vitamin A, cancer treatment and prevention: the new role of cellular retinol binding proteins. Abstract: Retinol and vitamin A derivatives influence cell differentiation, proliferation, and apoptosis and play an important physiologic role in a wide range of biological processes. Retinol is obtained from foods of animal origin. Retinol derivatives are fundamental for vision, while retinoic acid is essential for skin and bone growth. Intracellular retinoid bioavailability is regulated by the presence of specific cytoplasmic retinol and retinoic acid binding proteins (CRBPs and CRABPs). CRBP-1, the most diffuse CRBP isoform, is a small 15 KDa cytosolic protein widely expressed and evolutionarily conserved in many tissues. CRBP-1 acts as chaperone and regulates the uptake, subsequent esterification, and bioavailability of retinol. CRBP-1 plays a major role in wound healing and arterial tissue remodelling processes. In the last years, the role of CRBP-1-related retinoid signalling during cancer progression became object of several studies. CRBP-1 downregulation associates with a more malignant phenotype in breast, ovarian, and nasopharyngeal cancers. Reexpression of CRBP-1 increased retinol sensitivity and reduced viability of ovarian cancer cells in vitro. Further studies are needed to explore new therapeutic strategies aimed at restoring CRBP-1-mediated intracellular retinol trafficking and the meaning of CRBP-1 expression in cancer patients screening for a more personalized and efficacy retinoid therapy.
A27: =HYPERLINK("http://www.ncbi.nlm.nih.gov/pubmed/" & I27,I27) -> 11118831 | B27: =(LEN($J27) - LEN(SUBSTITUTE(LOWER($J27),LOWER(B$3),"")))/LEN(B$3) -> 13 | C27: =(LEN($J27) - LEN(SUBSTITUTE(LOWER($J27),LOWER(C$3),"")))/LEN(C$3) -> 0 | D27: =(LEN($J27) - LEN(SUBSTITUTE(LOWER($J27),LOWER(D$3),"")))/LEN(D$3) -> 0 | E27: =SUM(B27:D27) -> 13 | F27: 2000 | G27: Recent advances in the use of vitamin A (retinoids) in the prevention and treatment of cancer. | H27: Niles | I27: 11118831 | J27: Recent advances in the use of vitamin A (retinoids) in the prevention and treatment of cancer. Abstract: Vitamin A, its physiologic metabolites, and synthetic derivatives (retinoids) have been shown to have protective effects against the development of certain types of cancer. In addition, pharmacologic amounts of retinoids have been used with some success in the treatment of a few human tumors. The chemoprevention effect of retinoids is most likely exerted at the tumor-promotion phase of carcinogenesis. Retinoids block tumor promotion by inhibiting proliferation, inducing apoptosis, inducing differentiation, or a combination of these actions. Clinically, isotretinoin (13-cis-retinoic acid) significantly decreases the incidence of second primary tumors in patients with head-and-neck cancer and reduces appearance of non-melanoma skin cancer in patients with xeroderma pigmentosum. Retinoic acid has proved to be an effective treatment for promyelocytic leukemia. However, retinoid resistance limits its use as a single agent. Clinical trials are in progress to determine the efficacy of retinoids in treating other types of cancer such as neuroblastoma and breast carcinoma. The development of receptor-selective retinoids and selective inhibitors of retinoid metabolism may lead to further use of retinoids in both chemoprevention and treatment of cancer.
A28: =HYPERLINK("http://www.ncbi.nlm.nih.gov/pubmed/" & I28,I28) -> 9345570 | B28: =(LEN($J28) - LEN(SUBSTITUTE(LOWER($J28),LOWER(B$3),"")))/LEN(B$3) -> 10 | C28: =(LEN($J28) - LEN(SUBSTITUTE(LOWER($J28),LOWER(C$3),"")))/LEN(C$3) -> 3 | D28: =(LEN($J28) - LEN(SUBSTITUTE(LOWER($J28),LOWER(D$3),"")))/LEN(D$3) -> 0 | E28: =SUM(B28:D28) -> 13 | F28: 1997 | G28: [Teratogenic effects of vitamin A and its derivates]. | H28: Guillonneau | I28: 9345570 | J28: [Teratogenic effects of vitamin A and its derivates]. Abstract: Retinoids, the synthetic derivates of vitamin A, have a key role on cellular differentiation and developmental tissue specificity. Their effects are mediated by nuclear receptors which transactivate homeobox genes. They are teratogenic to animals and they all induce similar malformations dependent on the dose and the duration of exposure. This is a review of the teratogenic effects of vitamin A and its synthetic derivates--isotretinoin, acitretine and topical retinoids--in humans. High dose vitamin A have a potent teratogenic effect and are therefore contra-indicated during pregnancy. Isotretinoin is responsible for a syndrome including malformations of the central nervous system, heart and thymus, together with craniofacial defects. The incidence rate is high and comparable to thalidomide (ie, 25%). This high teratogenic potency justifies a strict limitation of such a prescription in women susceptible to become pregnant. Acitretine, which replaces etretinate because of its long half life of 120 days, might also be teratogenic in humans. In addition, it may be back transformed into etretinate, thus contraindicating pregnancy for 2 years after withdrawal. Finally, despite a low percutaneous resorption, available data on the use of retinoids as topicals are limited and their use during pregnancy is therefore not recommended. Although they are efficient in skin diseases, the use of retinoids in women of the child bearing age is very limited because of their potent teratogenic effect.
A29: =HYPERLINK("http://www.ncbi.nlm.nih.gov/pubmed/" & I29,I29) -> 21198520 | B29: =(LEN($J29) - LEN(SUBSTITUTE(LOWER($J29),LOWER(B$3),"")))/LEN(B$3) -> 11 | C29: =(LEN($J29) - LEN(SUBSTITUTE(LOWER($J29),LOWER(C$3),"")))/LEN(C$3) -> 1 | D29: =(LEN($J29) - LEN(SUBSTITUTE(LOWER($J29),LOWER(D$3),"")))/LEN(D$3) -> 0 | E29: =SUM(B29:D29) -> 12 | F29: 2010 | G29: Adverse effects of isotretinoin: A retrospective review of 1743 patients started on isotretinoin. | H29: Rademaker | I29: 21198520 | J29: Adverse effects of isotretinoin: A retrospective review of 1743 patients started on isotretinoin. Abstract: BACKGROUND/OBJECTIVES : Isotretinoin has revolutionized the management of acne vulgaris. However, concerns continue regarding the adverse effect profile of isotretinoin. This study aims to review the adverse effects experienced by patients started on isotretinoin by a single dermatologist. METHODS : Retrospective chart review of 1743 patients started on isotretinoin for various dermatological conditions over a 6-year period. Details of the dose of isotretinoin used, concomitant medications, adverse effects and outcome were recorded. RESULTS : One-fifth (18.5%) of patients reported no adverse effects during the study period. Cheilitis was the most commonly reported adverse effect, affecting 78% of users, followed by eczema and tiredness, seen in 12% each. However, these were clearly dose-dependent, as the group treated with doses of isotretinoin under 0.25 mg/kg/day only reported cheilitis in 47%, eczema in 7% and tiredness in 5%, compared with 96%, 16% and 18%, respectively, in those treated with more than 0.75 mg/gm/day. Twenty-four patients (1.4%) stopped isotretinoin because of adverse effects; a further three patients complained of severe adverse effects on at least one occasion, but continued taking the medication. The adverse effect(s) that led to patients stopping isotretinoin were cheilitis (22 patients), mood change (13), tiredness (12), eczema (6) and pregnancy (2). There were no reported instances of suicidal ideation or attempted suicide. CONCLUSIONS : Other than the two oral contraceptive failures, there were no serious adverse events recorded during this review period. Isotretinoin is a very effective medication with a low adverse-effect profile when used at lower doses.
A30: =HYPERLINK("http://www.ncbi.nlm.nih.gov/pubmed/" & I30,I30) -> 17491551 | B30: =(LEN($J30) - LEN(SUBSTITUTE(LOWER($J30),LOWER(B$3),"")))/LEN(B$3) -> 12 | C30: =(LEN($J30) - LEN(SUBSTITUTE(LOWER($J30),LOWER(C$3),"")))/LEN(C$3) -> 0 | D30: =(LEN($J30) - LEN(SUBSTITUTE(LOWER($J30),LOWER(D$3),"")))/LEN(D$3) -> 0 | E30: =SUM(B30:D30) -> 12 | F30: 2007 | G30: Role of retinoids and their cognate nuclear receptors in breast cancer chemoprevention. | H30: Brtko | I30: 17491551 | J30: Role of retinoids and their cognate nuclear receptors in breast cancer chemoprevention. Abstract: Retinoids are natural and synthetic compounds related to retinoic acid that act through interaction with two basic types of nuclear receptors: retinoic acid receptors (RARalpha, RARbeta and RARgamma) and retinoid X receptors (RXRalpha, RXRbeta and RXRgamma) as ligand-activated, DNA-binding, transacting, transcription-modulating proteins involved in a general molecular mechanism responsible for transcriptional responses in target genes. Function of retinoids in organisms affecting broad spectrum of various biochemical and molecular biology reactions is unimaginable without fully functional nuclear receptors--retinoid inducible transcription factors. Retinoic acids exert tumour-suppressive activity due to their antiproliferative and apoptosis-inducing effects. A number of novel retinoids and rexinoids acting through cognate nuclear receptors have been tested both in vitro and in vivo, using cell culture or animal models for breast cancer. This article briefly summarizes the role and properties of nuclear retinoid/rexinoid receptors as well as selected effects of retinoic acids or selected synthetic retinoids and rexinoids with respect to their potential use in chemoprevention of breast cancer.
A31: =HYPERLINK("http://www.ncbi.nlm.nih.gov/pubmed/" & I31,I31) -> 16601279 | B31: =(LEN($J31) - LEN(SUBSTITUTE(LOWER($J31),LOWER(B$3),"")))/LEN(B$3) -> 12 | C31: =(LEN($J31) - LEN(SUBSTITUTE(LOWER($J31),LOWER(C$3),"")))/LEN(C$3) -> 0 | D31: =(LEN($J31) - LEN(SUBSTITUTE(LOWER($J31),LOWER(D$3),"")))/LEN(D$3) -> 0 | E31: =SUM(B31:D31) -> 12 | F31: 2006 | G31: Clinical trials with retinoids for breast cancer chemoprevention. | H31: Zanardi | I31: 16601279 | J31: Clinical trials with retinoids for breast cancer chemoprevention. Abstract: Retinoids have been studied as chemopreventive agents in clinical trials due to their established role in regulating cell growth, differentiation and apoptosis in preclinical models. Experimental evidence suggests that retinoids affect gene expression both directly, by activating and/or repressing specific genes, and indirectly, by interfering with different signal transduction pathways. Induction of apoptosis is a unique feature of fenretinide, the most widely studied retinoid in clinical trials on breast cancer chemoprevention due to its selective accumulation in breast tissue and to its favourable toxicological profile. In a phase III breast cancer prevention trial, fenretinide showed a durable trend to a reduction of second breast malignancies in premenopausal women. This pattern was associated with a favourable modulation of circulating IGF-I and its main binding protein (IGF-binding protein-3, IGFBP-3), which have been associated with breast cancer risk in premenopausal women in different prospective studies. In a subsequent biomarker study on premenopausal women who had participated in the phase III trial, high IGF-I and low IGFBP-3 baseline levels were found to predict second breast cancer risk, although the magnitude of their changes during treatment did not fulfil the requirements for suitable surrogate end-point biomarkers. In postmenopausal women, fenretinide did not reduce second breast cancer incidence, nor did it induce significant modulation of the IGF system. Similarly, fenretinide was not found to affect risk biomarkers significantly in early postmenopausal women on hormone replacement therapy, who are at increased risk of developing breast cancer. Biomarker studies of fenretinide alone or in combination with different nuclear receptor ligands are being conducted. In particular, clinical trials of fenretinide and tamoxifen have proved to be feasible, and this combination appears to be safe and well tolerated in high-risk women, especially when low-dose tamoxifen is employed. Novel retinoid X receptor-selective retinoids, or rexinoids, have been shown to suppress the development of breast cancer in several animal models with minimal toxicity, and are being intensively studied either alone or in combination with selective oestrogen receptor modulators, both in vitro and in vivo. The rexinoid, bexarotene, has recently been approved for the treatment of patients with cutaneous T-cell lymphoma, and a biomarker trial with bexarotene in women with high breast cancer risk is currently underway.
A32: =HYPERLINK("http://www.ncbi.nlm.nih.gov/pubmed/" & I32,I32) -> 14704336 | B32: =(LEN($J32) - LEN(SUBSTITUTE(LOWER($J32),LOWER(B$3),"")))/LEN(B$3) -> 12 | C32: =(LEN($J32) - LEN(SUBSTITUTE(LOWER($J32),LOWER(C$3),"")))/LEN(C$3) -> 0 | D32: =(LEN($J32) - LEN(SUBSTITUTE(LOWER($J32),LOWER(D$3),"")))/LEN(D$3) -> 0 | E32: =SUM(B32:D32) -> 12 | F32: 2004 | G32: Assessing vitamin A status: past, present and future. | H32: Tanumihardjo | I32: 14704336 | J32: Assessing vitamin A status: past, present and future. Abstract: Xerophthalmia classification was traditionally used to identify populations with vitamin A deficiency. Currently, night blindness and dark adaptometry have been proposed as population assessment methods. While eye signs and function tests are still used in areas where vitamin A deficiency is severe, a subclinical vitamin A deficiency is more prevalent. Serum and breast milk retinol concentrations are used to identify vitamin A deficiency risk. However, in healthy individuals, serum retinol concentrations are homeostatically controlled and do not begin to decline until liver reserves of vitamin A are dangerously low. Moreover, serum retinol and retinol binding protein (RBP) concentrations fall during times of infection. The RBP:transthyretin ratio may help to determine if serum retinol concentrations are depressed by infection. Other methods better reflect liver reserves of vitamin A, the quot;goldquot; standard. The relative dose response and modified relative dose response tests involve giving a small dose of retinyl or dehydroretinyl ester, respectively, and determining a response in the serum at about 5 h. A new response test where retinoyl beta-glucuronide is administered and the degree of hydrolysis to retinoic acid is measured has been investigated. Unlike isotope dilution tests, the dose response tests lack utility in defining the total body reserve of vitamin A. The deuterated retinol isotope dilution test has been used in several different groups. Recently, a new isotope assay was developed using 13C-retinyl acetate and gas chromatography-combustion-isotope ratio mass spectrometry for analysis. Thus, having many choices of vitamin A assessment methods, laboratory sophistication and resources available will usually dictate which methods are chosen.
A33: =HYPERLINK("http://www.ncbi.nlm.nih.gov/pubmed/" & I33,I33) -> 11255826 | B33: =(LEN($J33) - LEN(SUBSTITUTE(LOWER($J33),LOWER(B$3),"")))/LEN(B$3) -> 4 | C33: =(LEN($J33) - LEN(SUBSTITUTE(LOWER($J33),LOWER(C$3),"")))/LEN(C$3) -> 8 | D33: =(LEN($J33) - LEN(SUBSTITUTE(LOWER($J33),LOWER(D$3),"")))/LEN(D$3) -> 0 | E33: =SUM(B33:D33) -> 12 | F33: 2001 | G33: quot;Be smart, be safe, be surequot;. The revised Pregnancy Prevention Program for women on isotretinoin. | H33: Perlman | I33: 11255826 | J33: quot;Be smart, be safe, be surequot;. The revised Pregnancy Prevention Program for women on isotretinoin. Abstract: OBJECTIVES : After studying the information in this article, the reader should be able to: 1. Describe the purpose of the pregnancy prevention program. 2. Discuss the five most common reasons for unintended pregnancy. 3. List the components of the expanded pregnancy prevention program. Preventing unintended pregnancy is currently an unsolved problem in the United States, especially among teens. However, successful programs to minimize unintended pregnancy do exist and can serve as a model for other efforts. One such program is the Pregnancy Prevention Program, for use when prescribing isotretinoin to women with childbearing potential. Isotretinoin is a known teratogen and is prescribed disproportionately to teens, who are at higher risk of unintended pregnancy. The program has shown impressive effectiveness despite these handicaps, but since exposure to isotretinoin is so harmful to the fetus and some women still become pregnant while taking the drug, the program has been revised to reduce the failure rate further.
A34: =HYPERLINK("http://www.ncbi.nlm.nih.gov/pubmed/" & I34,I34) -> 10942515 | B34: =(LEN($J34) - LEN(SUBSTITUTE(LOWER($J34),LOWER(B$3),"")))/LEN(B$3) -> 12 | C34: =(LEN($J34) - LEN(SUBSTITUTE(LOWER($J34),LOWER(C$3),"")))/LEN(C$3) -> 0 | D34: =(LEN($J34) - LEN(SUBSTITUTE(LOWER($J34),LOWER(D$3),"")))/LEN(D$3) -> 0 | E34: =SUM(B34:D34) -> 12 | F34: 2000 | G34: Retinoids and ovarian cancer. | H34: Zhang | I34: 10942515 | J34: Retinoids and ovarian cancer. Abstract: Each year, an estimated 26,000 women in the United States are diagnosed with ovarian cancer. During any given year, approximately 14,500 women die from this disease. Ovarian cancer is the seventh most common cancer in women worldwide, after breast, cervix, colon/rectum, stomach, corpus uteri, and lung cancers. In the U.S., ovarian cancer is the second most common gynecologic cancer, and is the fourth leading cause of solid tumor cancer deaths among women. Currently, postoperative chemotherapy of ovarian cancer is still suboptimal. Drug resistance is a common problem resulting in only 20 approximately 30% overall 5-year survival rates. Clearly, continued development of alternative therapeutic strategies is essential for the management of this fatal disease. A number of recent studies have suggested that retinoids may play a potential role as an ovarian cancer chemotherapeutic agent. Retinoids, the natural and synthetic derivatives of vitamin A, have been shown to inhibit the growth of human ovarian cancer cells both in vivo and in culture. This review will initially summarize what is known about the pathological and molecular characteristics of ovarian carcinoma. It will then describe retinoid metabolism and the role of the cellular and nuclear retinoid binding proteins in mediating retinoid action. Following this general review of retinoids and their function, data supporting the role of retinoic acid as a suppresser of ovarian carcinoma cell growth will be presented. Particular attention will be paid to studies suggesting that members of the RB family of proteins and RB2/p130, in particular, are the molecular targets responsible for retinoid mediated inhibition of ovarian carcinoma cell growth. This review will then conclude with a brief discussion of two synthetic retinoids, 4 HPR R(fenretinide) and AHPN/CD437, which have been shown to induce apoptosis in ovarian tumor cells. It will be clear from the studies summarized in this review that retinoids represent a potentially powerful alternative to present chemotherapeutic approaches to the treatment of late stage ovarian cancer.
A35: =HYPERLINK("http://www.ncbi.nlm.nih.gov/pubmed/" & I35,I35) -> 1460123 | B35: =(LEN($J35) - LEN(SUBSTITUTE(LOWER($J35),LOWER(B$3),"")))/LEN(B$3) -> 12 | C35: =(LEN($J35) - LEN(SUBSTITUTE(LOWER($J35),LOWER(C$3),"")))/LEN(C$3) -> 0 | D35: =(LEN($J35) - LEN(SUBSTITUTE(LOWER($J35),LOWER(D$3),"")))/LEN(D$3) -> 0 | E35: =SUM(B35:D35) -> 12 | F35: 1992 | G35: Retinoids for the future: oncology. | H35: DiGiovanna | I35: 1460123 | J35: Retinoids for the future: oncology. Abstract: A major incentive for the development of the synthetic retinoids has been their potential for the treatment and prevention of cancer. Early studies demonstrated that treatment with isotretinoin or etretinate alone could result in the regression of some existing skin cancers. However, even at high doses the response rates were poor. Greater efficacy has been observed with retinoids used in the prevention of cancer of the skin and oral cavity in high-risk patients. The potential for retinoids as chemopreventive agents is being further explored as selected retinoids are being targeted to specific malignancies, such as fenretinide for breast cancer chemoprevention. The effectiveness of tretinoin as a treatment for promyelocytic leukemia has raised enthusiasm for retinoids as cancer therapeutic agents. Furthermore, evidence of synergy between the retinoids and a variety of cytokines as enhances of differentiation chart a bright future for retinoids in oncology.
A36: =HYPERLINK("http://www.ncbi.nlm.nih.gov/pubmed/" & I36,I36) -> 1447394 | B36: =(LEN($J36) - LEN(SUBSTITUTE(LOWER($J36),LOWER(B$3),"")))/LEN(B$3) -> 12 | C36: =(LEN($J36) - LEN(SUBSTITUTE(LOWER($J36),LOWER(C$3),"")))/LEN(C$3) -> 0 | D36: =(LEN($J36) - LEN(SUBSTITUTE(LOWER($J36),LOWER(D$3),"")))/LEN(D$3) -> 0 | E36: =SUM(B36:D36) -> 12 | F36: 1992 | G36: Retinoids in cancer treatment. | H36: Tallman | I36: 1447394 | J36: Retinoids in cancer treatment. Abstract: Since initial studies identifying the important role of vitamin A and its derivatives (retinoids) in maintaining the integrity of epithelial tissues, these compounds have served as paradigms for experimental studies exploring the pharmacologic modification of carcinogenesis. Retinoids have clearly been shown to inhibit chemically induced mammary and urothelial carcinogenesis in experimental animals. Prohibitive toxicity of the parent compound, vitamin A, led to a systematic search for synthetic derivatives with an improved therapeutic index. More than 1500 such compounds have been synthesized, many retaining chemopreventive potential, but with less toxicity. Although several anecdotal reports confirming therapeutic benefits of cis-retinoic acid in patients with acute promyelocytic leukemia and myelodysplastic syndromes appeared in the late 1970s and early 1980s, the remarkable studies of Huang and his colleagues in China in 1988 reporting complete remissions in patients with this uncommon variety of acute myelogenous leukemia with the transisomer of retinoic acid (all-trans-retinoic acid) led to a resurgence of interest in the retinoids as differentiating agents for the prevention and therapy of cancer. Furthermore, molecular studies showing DNA rearrangements of the alpha nuclear receptor for retinoic acid located on chromosome 17 in patients with acute promyelocytic leukemia, a disease invariably associated with a translocation between chromosomes 15 and 17, provided a direct connection between an altered nuclear receptor and the development of a human malignancy. The retinoids also may have important beneficial effects in prevention of recurrent malignancies once the primary tumor has been treated, such as in squamous cell carcinoma of the head and neck. Because retinoids appear to be less effective in inducing differentiation in nonpromyelocytic leukemia cells, investigators have conducted a number of studies to exploit potential synergism between retinoids and other differentiating agents or biologic effectors. Differentiation therapy and chemoprevention are attractive alternative approaches to intensive cytotoxic chemotherapy. It is now clear that retinoids represent one class of compounds with which it may be possible to reverse the progression of malignant disease and prevent carcinogenesis.
A37: =HYPERLINK("http://www.ncbi.nlm.nih.gov/pubmed/" & I37,I37) -> 26215715 | B37: =(LEN($J37) - LEN(SUBSTITUTE(LOWER($J37),LOWER(B$3),"")))/LEN(B$3) -> 6 | C37: =(LEN($J37) - LEN(SUBSTITUTE(LOWER($J37),LOWER(C$3),"")))/LEN(C$3) -> 5 | D37: =(LEN($J37) - LEN(SUBSTITUTE(LOWER($J37),LOWER(D$3),"")))/LEN(D$3) -> 0 | E37: =SUM(B37:D37) -> 11 | F37: 2015 | G37: Pregnancy outcomes following first-trimester exposure to topical retinoids: a systematic review and meta-analysis. | H37: Kaplan | I37: 26215715 | J37: Pregnancy outcomes following first-trimester exposure to topical retinoids: a systematic review and meta-analysis. Abstract: Evaluation of human data regarding the outcomes of topical-retinoid-exposed pregnancies is important in terms of counselling pregnant women with inadvertent exposure. The objective of this study was thus to determine whether exposure to topical retinoids leads to an increase in the risk of adverse pregnancy outcomes. We carried out a search using the Medline, Embase, Web of Science and Cochrane Central Register of Controlled Trials databases from inception to 4 December 2014. The selection, review and quality assessment of the studies were carried out by two independent reviewers according to predetermined inclusion criteria. Odds ratios (ORs) were calculated by the random effects method. This meta-analysis, including a total of 654 pregnant women who were exposed to topical retinoids, and 1375 unexposed control pregnant women, did not detect significant increases in rates of major congenital malformations [OR 1·22, 95% confidence interval (CI) 0·65-2·29], spontaneous abortions (OR 1·02, 95% CI 0·64-1·63), stillbirth (OR 2·06, 95% CI 0·43-9·86), elective termination of pregnancy (OR 1·89, 95% CI 0·52-6·80), low birthweight (OR 1·01, 95% CI, 0·31-3·27) or prematurity (OR 0·69, 95% CI 0·39-1·23). No significant heterogeneity was detected among the studies for the evaluated outcomes. The present meta-analysis ruled out a major increase in the rates of major congenital malformations, spontaneous abortions, low birthweight and prematurity. This result may be used primarily in reassuring women who were inadvertently exposed to topical retinoids during their pregnancy. However, the statistical power is not adequate to justify the use of topical retinoids during pregnancy.
A38: =HYPERLINK("http://www.ncbi.nlm.nih.gov/pubmed/" & I38,I38) -> 25520935 | B38: =(LEN($J38) - LEN(SUBSTITUTE(LOWER($J38),LOWER(B$3),"")))/LEN(B$3) -> 11 | C38: =(LEN($J38) - LEN(SUBSTITUTE(LOWER($J38),LOWER(C$3),"")))/LEN(C$3) -> 0 | D38: =(LEN($J38) - LEN(SUBSTITUTE(LOWER($J38),LOWER(D$3),"")))/LEN(D$3) -> 0 | E38: =SUM(B38:D38) -> 11 | F38: 2014 | G38: Retinoic acid and cancer treatment. | H38: Chen | I38: 25520935 | J38: Retinoic acid and cancer treatment. Abstract: NlmCategory=UNASSIGNEDRetinoic acid which belongs to the retinoid class of chemical compounds is an important metabolite of vitamin A in diets. It is currently understood that retinoic acid plays important roles in cell development and differentiation as well as cancer treatment. Lung, prostate, breast, ovarian, bladder, oral, and skin cancers have been demonstrated to be suppressed by retinoic acid. Our results also show that low doses and high doses of retinoic acid may respectively cause cell cycle arrest and apoptosis of cancer cells. Also, the common cell cycle inhibiting protein, p27, and the new cell cycle regulator, Cdk5, are involved in retinoic acids effects. These results provide new evidence indicating that the molecular mechanisms of/in retinoic acid may control cancer cells fates. Since high doses of retinoic acid may lead to cytotoxicity, it is probably best utilized as a potential supplement in ones daily diet to prevent or suppress cancer progression. In this review, we have collected numerous references demonstrating the findings of retinoic acid in melanoma, hepatoma, lung cancer, breast cancer, and prostate cancer. We hope these observations will shed light on the future investigation of retinoic acid in cancer prevention and therapy.
A39: =HYPERLINK("http://www.ncbi.nlm.nih.gov/pubmed/" & I39,I39) -> 23322901 | B39: =(LEN($J39) - LEN(SUBSTITUTE(LOWER($J39),LOWER(B$3),"")))/LEN(B$3) -> 11 | C39: =(LEN($J39) - LEN(SUBSTITUTE(LOWER($J39),LOWER(C$3),"")))/LEN(C$3) -> 0 | D39: =(LEN($J39) - LEN(SUBSTITUTE(LOWER($J39),LOWER(D$3),"")))/LEN(D$3) -> 0 | E39: =SUM(B39:D39) -> 11 | F39: 2013 | G39: Molecular pathways: current role and future directions of the retinoic acid pathway in cancer prevention and treatment. | H39: Connolly | I39: 23322901 | J39: Molecular pathways: current role and future directions of the retinoic acid pathway in cancer prevention and treatment. Abstract: Retinoids and their naturally metabolized and synthetic products (e.g., all-trans retinoic acid, 13-cis retinoic acid, bexarotene) induce differentiation in various cell types. Retinoids exert their actions mainly through binding to the nuclear retinoic acid receptors (α, β, γ), which are transcriptional and homeostatic regulators with functions that are often compromised early in neoplastic transformation. The retinoids have been investigated extensively for their use in cancer prevention and treatment. Success has been achieved with their use in the treatment of subtypes of leukemia harboring chromosomal translocations. Promising results have been observed in the breast cancer prevention setting, where fenretinide prevention trials have provided a strong rationale for further investigation in young women at high risk for breast cancer. Ongoing phase III randomized trials investigating retinoids in combination with chemotherapy in non-small cell lung cancer aim to definitively characterize the role of retinoids in this tumor type. The limited treatment success observed to date in the prevention and treatment of solid tumors may relate to the frequent epigenetic silencing of RARβ. Robust evaluation of RARβ and downstream genes may permit optimized use of retinoids in the solid tumor arena.
A40: =HYPERLINK("http://www.ncbi.nlm.nih.gov/pubmed/" & I40,I40) -> 15897377 | B40: =(LEN($J40) - LEN(SUBSTITUTE(LOWER($J40),LOWER(B$3),"")))/LEN(B$3) -> 6 | C40: =(LEN($J40) - LEN(SUBSTITUTE(LOWER($J40),LOWER(C$3),"")))/LEN(C$3) -> 5 | D40: =(LEN($J40) - LEN(SUBSTITUTE(LOWER($J40),LOWER(D$3),"")))/LEN(D$3) -> 0 | E40: =SUM(B40:D40) -> 11 | F40: 2005 | G40: Trends in adherence to a revised risk management program designed to decrease or eliminate isotretinoin-exposed pregnancies: evaluation of the accutane SMART program. | H40: Brinker | I40: 15897377 | J40: Trends in adherence to a revised risk management program designed to decrease or eliminate isotretinoin-exposed pregnancies: evaluation of the accutane SMART program. Abstract: OBJECTIVE : To review adherence to selected procedures outlined in the System to Manage Accutane-Related Teratogenicity (SMART) program during the first year of implementation vs the procedures in effect in the year prior to initiation of the SMART program. DESIGN : Observational. SETTING : A novel pharmacy compliance survey and an ongoing, voluntary survey. PATIENTS : Female recipients of isotretinoin. INTERVENTION : In April 2002, Hoffmann-La Roche Inc, Nutley, NJ, manufacturer of Accutane brand isotretinoin and at that time the sole source of isotretinoin, revised earlier guidelines and instituted the SMART risk management program, which included the use of qualification stickers to affix to all prescriptions for Accutane to indicate, among other things, a negative pregnancy test just before the prescription was written. The goal of the SMART program was to decrease or eliminate isotretinoin-exposed pregnancies. MAIN OUTCOME MEASURES : Use and completion of prescription qualification stickers; changes in pretherapy pregnancy testing and birth control use. RESULTS : The results of the pharmacy compliance survey indicated high (gt;90%) use of prescription qualification stickers. Results of the patient survey suggested that 9% of prescription qualification stickers within the observed user cohort were issued without a pregnancy test. Furthermore, the pregnancy rate for patients participating in the survey was similar to that reported for cohorts recruited before the SMART program. CONCLUSIONS : The usefulness of the results derived from 2 surveys designed to evaluate the SMART program is limited by the lack of reliability and validity of the survey instruments and by questionable generalizability to all female recipients of isotretinoin. The presence of a qualification sticker may not have an impact on pregnancy testing or compliance with effective birth control behavior as outlined in the SMART program.
A41: =HYPERLINK("http://www.ncbi.nlm.nih.gov/pubmed/" & I41,I41) -> 12452454 | B41: =(LEN($J41) - LEN(SUBSTITUTE(LOWER($J41),LOWER(B$3),"")))/LEN(B$3) -> 11 | C41: =(LEN($J41) - LEN(SUBSTITUTE(LOWER($J41),LOWER(C$3),"")))/LEN(C$3) -> 0 | D41: =(LEN($J41) - LEN(SUBSTITUTE(LOWER($J41),LOWER(D$3),"")))/LEN(D$3) -> 0 | E41: =SUM(B41:D41) -> 11 | F41: 2002 | G41: Retinoid, retinoic acid receptor beta and breast cancer. | H41: Yang | I41: 12452454 | J41: Retinoid, retinoic acid receptor beta and breast cancer. Abstract: Retinoids have been reported to inhibit the growth of several breast cancer cell lines in culture and to reduce breast tumor growth in animal models. Furthermore, retinoic acid (RA) can augment the action of other breast cancer cell growth inhibitors both in vitro and in vivo. Clinically, interest has increased in the potential use of retinoids for the prevention and treatment of human breast cancer. The regulation of cell growth and differentiation of normal, premalignant, and malignant cells by retinoids is mediated by the RA receptors (RARs) and retinoid X receptor. One of the target genes of retinoid receptors is RARbeta2. A growing body of evidence supports the hypotheses that the RARbeta2 gene is a tumor suppressor gene and the chemopreventive effects of retinoids are due to induction of RARbeta2. RARbeta2 expression is reduced in many malignant tumors including breast carcinoma. This paper will briefly discuss basic aspects of retinoids and retinoid acid receptor. In particular, we review what is now known for inactivation mechanism of RARbeta2 and its role in tumor cell growth inhibition.
A42: =HYPERLINK("http://www.ncbi.nlm.nih.gov/pubmed/" & I42,I42) -> 10489539 | B42: =(LEN($J42) - LEN(SUBSTITUTE(LOWER($J42),LOWER(B$3),"")))/LEN(B$3) -> 11 | C42: =(LEN($J42) - LEN(SUBSTITUTE(LOWER($J42),LOWER(C$3),"")))/LEN(C$3) -> 0 | D42: =(LEN($J42) - LEN(SUBSTITUTE(LOWER($J42),LOWER(D$3),"")))/LEN(D$3) -> 0 | E42: =SUM(B42:D42) -> 11 | F42: 1999 | G42: Synthesis and biological evaluation of butanoate, retinoate, and bis(2,2,2-trichloroethyl)phosphate derivatives of 5-fluoro-2-deoxyuridine and 2,5-difluoro-2-deoxyuridine as potential dual action anticancer prodrugs. | H42: Xia | I42: 10489539 | J42: Synthesis and biological evaluation of butanoate, retinoate, and bis(2,2,2-trichloroethyl)phosphate derivatives of 5-fluoro-2-deoxyuridine and 2,5-difluoro-2-deoxyuridine as potential dual action anticancer prodrugs. Abstract: A group of 3-O-butanoyl, 5-O-butanoyl, and 3,5-di-O-butanoyl esters of 5-fluoro-2-deoxyuridine (FDU), and 2,5-difluoro-2-deoxyuridine (DFDU), 3-O-retinoyl, and 3,5-di-O-retinoyl esters of FDU, and 5-O-bis(2,2,2-trichloroethyl)phosphoryl-FDU and its 3-O-butanoyl ester, was synthesized. These compounds were designed to act as double prodrugs that would serve as a depot to release two active drugs that act through different mechanisms. Thus, a nucleotide derivative of FDU or DFDU could act as a competitive inhibitor for thymidylate synthase, whereas retinoic acid and butyric acid would be expected to induce cell differentiation. The in vitro anticancer activities for these prodrugs were determined against a panel of nine tumor types (leukemia, non-small cell lung, colon, CNS, melanoma, ovarian, renal, prostate, breast) that encompassed about 60 human tumor cell lines. Structure-activity relationships indicate that O-butanoyl esters of FDU are approximately equipotent to FDU, the O-butanoyl esters of DFDU are less active than FDU, and the retinoyl and bis(2,2,2-trichloroethyl)phosphate derivatives of FDU exhibit comparable activity to FDU. In addition to their cytotoxic effect, 3-O-retinoyl-FDU (12) and 3-O-butanoyl-5-O-bis(2,2,2-trichloroethyl)phosphoryl-FD U (16) also induced in vitro cell differentiation of promyelocytic leukemia HL60 cells. These combined cytotoxic and cell differentiation effects exhibited by 12 and 16 produced greater morphological drug-induced granulation and neutrophil vacuolation, and more cell apoptosis, than observed upon exposure to either retinoic acid or sodium butanoate. Dose-escalation studies in mice showed that 12 or 16 did not induce any acute or chronic toxicity, change in plasma clinical chemistry parameters, or gross histapathological changes at 60 days following an initial dosage regimen of 0.013 mmol/kg i.p. for 7-consecutive days. The in vivo growth delay response of murine mammary EMT6 solid tumors suggests that 3-O-retinoyl-FDU (12) delays tumor growth relative to the other prodrugs investigated, sodium butyrate, retinoic acid, FDU, or a combination of retinoic acid and FDU. These preliminary results suggest that 3-O-retinoyl-FDU (12) warrants further in vivo investigation to determine its tissue biodistribution and pharmacokinetic parameters that would be of value in assessing its potential usefulness as an anticancer prodrug.
A43: =HYPERLINK("http://www.ncbi.nlm.nih.gov/pubmed/" & I43,I43) -> 9478050 | B43: =(LEN($J43) - LEN(SUBSTITUTE(LOWER($J43),LOWER(B$3),"")))/LEN(B$3) -> 11 | C43: =(LEN($J43) - LEN(SUBSTITUTE(LOWER($J43),LOWER(C$3),"")))/LEN(C$3) -> 0 | D43: =(LEN($J43) - LEN(SUBSTITUTE(LOWER($J43),LOWER(D$3),"")))/LEN(D$3) -> 0 | E43: =SUM(B43:D43) -> 11 | F43: 1998 | G43: Retinoids and their receptors in vertebrate embryogenesis. | H43: Smith | I43: 9478050 | J43: Retinoids and their receptors in vertebrate embryogenesis. Abstract: Vitamin A and its derivatives, the retinoids, participate in formation of diverse embryonic structures, including face, heart, eye, limb and nervous system. Studies of retinoid-deficient and -treated embryos, and of receptor null mutants, provide evidence that this participation involves interactions between retinoids and their receptors. Targeted retinoid application and retinoid deficiency, using in ovo avian embryos, has identified early cardiogenic contributions, including cardiocyte gene expression and differentiation, heart tube fusion and laterality, and segmental identity. Also useful is a mammalian model, which targets retinoid deficiency to distinct gestational windows, circumventing limitations of traditional deficiency studies and current null mutant technologies. Rat embryos made deficient in retinoids during gestational d 11.5-13.5 exhibit specific cardiac, limb, ocular and nervous system deficits. That many of the anomalies previously reported in retinoid receptor null mutants are observed in deficiency confirms that ligand-receptor interactions are essential for embryonic development. Other defects are novel, reemphasizing the functional redundancy of retinoid receptors and that retinoid receptors have multiple and overlapping contributions to morphogenesis.
A44: =HYPERLINK("http://www.ncbi.nlm.nih.gov/pubmed/" & I44,I44) -> 8075435 | B44: =(LEN($J44) - LEN(SUBSTITUTE(LOWER($J44),LOWER(B$3),"")))/LEN(B$3) -> 7 | C44: =(LEN($J44) - LEN(SUBSTITUTE(LOWER($J44),LOWER(C$3),"")))/LEN(C$3) -> 4 | D44: =(LEN($J44) - LEN(SUBSTITUTE(LOWER($J44),LOWER(D$3),"")))/LEN(D$3) -> 0 | E44: =SUM(B44:D44) -> 11 | F44: 1994 | G44: Teratogenic risk with etretinate and acitretin treatment. | H44: Geiger | I44: 8075435 | J44: Teratogenic risk with etretinate and acitretin treatment. Abstract: Etretinate (Tigason, Tegison) and its active metabolite acitretin (Neotigason, Soriatane) are known teratogens. Pregnancy should be avoided during treatment and until 2 years after treatment discontinuation. The question is discussed whether a dose or a blood concentration of the drug below which there is no teratogenic risk can be determined. Animal experimental and human pharmacokinetic data are reviewed. An evaluation of the outcomes of pregnancies which occurred in mothers exposed to etretinate or acitretin was performed. A threshold dose in human therapy below which there is no risk of congenital malformation cannot be determined based on animal experimental data. With regard to pharmacokinetics, there are currently no data suggesting that blood levels of the drug below the detection limit of 2 ng/ml are associated with a teratogenic risk. The most useful information is given by reports in women who were exposed to either retinoid before or during pregnancy. The data indicate that the risk of spontaneous abortion or congenital malformation is high when the drug is administered during the first trimester of pregnancy. After treatment discontinuation, the risk is low since the number of abnormalities seems not to exceed those observed in a general population. There are currently no available data which suggest that the pregnancy warnings are inappropriate in terms of duration of contraception.
A45: =HYPERLINK("http://www.ncbi.nlm.nih.gov/pubmed/" & I45,I45) -> 23559397 | B45: =(LEN($J45) - LEN(SUBSTITUTE(LOWER($J45),LOWER(B$3),"")))/LEN(B$3) -> 8 | C45: =(LEN($J45) - LEN(SUBSTITUTE(LOWER($J45),LOWER(C$3),"")))/LEN(C$3) -> 2 | D45: =(LEN($J45) - LEN(SUBSTITUTE(LOWER($J45),LOWER(D$3),"")))/LEN(D$3) -> 0 | E45: =SUM(B45:D45) -> 10 | F45: 2013 | G45: Important controversies associated with isotretinoin therapy for acne. | H45: Wolverton | I45: 23559397 | J45: Important controversies associated with isotretinoin therapy for acne. Abstract: Isotretinoin is a remarkably effective drug for severe, recalcitrant acne vulgaris. Soon after the drugs release in the early 1980s, a number of important adverse effects were reported subsequently leading to a variety of medical and medicolegal controversies. Three of these controversies will be highlighted concerning the putative role of isotretinoin in (1) depression and suicide, (2) inflammatory bowel disease, and (3) iPledge and pregnancy prevention programs. It appears that a very small subset of patients receiving isotretinoin for acne are at risk for depression, which is very manageable provided there is adequate patient awareness of the possibility, maximum communication between the patient and physician, and cessation of therapy if clinically important depression occurs (after which the depression rapidly resolves in a week or less). Multiple controlled studies actually suggest a very favorable effect of isotretinoin on depression and anxiety common in the population requiring isotretinoin. With regard to inflammatory bowel disease, in just one study, only ulcerative colitis association with isotretinoin reached statistical significance. The actual incidence of this association is strikingly low. Finally, it is clear that even the most recent pregnancy prevention program (iPledge) is no more successful than prior programs; there will likely always be a small number of female patients becoming pregnant while receiving isotretinoin for acne vulgaris.
A46: =HYPERLINK("http://www.ncbi.nlm.nih.gov/pubmed/" & I46,I46) -> 12461777 | B46: =(LEN($J46) - LEN(SUBSTITUTE(LOWER($J46),LOWER(B$3),"")))/LEN(B$3) -> 10 | C46: =(LEN($J46) - LEN(SUBSTITUTE(LOWER($J46),LOWER(C$3),"")))/LEN(C$3) -> 0 | D46: =(LEN($J46) - LEN(SUBSTITUTE(LOWER($J46),LOWER(D$3),"")))/LEN(D$3) -> 0 | E46: =SUM(B46:D46) -> 10 | F46: 2003 | G46: Induction of senescence-associated growth inhibitors in the tumor-suppressive function of retinoids. | H46: Roninson | I46: 12461777 | J46: Induction of senescence-associated growth inhibitors in the tumor-suppressive function of retinoids. Abstract: Retinoids, physiological regulators of cell growth and differentiation, are used in the treatment or chemoprevention of several malignant diseases. This class of compounds can induce growth arrest or apoptosis in tumor cells. Permanent growth arrest of retinoid-treated cells is often assumed to result from retinoid-induced differentiation. Recent studies in breast carcinoma and neuroblastoma cells demonstrated that retinoids can stop tumor cell growth through the program of senescence rather than differentiation. Retinoid-induced tumor suppression is associated with the induction of multiple intracellular and secreted growth-inhibitory proteins. Most of these proteins were also found to be upregulated in senescent cells. The induction of senescence-associated growth inhibitors appears to be an indirect effect of retinoids. Elucidation of the mechanisms responsible for the induction of growth-inhibitory genes in retinoid-treated cells should help in developing agents that would mimic the antiproliferative effect of retinoids in retinoid-insensitive cancers.
A47: =HYPERLINK("http://www.ncbi.nlm.nih.gov/pubmed/" & I47,I47) -> 9478273 | B47: =(LEN($J47) - LEN(SUBSTITUTE(LOWER($J47),LOWER(B$3),"")))/LEN(B$3) -> 10 | C47: =(LEN($J47) - LEN(SUBSTITUTE(LOWER($J47),LOWER(C$3),"")))/LEN(C$3) -> 0 | D47: =(LEN($J47) - LEN(SUBSTITUTE(LOWER($J47),LOWER(D$3),"")))/LEN(D$3) -> 0 | E47: =SUM(B47:D47) -> 10 | F47: 1997 | G47: Dietary retinoids and carotenoids in rodent models of mammary tumorigenesis. | H47: Moon | I47: 9478273 | J47: Dietary retinoids and carotenoids in rodent models of mammary tumorigenesis. Abstract: In this review of the scientific literature the relationship between retinoids, carotenoids, and mammary carcinogenesis is examined. Several retinoids have shown promise as chemopreventive agents against chemically induced mammary carcinogenesis in mice and especially in rats. The most promising retinoids are retinyl acetate (RA) and N-(4-hydroxyphenyl)retinamide (4-HPR, fenretinide). In rats, dietary administration of these retinoids reduced tumor incidence and multiplicity, and increased the latency of DMBA or MNU-induced mammary cancers. In mice, 4-HPR reduced the number of hyperplastic alveolar nodules and the number of tumors in MTV- and MTV+ mice, respectively. Among retinoids, 4-HPR is at present the most promising analogue, due to its ability to concentrate in the mammary gland. The combination of 4-HPR with tamoxifen not only is more effective in suppressing breast cancer than either agent alone, but also inhibits the appearance of subsequent cancers following the surgical removal of the first tumor. These studies suggest that retinoids, like tamoxifen, may be applicable to the prevention of contralateral breast cancer in women who underwent breast cancer surgery. It is also becoming evident that differentiation therapy and chemoprevention can become attractive alternative approaches to intensive cytotoxic chemotherapy. The role of carotenoids in the prevention of mammary carcinogenesis, however, is ambiguous. Poor absorption and low levels of carotenoids that reach the target tissues complicate interpretation of data in rodent models of mammary carcinogenesis. Very few animal studies are presently available in which purified carotenoids were found effective against mammary carcinogenesis. These results do not justify undertaking clinical evaluation of individual carotenoids against breast cancer at this time.
A48: =HYPERLINK("http://www.ncbi.nlm.nih.gov/pubmed/" & I48,I48) -> 9201819 | B48: =(LEN($J48) - LEN(SUBSTITUTE(LOWER($J48),LOWER(B$3),"")))/LEN(B$3) -> 8 | C48: =(LEN($J48) - LEN(SUBSTITUTE(LOWER($J48),LOWER(C$3),"")))/LEN(C$3) -> 2 | D48: =(LEN($J48) - LEN(SUBSTITUTE(LOWER($J48),LOWER(D$3),"")))/LEN(D$3) -> 0 | E48: =SUM(B48:D48) -> 10 | F48: 1997 | G48: Vitamin A and its congeners. | H48: Monga | I48: 9201819 | J48: Vitamin A and its congeners. Abstract: Vitamin A (retinol) is a fat-soluble vitamin that is necessary for cell growth and differentiation. Excess vitamin A has been associated with teratogenic effects in animals and humans. Because vitamin A deficiency is very uncommon in the industrialized world, the current recommendation is that routine vitamin A supplementation is not necessary. If vitamin A supplements are used, they should be limited to less than 5,000 IU per day. Systemic administration of the naturally occurring retinoid tretinoin has been associated with birth defects, fetal resorption, and stillbirths in animals; however, topical use is not associated with increased birth defects and is classified as a category B drug during pregnancy. The synthetic retinoids isotretinoin, etretinate, and etretin are strictly contraindicated during pregnancy (category X) as they have been associated with teratogenic syndromes in humans. In addition, owing to the prolonged elimination half-life of aromatic retinoids, effective contraception should be used for at least 2 years following discontinuation of treatment with these drugs.
A49: =HYPERLINK("http://www.ncbi.nlm.nih.gov/pubmed/" & I49,I49) -> 8137334 | B49: =(LEN($J49) - LEN(SUBSTITUTE(LOWER($J49),LOWER(B$3),"")))/LEN(B$3) -> 10 | C49: =(LEN($J49) - LEN(SUBSTITUTE(LOWER($J49),LOWER(C$3),"")))/LEN(C$3) -> 0 | D49: =(LEN($J49) - LEN(SUBSTITUTE(LOWER($J49),LOWER(D$3),"")))/LEN(D$3) -> 0 | E49: =SUM(B49:D49) -> 10 | F49: 1994 | G49: Prospects of chemoprevention of human cancers with the synthetic retinoid fenretinide. | H49: Costa | I49: 8137334 | J49: Prospects of chemoprevention of human cancers with the synthetic retinoid fenretinide. Abstract: Fenretinide or N-(4-hydroxyphenyl)retinamide is a vitamin A analogue synthesized in the United States in the late 1960s. This retinoid shows a preferential accumulation in breast instead of liver, is effective in the inhibition of chemically induced mammary carcinoma in rats, and has proved to be less toxic than many other vitamin A analogues. The Milan Cancer Institute has put a particular effort in this molecule in both the experimental and clinical fields. We have demonstrated, in animals and humans, that fenretinide induces a rapid reduction of retinol plasma concentration, that its blood levels remain constant during administration for as long as 5 years, and that the drug is able to accumulate in the human breast. To date, 2969 stage I breast cancer patients have been randomized to evaluate the efficacy of this retinoid to prevent contralateral new primaries, 709 subjects have been accrued in a prevention trial of basal cell carcinoma of the head and neck, and 153 patients entered a study the preliminary results of which already show the capability of fenretinide to prevent recurrences and new localizations of oral leukoplakia. Further studies on fenretinide will be aimed at evaluating its preventive efficacy in superficial bladder and prostate cancers and at exploring possible synergism with tamoxifen and interferons in breast cancer and skin cancer, respectively.
A50: =HYPERLINK("http://www.ncbi.nlm.nih.gov/pubmed/" & I50,I50) -> 7808027 | B50: =(LEN($J50) - LEN(SUBSTITUTE(LOWER($J50),LOWER(B$3),"")))/LEN(B$3) -> 10 | C50: =(LEN($J50) - LEN(SUBSTITUTE(LOWER($J50),LOWER(C$3),"")))/LEN(C$3) -> 0 | D50: =(LEN($J50) - LEN(SUBSTITUTE(LOWER($J50),LOWER(D$3),"")))/LEN(D$3) -> 0 | E50: =SUM(B50:D50) -> 10 | F50: 1994 | G50: Breast cancer and fenretinide, an analogue of vitamin A. | H50: Cobleigh | I50: 7808027 | J50: Breast cancer and fenretinide, an analogue of vitamin A. Abstract: Preclinical studies make fenretinide attractive for prevention and treatment of breast cancer. It inhibits mammary gland end bud formation in developing animals. Carcinogen-induced mammary cancer is suppressed by fenretinide, both at early and late stages of carcinogenesis, in young and mature rats. Fenretinide causes regression of invasive rat mammary cancer. Cytostatic activity has been demonstrated against human breast cancer cell lines. Autocrine stimulation of human breast cancer cell lines by tgf-alpha, insulin-like growth factors I and II is significantly abrogated by fenretinide. The human half-life is 24 hours. Absorption is markedly affected by meal content. Serum levels of 1 mM are achieved at doses of 200 mg/day. This dose significantly suppresses serum IGF-I levels in women. This concentration is capable of suppressing human breast cancer growth in vitro. A 3-day drug holiday is given each month in order to restore serum retinol levels. Under these circumstances, fenretinide is well tolerated. A phase III trial evaluating the efficacy of fenretinide for breast cancer prevention in high-risk women has been completed. Tamoxifen enhances the effectiveness of fenretinide in carcinogenesis models. The combination can be safely administered to women. A phase III adjuvant trial of tamoxifen, with or without fenretinide will be conducted in the United States.
A51: =HYPERLINK("http://www.ncbi.nlm.nih.gov/pubmed/" & I51,I51) -> 1551141 | B51: =(LEN($J51) - LEN(SUBSTITUTE(LOWER($J51),LOWER(B$3),"")))/LEN(B$3) -> 10 | C51: =(LEN($J51) - LEN(SUBSTITUTE(LOWER($J51),LOWER(C$3),"")))/LEN(C$3) -> 0 | D51: =(LEN($J51) - LEN(SUBSTITUTE(LOWER($J51),LOWER(D$3),"")))/LEN(D$3) -> 0 | E51: =SUM(B51:D51) -> 10 | F51: 1992 | G51: Retinoids as chemopreventive agents for breast cancer. | H51: Moon | I51: 1551141 | J51: Retinoids as chemopreventive agents for breast cancer. Abstract: Although several retinoids have been evaluated for prevention of mammary carcinogenesis in rats and mice, retinyl acetate (RA) and N-(4-hydroxyphenyl)retinamide (4-HPR) proved most effective. In rats, dietary administration of the retinoids reduced the incidence and number, and increased the latency of N-methyl-N-nitrosourea (MNU)-induced mammary cancers. 4-HPR reduced the number of hyperplastic alveolar nodules (HAN) in MTV- mice and the number of tumors in MTV+ mice. Other studies indicate that the synergistic effect of retinoid administration and hormonal deprivation is more efficacious in prevention of MNU-induced mammary cancer than either modality alone. Furthermore, retinoids alone and the combination of retinoid and tamoxifen inhibit the appearance of mammary cancers following the surgical removal of the first cancer as well as inhibit the growth of established cancers. Again, the combined modality was the most effective. Retinoids also exert an antiproliferative effect upon the mammary epithelium in vivo, which is represented morphologically by a bare duct system with little branching, end buds, and few, if any, alveoli. In organ culture, retinoids inhibit mammary end bud differentiation and proliferation induced by insulin and prolactin or carcinogens.
A52: =HYPERLINK("http://www.ncbi.nlm.nih.gov/pubmed/" & I52,I52) -> 2672772 | B52: =(LEN($J52) - LEN(SUBSTITUTE(LOWER($J52),LOWER(B$3),"")))/LEN(B$3) -> 10 | C52: =(LEN($J52) - LEN(SUBSTITUTE(LOWER($J52),LOWER(C$3),"")))/LEN(C$3) -> 0 | D52: =(LEN($J52) - LEN(SUBSTITUTE(LOWER($J52),LOWER(D$3),"")))/LEN(D$3) -> 0 | E52: =SUM(B52:D52) -> 10 | F52: 1989 | G52: Retinol (vitamin A) and the neonate: special problems of the human premature infant. | H52: Zachman | I52: 2672772 | J52: Retinol (vitamin A) and the neonate: special problems of the human premature infant. Abstract: Retinol stores accumulate in fetal tissue during gestation. Hence, the premature infant faces extrauterine adaptation with less total reserves of retinol than does the term infant. Retinol-binding protein in serum is also lower in the premature infant population. The parenteral retinol supplementation frequently required for these infants has only recently become adequate by the finding of methods to avoid large losses of retinol onto intravenous tubing. Retinol is an essential vitamin for epithelial cell function; nearly 40% of lung cells are of epithelial origin. The premature infants lung often is the initial site of difficulties during extrauterine adaptation, and respiratory system epithelial-cell damage and chronic lung disease frequently develop. Because these infants have associated low retinol reserves, retinol supplementation to help repair pulmonary injury is being considered. Some of these relationships are beginning to be clarified by basic research on the metabolism and function of retinol in lung.
A53: =HYPERLINK("http://www.ncbi.nlm.nih.gov/pubmed/" & I53,I53) -> 770206 | B53: =(LEN($J53) - LEN(SUBSTITUTE(LOWER($J53),LOWER(B$3),"")))/LEN(B$3) -> 9 | C53: =(LEN($J53) - LEN(SUBSTITUTE(LOWER($J53),LOWER(C$3),"")))/LEN(C$3) -> 0 | D53: =(LEN($J53) - LEN(SUBSTITUTE(LOWER($J53),LOWER(D$3),"")))/LEN(D$3) -> 1 | E53: =SUM(B53:D53) -> 10 | F53: 1976 | G53: Prevention of chemical carcinogenesis by vitamin A and its synthetic analogs (retinoids). | H53: Sporn | I53: 770206 | J53: Prevention of chemical carcinogenesis by vitamin A and its synthetic analogs (retinoids). Abstract: An approach to chemoprevention of common forms of epithelial cancer, during the period of preneoplasia, is described. Vitamin A and its synthetic analogs (retinoids) are potent agents for control of cell differentiation in many epithelial tissues. Direct effects of retinoids on normal and preneoplastic cell differentiation can be measured in organ culture. In experimental animals, deficiency of dietary retinoids enhances susceptibility to chemical carcinogenesis. Natural retinoids, fed at high dietary levels, have some ability to prevent chemical carcinogenesis in epithelial tissues of bronchi, trachea, stomach, uterus, and skin of experimental animals. However, natural retinoids have limited usefulness for chemoprevention of cancer because of inadequate tissue distribution and excessive toxicity. Synthetic retinoids have been made and shown to be more potent and less toxic for prevention of cancer in animals. Several structural modifications of the ring and terminal portions of the retinoid molecule have significant biological activity; modification of the side chain has been more difficult. The potential future usefulness of this approach to cancer prevention in man will depend on further synthetic modification of the retinoid molecule.
A54: =HYPERLINK("http://www.ncbi.nlm.nih.gov/pubmed/" & I54,I54) -> 24480385 | B54: =(LEN($J54) - LEN(SUBSTITUTE(LOWER($J54),LOWER(B$3),"")))/LEN(B$3) -> 9 | C54: =(LEN($J54) - LEN(SUBSTITUTE(LOWER($J54),LOWER(C$3),"")))/LEN(C$3) -> 0 | D54: =(LEN($J54) - LEN(SUBSTITUTE(LOWER($J54),LOWER(D$3),"")))/LEN(D$3) -> 0 | E54: =SUM(B54:D54) -> 9 | F54: 2014 | G54: Retinoids and breast cancer: from basic studies to the clinic and back again. | H54: Garattini | I54: 24480385 | J54: Retinoids and breast cancer: from basic studies to the clinic and back again. Abstract: All-trans retinoic acid (ATRA) is the most important active metabolite of vitamin A controlling segmentation in the developing organism and the homeostasis of various tissues in the adult. ATRA as well as natural and synthetic derivatives, collectively known as retinoids, are also promising agents in the treatment and chemoprevention of different types of neoplasia including breast cancer. The major aim of the present article is to review the basic knowledge acquired on the anti-tumor activity of classic retinoids, like ATRA, in mammary tumors, focusing on the underlying cellular and molecular mechanisms and the determinants of retinoid sensitivity/resistance. In the first part, an analysis of the large number of pre-clinical studies available is provided, stressing the point that this has resulted in a limited number of clinical trials. This is followed by an overview of the knowledge acquired on the role played by the retinoid nuclear receptors in the anti-tumor responses triggered by retinoids. The body of the article emphasizes the potential of ATRA and derivatives in modulating and in being influenced by some of the most relevant cellular pathways involved in the growth and progression of breast cancer. We review the studies centering on the cross-talk between retinoids and some of the growth-factor pathways which control the homeostasis of the mammary tumor cell. In addition, we consider the cross-talk with relevant intra-cellular second messenger pathways. The information provided lays the foundation for the development of rational and retinoid-based therapeutic strategies to be used for the management of breast cancer.
A55: =HYPERLINK("http://www.ncbi.nlm.nih.gov/pubmed/" & I55,I55) -> 22742601 | B55: =(LEN($J55) - LEN(SUBSTITUTE(LOWER($J55),LOWER(B$3),"")))/LEN(B$3) -> 0 | C55: =(LEN($J55) - LEN(SUBSTITUTE(LOWER($J55),LOWER(C$3),"")))/LEN(C$3) -> 9 | D55: =(LEN($J55) - LEN(SUBSTITUTE(LOWER($J55),LOWER(D$3),"")))/LEN(D$3) -> 0 | E55: =SUM(B55:D55) -> 9 | F55: 2012 | G55: Vitamin A and carotenoids during pregnancy and maternal, neonatal and infant health outcomes: a systematic review and meta-analysis. | H55: Thorne-Lyman | I55: 22742601 | J55: Vitamin A and carotenoids during pregnancy and maternal, neonatal and infant health outcomes: a systematic review and meta-analysis. Abstract: Vitamin A (VA) deficiency during pregnancy is common in low-income countries and a growing number of intervention trials have examined the effects of supplementation during pregnancy on maternal, perinatal and infant health outcomes. We systematically reviewed the literature to identify trials isolating the effects of VA or carotenoid supplementation during pregnancy on maternal, fetal, neonatal and early infant health outcomes. Meta-analysis was used to pool effect estimates for outcomes with more than one comparable study. We used GRADE criteria to assess the quality of individual studies and the level of evidence available for each outcome. We identified 23 eligible trials of which 17 had suitable quality for inclusion in meta-analyses. VA or beta-carotene (βC) supplementation during pregnancy did not have a significant overall effect on birthweight indicators, preterm birth, stillbirth, miscarriage or fetal loss. Among HIV-positive women, supplementation was protective against low birthweight (lt;2.5 kg) [risk ratio (RR) = 0.79 [95% confidence interval (CI) 0.64, 0.99]], but no significant effects on preterm delivery or small-for-gestational age were observed. Pooled analysis of the results of three large randomised trials found no effects of VA supplementation on neonatal/infant mortality, or pregnancy-related maternal mortality (random-effects RR = 0.86 [0.60, 1.24]) although high heterogeneity was observed in the maternal mortality estimate (I(2) = 74%, P = 0.02). VA supplementation during pregnancy was found to improve haemoglobin levels and reduce anaemia risk (lt;11.0 g/dL) during pregnancy (random-effects RR = 0.81 [0.69, 0.94]), also with high heterogeneity (I(2) = 52%, P = 0.04). We found no effect of VA/βC supplementation on mother-to-child HIV transmission in pooled analysis, although some evidence suggests that it may increase transmission. There is little consistent evidence of benefit of maternal supplementation with VA or βC during pregnancy on maternal or infant mortality. While there may be beneficial effects for certain outcomes, there may also be potential for harm through increased HIV transmission in some populations.
A56: =HYPERLINK("http://www.ncbi.nlm.nih.gov/pubmed/" & I56,I56) -> 22050373 | B56: =(LEN($J56) - LEN(SUBSTITUTE(LOWER($J56),LOWER(B$3),"")))/LEN(B$3) -> 7 | C56: =(LEN($J56) - LEN(SUBSTITUTE(LOWER($J56),LOWER(C$3),"")))/LEN(C$3) -> 2 | D56: =(LEN($J56) - LEN(SUBSTITUTE(LOWER($J56),LOWER(D$3),"")))/LEN(D$3) -> 0 | E56: =SUM(B56:D56) -> 9 | F56: 2012 | G56: Implementation of the harmonized EU isotretinoin Pregnancy Prevention Programme: a questionnaire survey among European regulatory agencies. | H56: Crijns | I56: 22050373 | J56: Implementation of the harmonized EU isotretinoin Pregnancy Prevention Programme: a questionnaire survey among European regulatory agencies. Abstract: BACKGROUND : There is little information on the status of the implementation of the isotretinoin Pregnancy Prevention Programme (PPP) in the EU, and on compliance with this programme by the regulatory agencies. OBJECTIVE : The aim of the study was to obtain information on implementation of the harmonized PPP of isotretinoin in the EU member states plus Norway and Iceland. MATERIALS AND METHODS : In January 2009, a questionnaire (request for non-urgent information [NUI]) was sent to all 25 EU member states, plus Norway and Iceland, to collect information on the implementation status of the PPP and its effectiveness. RESULTS : The response rate was 82% (22 of the 27 countries). In 21 of the 27 member states, isotretinoin is marketed and the PPP is in force, and in 18 of the 22 responding countries, the total required elements (seven) following a formal EU review are incorporated in the PPP. Seven member states had additional measures in place. In spite of implementation of the PPP and additional measures, a total of 143 isotretinoin-exposed pregnancies have been reported in 16 of the 22 responding member states since implementation of the harmonized PPP. CONCLUSIONS : Despite implementation of the isotretinoin PPP in most member states, isotretinoin-exposed pregnancies were reported. This has led some member states to implement additional measures to the PPP, resulting in inconsistency with the approach agreed in 2003 following the European-wide review. It has been further suggested that common elements should be developed for PPPs for all medicines that are known to carry a high teratogenic risk.
A57: =HYPERLINK("http://www.ncbi.nlm.nih.gov/pubmed/" & I57,I57) -> 21621637 | B57: =(LEN($J57) - LEN(SUBSTITUTE(LOWER($J57),LOWER(B$3),"")))/LEN(B$3) -> 9 | C57: =(LEN($J57) - LEN(SUBSTITUTE(LOWER($J57),LOWER(C$3),"")))/LEN(C$3) -> 0 | D57: =(LEN($J57) - LEN(SUBSTITUTE(LOWER($J57),LOWER(D$3),"")))/LEN(D$3) -> 0 | E57: =SUM(B57:D57) -> 9 | F57: 2012 | G57: Maternal-fetal transfer and metabolism of vitamin A and its precursor β-carotene in the developing tissues. | H57: Spiegler | I57: 21621637 | J57: Maternal-fetal transfer and metabolism of vitamin A and its precursor β-carotene in the developing tissues. Abstract: The requirement of the developing mammalian embryo for retinoic acid is well established. Retinoic acid, the active form of vitamin A, can be generated from retinol and retinyl ester obtained from food of animal origin, and from carotenoids, mainly β-carotene, from vegetables and fruits. The mammalian embryo relies on retinol, retinyl ester and β-carotene circulating in the maternal bloodstream for its supply of vitamin A. The maternal-fetal transfer of retinoids and carotenoids, as well as the metabolism of these compounds in the developing tissues are still poorly understood. The existing knowledge in this field has been summarized in this review in reference to our basic understanding of the transport and metabolism of retinoids and carotenoids in adult tissues. The need for future research on the metabolism of these essential lipophilic nutrients during development is highlighted. This article is part of a Special Issue entitled: Retinoid and Lipid Metabolism.
A58: =HYPERLINK("http://www.ncbi.nlm.nih.gov/pubmed/" & I58,I58) -> 14585058 | B58: =(LEN($J58) - LEN(SUBSTITUTE(LOWER($J58),LOWER(B$3),"")))/LEN(B$3) -> 9 | C58: =(LEN($J58) - LEN(SUBSTITUTE(LOWER($J58),LOWER(C$3),"")))/LEN(C$3) -> 0 | D58: =(LEN($J58) - LEN(SUBSTITUTE(LOWER($J58),LOWER(D$3),"")))/LEN(D$3) -> 0 | E58: =SUM(B58:D58) -> 9 | F58: 2003 | G58: Fenretinide: a prototype cancer prevention drug. | H58: Malone | I58: 14585058 | J58: Fenretinide: a prototype cancer prevention drug. Abstract: Fenretinide (N-4-hydroxyphenylretinamide [4-HPR]) is a synthetic retinoid that has been examined in in vitro assays, preclinical animal models and clinical trials as a cancer chemopreventive agent. Its pharmacology, toxicity and mechanisms of action initially suggested an increased therapeutic index relative to native retinoids for the control of tumours of the breast, prostate, bladder, colon, cervix and head and neck. Although fenretinide at the doses and schedules used in several pivotal Phase II and III clinical trials has not been proven to be efficacious in reducing the incidence of cancer or in retarding the development of preneoplastic lesions, encouraging observations regarding unanticipated preventative activity, such as for ovarian cancer control, have arisen from these studies. Research in cancer therapy and the elucidation of molecular pathways activated by fenretinide have also yielded clues about how this agent might be better used in a prevention setting. Current trials are underway to re-examine both dose and schedule of fenretinide administration as well as the target tissues of interest. Investigations of potential synergism between fenretinide and other candidate chemopreventative molecules with complementary mechanisms of action may support future assessments of this prototype cancer prevention drug or its newer analogues.
A59: =HYPERLINK("http://www.ncbi.nlm.nih.gov/pubmed/" & I59,I59) -> 11434448 | B59: =(LEN($J59) - LEN(SUBSTITUTE(LOWER($J59),LOWER(B$3),"")))/LEN(B$3) -> 9 | C59: =(LEN($J59) - LEN(SUBSTITUTE(LOWER($J59),LOWER(C$3),"")))/LEN(C$3) -> 0 | D59: =(LEN($J59) - LEN(SUBSTITUTE(LOWER($J59),LOWER(D$3),"")))/LEN(D$3) -> 0 | E59: =SUM(B59:D59) -> 9 | F59: 2001 | G59: Chemoprevention of breast cancer with fenretinide. | H59: Torrisi | I59: 11434448 | J59: Chemoprevention of breast cancer with fenretinide. Abstract: Chemoprevention of cancer represents a challenge for oncology during this new millennium. Substantial advances have been accomplished in the last decade, especially for primary and secondary prevention of breast cancer. In addition to tamoxifen, raloxifene and other selective estrogen receptor modulators, retinoids are among the most promising agents, given their ability to inhibit mammary carcinogenesis in preclinical models. Fenretinide, the synthetic amide of retinoic acid, inhibits cell growth mostly through the induction of apoptosis with mechanisms which may partly involve the retinoid receptors. Because it has a favourable toxicological profile, fenretinide has been extensively investigated in clinical trials. A large randomised phase III trial for secondary breast cancer prevention has been recently carried out in Italy. Results showed a reduction of second breast malignancies in premenopausal women. In addition, a significant decrease of circulating insulin-like growth factor (IGF)-1, a known risk factor for premenopausal breast cancer, was observed after 1 year of fenretinide administration in premenopausal women with breast cancer. Ongoing studies on the validation of the circulating IGF-1 as a surrogate endpoint biomarker of fenretinide activity and on the effectiveness of the combination with low dose tamoxifen may provide further insight into the future clinical application of fenretinide.
A60: =HYPERLINK("http://www.ncbi.nlm.nih.gov/pubmed/" & I60,I60) -> 9891904 | B60: =(LEN($J60) - LEN(SUBSTITUTE(LOWER($J60),LOWER(B$3),"")))/LEN(B$3) -> 7 | C60: =(LEN($J60) - LEN(SUBSTITUTE(LOWER($J60),LOWER(C$3),"")))/LEN(C$3) -> 2 | D60: =(LEN($J60) - LEN(SUBSTITUTE(LOWER($J60),LOWER(D$3),"")))/LEN(D$3) -> 0 | E60: =SUM(B60:D60) -> 9 | F60: 1998 | G60: Transdermal absorption of topical anti-acne agents in man; review of clinical pharmacokinetic data. | H60: van Hoogdalem | I60: 9891904 | J60: Transdermal absorption of topical anti-acne agents in man; review of clinical pharmacokinetic data. Abstract: BACKGROUND : Apart from oral drug treatment, drug therapy in acne vulgaris comprises topical treatment with agents with a primarily keratolytic action (e.g. tretinoin and benzoylperoxide), and with antibiotics (clindamycin, erythromycin, and erythromycin-zinc complex). The acne grade in the particular patient usually determines the selection of the preferred route of administration, viz. topical or oral, or a combination of both, and topical treatment is usually preferred in mild to moderate acne. The fact that a topically applied compound may also become systemically available to a quantifiable extent, is not generally considered. AIM : The present paper reviews the clinical data on transdermal uptake of anti-acne agents in man, also with respect to their relevance for daily clinical practice. OUTCOME : The majority of published data on transdermal penetration of topical anti-acne agents focuses on the retinoid tretinoin, and on the antimicrobial agent clindamycin. This interest emerges from the fact that these agents have been associated with embryotoxicity/teratogenicity, and pseudomembranous colitis, respectively. For both compounds the extent of systemic availability after topical application is low, viz. 5-7% and 8%, respectively, at its highest. The height and variability in endogenous retinoid levels is very likely to outweigh any contribution of exogenously applied tretinoin, but a full consensus on the safe use of topical tretinoin in pregnancy is still lacking. With respect to clindamycin, the suggested association between its topical use and the occurrence of pseudomembranous colitis appears not to be of clinical relevance. In order to reduce systemic exposure to clindamycin as much as possible, topical application of clindamycin phosphate is to be preferred over clindamycin hydrochloride salt. Regarding other topical anti-acne agents, it has been suggested that topical zinc-erythromycin is to be preferred over erythromycin, both from clinical efficacy and safety viewpoints. With respect to the currently used compounds like benzoylperoxide, azelaic acid, and adapalene, available clinical pharmacokinetic data are scarce, and significant safety concerns did not emerge as yet. CONCLUSION : The limited transdermal uptake of topical anti-acne agents underpins their safe use in daily clinical practice. With respect to topical retinoids, formal consensus is lacking regarding their use in pregnancy.
A61: =HYPERLINK("http://www.ncbi.nlm.nih.gov/pubmed/" & I61,I61) -> 9279062 | B61: =(LEN($J61) - LEN(SUBSTITUTE(LOWER($J61),LOWER(B$3),"")))/LEN(B$3) -> 9 | C61: =(LEN($J61) - LEN(SUBSTITUTE(LOWER($J61),LOWER(C$3),"")))/LEN(C$3) -> 0 | D61: =(LEN($J61) - LEN(SUBSTITUTE(LOWER($J61),LOWER(D$3),"")))/LEN(D$3) -> 0 | E61: =SUM(B61:D61) -> 9 | F61: 1997 | G61: Retinoyl beta-glucuronide: a biologically active form of vitamin A. | H61: Barua | I61: 9279062 | J61: Retinoyl beta-glucuronide: a biologically active form of vitamin A. Abstract: Retinoyl beta-glucuronide is a naturally occurring, biologically active metabolite of vitamin A. Although retinoyl beta-glucuronide is regarded as a detoxification product of retinoic acid, it plays several roles in the functions of vitamin A. It can serve as a source of retinoic acid, and it may be a vehicle for transport of retinoic acid to target tissues. Topically applied retinoyl beta-glucuronide is comparable in efficacy to retinoic acid in the treatment of acne in humans, without the same side effects. Retinoyl beta-glucuronide may or may not be teratogenic, depending on the mode of administration and the species in which it is used. It may be a valuable therapeutic compound for the treatment of skin disorders and certain types of cancers.
A62: =HYPERLINK("http://www.ncbi.nlm.nih.gov/pubmed/" & I62,I62) -> 8538183 | B62: =(LEN($J62) - LEN(SUBSTITUTE(LOWER($J62),LOWER(B$3),"")))/LEN(B$3) -> 9 | C62: =(LEN($J62) - LEN(SUBSTITUTE(LOWER($J62),LOWER(C$3),"")))/LEN(C$3) -> 0 | D62: =(LEN($J62) - LEN(SUBSTITUTE(LOWER($J62),LOWER(D$3),"")))/LEN(D$3) -> 0 | E62: =SUM(B62:D62) -> 9 | F62: 1995 | G62: Retinoids and chemoprevention: clinical and basic studies. | H62: Lippman | I62: 8538183 | J62: Retinoids and chemoprevention: clinical and basic studies. Abstract: Retinoids, which include natural vitamin A (retinol) and its esters and synthetic analogues, are the best-studied class of agents in chemoprevention. There are more than 4,000 different retinoids which have a wide spectrum of preclinical activities, structures, pharmacological profiles, tissue distributions, receptor specificities, and toxicities. A number of retinoids have significant activity in many in vivo experimental systems including skin, bladder, lung, breast and oral carcinogenesis. In clinical trials, several retinoids have achieved significant activity in the reversal of head and neck, skin, and cervical premalignancy, and in the prevention of second primary tumors associated with head and neck, skin, and non-small cell lung cancer. Since 1984, our group has conducted a series of clinical trials to explore the chemopreventive potential of 13-cis-retinoic acid (13cRA) in the aerodigestive tract. We have conducted two consecutive randomized studies in subjects with premalignant lesions of the oral cavity. These studies showed that high-dose 13cRA alone can achieve significant short-term reversal of oral premalignancy, and that high-dose followed by low-dose 13cRA can maintain suppression of oral carcinogenesis. Three other randomized trials have confirmed significant retinoid activity in this human carcinogenic system. We also developed a randomized, placebo-controlled trial of adjuvant high-dose 13cRA in patients with head and neck cancer. Second primary tumor development was significantly decreased in the 13cRA group, but 13cRA had no impact on primary disease recurrence or survival. This presentation will update the current status of clinical trials and correlative laboratory studies of potential intermediate endpoint biomarkers in retinoid chemoprevention of aerodigestive tract carcinogenesis.
A63: =HYPERLINK("http://www.ncbi.nlm.nih.gov/pubmed/" & I63,I63) -> 7544060 | B63: =(LEN($J63) - LEN(SUBSTITUTE(LOWER($J63),LOWER(B$3),"")))/LEN(B$3) -> 9 | C63: =(LEN($J63) - LEN(SUBSTITUTE(LOWER($J63),LOWER(C$3),"")))/LEN(C$3) -> 0 | D63: =(LEN($J63) - LEN(SUBSTITUTE(LOWER($J63),LOWER(D$3),"")))/LEN(D$3) -> 0 | E63: =SUM(B63:D63) -> 9 | F63: 1995 | G63: Human cervical cancer. Retinoids, interferon and human papillomavirus. | H63: Eckert | I63: 7544060 | J63: Human cervical cancer. Retinoids, interferon and human papillomavirus. Abstract: Our studies highlight the importance of dietary vitamin A (retinol) and other retinoids in maintaining normal cervical cell function and in inhibiting the growth of cervical tumors. Based on our results we conclude that 1) HPV 16-immortalization enhances cervical cell sensitivity to retinoids, 2) cytokeratin expression may be useful as a marker for evaluating the success of retinoid therapy in vivo, 3) retinoids do not necessarily act to inhibit proliferation of HPV-immortalized cervical cells via effects on HPV E6 and E7 RNA levels and 4) retinoids may act to inhibit cervical proliferation by quot;suppressingquot; the activity of the EGF and IGF signalling pathways. Based on these and other results, it is worth considering the possibility that vitamin A or related retinoids could be administered therapeutically, early in the neoplastic process (either systemically or locally), to inhibit the progress of the disease. These results also suggest that combined interferon/retinoid therapy may provide an enhanced beneficial effect to reduce cervical tumor size due to the fact that each agent is inhibiting cervical cell proliferation via distinct, but reinforcing, pathways (i.e., IFN gamma reduces E6/E7 expression, RA inhibits the function of the EGF and IGF1 signalling pathways).
A64: =HYPERLINK("http://www.ncbi.nlm.nih.gov/pubmed/" & I64,I64) -> 7934176 | B64: =(LEN($J64) - LEN(SUBSTITUTE(LOWER($J64),LOWER(B$3),"")))/LEN(B$3) -> 9 | C64: =(LEN($J64) - LEN(SUBSTITUTE(LOWER($J64),LOWER(C$3),"")))/LEN(C$3) -> 0 | D64: =(LEN($J64) - LEN(SUBSTITUTE(LOWER($J64),LOWER(D$3),"")))/LEN(D$3) -> 0 | E64: =SUM(B64:D64) -> 9 | F64: 1994 | G64: Solid tumours--chemoprevention with retinoids. | H64: Man | I64: 7934176 | J64: Solid tumours--chemoprevention with retinoids. Abstract: There is a clear change in the treatment strategies for solid tumours towards the treatment of early rather than advanced disease. Retinoids represent a potentially useful class of drugs in chemoprevention. Preclinical data and clinical experience suggests that different retinoids may have different spectra of antitumour activity and synergistic interactions between retinoids and cytokines have also been reported. 13-cis retinoic acid has shown some promising activity in preventing the onset of second primary tumours in head and neck cancer and fenretinide is being tested in the prevention of second primary breast cancers. An understanding fo the role of the different retinoid receptors could lead to the design of compounds with a better therapeutic index. Despite these early indications that retinoids could be useful in this area, the development of such drugs is far from easy. Appropriate study designs for screening differentiating agents in the clinic, and the relevance of preclinical models of chemoprevention are challenges to be addressed. Unresolved issues include optimal patient selection, long clinical trial times, optimal dose, schedule and treatment duration. The use of biological surrogate markers for longer time-dependent trial endpoints could significantly contribute to more rapid development. Ongoing clinical studies, particularly in tobacco-related diseases, will better define the role of retinoids in this clinical setting. Clinicians should be encouraged to enter patients into large well organized clinical studies.
A65: =HYPERLINK("http://www.ncbi.nlm.nih.gov/pubmed/" & I65,I65) -> 1877746 | B65: =(LEN($J65) - LEN(SUBSTITUTE(LOWER($J65),LOWER(B$3),"")))/LEN(B$3) -> 9 | C65: =(LEN($J65) - LEN(SUBSTITUTE(LOWER($J65),LOWER(C$3),"")))/LEN(C$3) -> 0 | D65: =(LEN($J65) - LEN(SUBSTITUTE(LOWER($J65),LOWER(D$3),"")))/LEN(D$3) -> 0 | E65: =SUM(B65:D65) -> 9 | F65: 1991 | G65: A hypothetical mechanism for fetal alcohol syndrome involving ethanol inhibition of retinoic acid synthesis at the alcohol dehydrogenase step. | H65: Duester | I65: 1877746 | J65: A hypothetical mechanism for fetal alcohol syndrome involving ethanol inhibition of retinoic acid synthesis at the alcohol dehydrogenase step. Abstract: Ethanol acts as a teratogen causing brain, craniofacial, and limb abnormalities in those suffering from fetal alcohol syndrome. Normal embryonic development of the vertebrate nervous system and limbs has recently been shown to be governed by retinoic acid, the active form of vitamin A. Retinol dehydrogenase is an enzyme needed to convert vitamin A (retinol) to retinoic acid, a molecule that specifies embryonic pattern formation by controlling gene expression. Ethanol acts as a competitive inhibitor of the retinol dehydrogenase activity attributed to mammalian alcohol dehydrogenase (ADH), an enzyme that uses both retinol and ethanol as substrates. An hypothesis is presented in which many of the abnormalities observed in fetal alcohol syndrome may be caused by high levels of ethanol acting as a competitive inhibitor of ADH-catalyzed retinol oxidation in the embryo or fetus. This would presumably result in a reduction of retinoic acid synthesis in embryonic tissues such as the nervous system and limbs that require critical levels of this molecule to specify spatial patterns.
A66: =HYPERLINK("http://www.ncbi.nlm.nih.gov/pubmed/" & I66,I66) -> 6101134 | B66: =(LEN($J66) - LEN(SUBSTITUTE(LOWER($J66),LOWER(B$3),"")))/LEN(B$3) -> 8 | C66: =(LEN($J66) - LEN(SUBSTITUTE(LOWER($J66),LOWER(C$3),"")))/LEN(C$3) -> 0 | D66: =(LEN($J66) - LEN(SUBSTITUTE(LOWER($J66),LOWER(D$3),"")))/LEN(D$3) -> 1 | E66: =SUM(B66:D66) -> 9 | F66: 1982 | G66: The roles of vitamin E and unsaturated fatty acids in the visual process. | H66: Robison | I66: 6101134 | J66: The roles of vitamin E and unsaturated fatty acids in the visual process. Abstract: Relatively high proportions of long-chain, polyunsaturated fatty acids seem to be required in rod photoreceptor membranes in order to provide the precise microenvironment for the proper function of the visual pigment rhodopsin. At the same time, such high levels of lipid unsaturation put the photoreceptor membranes at a high risk for autoxidation. The antioxidant vitamin E which can minimize autoxidation of polyunsaturated fatty acids is found in rather high concentrations in the outer segment membranes. Dietary deficiency in vitamin E induces disintegration of rod outer segment membranes, probably by increasing autoxidation. Also, it greatly accelerates the accumulation of aging pigments in the retinal pigment epithelium, probably because these lipofuscin granules do indeed represent the end products of lipid peroxidation. Vitamin E supplements, up to threefold normal levels, appear to provide no significant protection of the retina from light damage produced either by short but acute or by long-term, low level exposures to light. This is not consistent with current theories which implicate lipid peroxidation in the destruction of rod outer segments in light damaged retinas; more work is needed before any relation between retinal light damage and vitamin E levels can be assessed. Surprisingly, the amount of lipofuscin granule accumulation in the retinal pigment epithelium is influenced dramatically by dietary levels of vitamin A. Even retinas lacking a source of polyunsaturated fatty acids from rod outer segments still may accumulate massive lipofuscin if dietary vitamin A is provided. Perhaps vitamin A, which has such a dynamic relationship with the retinal pigment epithelium, becomes oxidized, and then contributes to the formation of a lipofuscin-like pigment. Centrophenoxine, a drug claimed to be effective in reversing the accumulation of age-related lipofuscin in the central nervous system, has no obvious effect in the eye or uterus in removing the lipofuscin granules induced by vitamin E deficiency. Microperoxisomes are abundant in the retinal pigment epithelium, and may be associated with rapid lipid turnover and/or utilization of lipid soluble vitamins. Their potential roles, however, need further documentation and clarification. Recently developed techniques and new discoveries in lipid research open the way for many fruitful studies on the interactions and precise roles of lipids and lipid-soluble vitamins in vision.
A67: =HYPERLINK("http://www.ncbi.nlm.nih.gov/pubmed/" & I67,I67) -> 27336223 | B67: =(LEN($J67) - LEN(SUBSTITUTE(LOWER($J67),LOWER(B$3),"")))/LEN(B$3) -> 8 | C67: =(LEN($J67) - LEN(SUBSTITUTE(LOWER($J67),LOWER(C$3),"")))/LEN(C$3) -> 0 | D67: =(LEN($J67) - LEN(SUBSTITUTE(LOWER($J67),LOWER(D$3),"")))/LEN(D$3) -> 0 | E67: =SUM(B67:D67) -> 8 | F67: 2016 | G67: Therapeutic use of selective synthetic ligands for retinoic acid receptors: a patent review. | H67: Marchwicka | I67: 27336223 | J67: Therapeutic use of selective synthetic ligands for retinoic acid receptors: a patent review. Abstract: INTRODUCTION : Differentiation therapy using all-trans retinoic acid (ATRA) revolutionised the treatment of acute promyelocytic leukaemia to such an extent that it is now one of the most curable types of leukaemia, with ATRA and anthracycline-based chemotherapy providing cure rates above 80%. Isotretinoin is used to treat chronic acne. Here, we examine the information described in recent patents and the extent to which new findings are influencing extending retinoid-based differentiation therapy to other cancers, as well as the development of new therapies for other disorders. AREAS COVERED : A search has been performed on the literature and worldwide patents filed during 2014 to the present time, focusing on synthetic agonists and antagonists of retinoic acid receptors and novel compositions for the delivery of these agents. EXPERT OPINION : New potential therapeutic applications have been described, including lung, breast and head and neck cancers, T cell lymphoma and neurodegenerative, metabolic, ophthalmic, muscle, and inflammatory disorders. Recent patents have described the means to maximise retinoid activity. Two decades of efforts to extend retinoid-based therapies have been disappointing and new synthetic retinoids, target diseases and modes of delivery may well resolve this long standing issue.
A68: =HYPERLINK("http://www.ncbi.nlm.nih.gov/pubmed/" & I68,I68) -> 21249660 | B68: =(LEN($J68) - LEN(SUBSTITUTE(LOWER($J68),LOWER(B$3),"")))/LEN(B$3) -> 0 | C68: =(LEN($J68) - LEN(SUBSTITUTE(LOWER($J68),LOWER(C$3),"")))/LEN(C$3) -> 8 | D68: =(LEN($J68) - LEN(SUBSTITUTE(LOWER($J68),LOWER(D$3),"")))/LEN(D$3) -> 0 | E68: =SUM(B68:D68) -> 8 | F68: 2011 | G68: Vitamin supplementation for preventing miscarriage. | H68: Rumbold | I68: 21249660 | J68: Vitamin supplementation for preventing miscarriage. Abstract: BACKGROUND : Miscarriage is a common complication of pregnancy that can be caused by a wide range of factors. Poor dietary intake of vitamins has been associated with an increased risk of miscarriage, therefore supplementing women with vitamins either prior to or in early pregnancy may help prevent miscarriage. OBJECTIVES : The objectives of this review are to determine the effectiveness and safety of any vitamin supplementation, on the risk of spontaneous miscarriage, maternal adverse outcomes and fetal and infant adverse outcomes. SEARCH STRATEGY : We searched the Cochrane Pregnancy and Childbirth Group Trials Register (21 June 2010). SELECTION CRITERIA : All randomised and quasi-randomised trials comparing one or more vitamins with either placebo, other vitamins, no vitamins or other interventions, prior to conception, periconceptionally or in early pregnancy (less than 20 weeks gestation). DATA COLLECTION AND ANALYSIS : At least two review authors independently assessed trials for inclusion, extracted data and assessed trial quality. MAIN RESULTS : We identified 28 trials assessing supplementation with any vitamin(s) starting prior to 20 weeks gestation and reporting at least one primary outcome that was eligible for the review. Overall, the included trials involved 96,674 women and 98,267 pregnancies. Three trials were cluster randomised and combined contributed data for 62,669 women and 64,210 pregnancies in total. No significant differences were seen between women taking any vitamins compared with controls for total fetal loss (relative risk (RR) 1.04, 95% confidence interval (CI) 0.95 to 1.14), early or late miscarriage (RR 1.09, 95% CI 0.95 to 1.25) or stillbirth (RR 0.86, 95% CI 0.65 to 1.13) and most of the other primary outcomes, using fixed-effect models. Compared with controls, women given any type of vitamin(s) pre or peri-conception were more likely to have a multiple pregnancy (RR 1.38, 95% CI 1.12 to 1.70, three trials, 20,986 women). AUTHORS CONCLUSIONS : Taking any vitamin supplements prior to pregnancy or in early pregnancy does not prevent women experiencing miscarriage or stillbirth. However, women taking vitamin supplements may be more likely to have a multiple pregnancy. There is insufficient evidence to examine the effects of different combinations of vitamins on miscarriage, stillbirth or other maternal and infant outcomes.
A69: =HYPERLINK("http://www.ncbi.nlm.nih.gov/pubmed/" & I69,I69) -> 17428163 | B69: =(LEN($J69) - LEN(SUBSTITUTE(LOWER($J69),LOWER(B$3),"")))/LEN(B$3) -> 8 | C69: =(LEN($J69) - LEN(SUBSTITUTE(LOWER($J69),LOWER(C$3),"")))/LEN(C$3) -> 0 | D69: =(LEN($J69) - LEN(SUBSTITUTE(LOWER($J69),LOWER(D$3),"")))/LEN(D$3) -> 0 | E69: =SUM(B69:D69) -> 8 | F69: 2007 | G69: Synthetic retinoid fenretinide in breast cancer chemoprevention. | H69: Bonanni | I69: 17428163 | J69: Synthetic retinoid fenretinide in breast cancer chemoprevention. Abstract: Preclinical models suggest that retinoids inhibit mammary carcinogenesis. The induction of apoptosis is a unique feature of fenretinide, the most-studied retinoid in clinical trials of breast cancer chemoprevention, owing to its selective accumulation in breast tissue and its favorable toxicological profile. In a Phase III breast cancer prevention trial, fenretinide showed a strong trend of reduction of incidence of second breast malignancies in premenopausal women, which was confirmed by 15 years of follow-up. This warrants further research on the mechanisms of action and potential efficacy of fenretinide and provides the rationale for a Phase III primary prevention trial in young women at high risk for breast cancer. This review will highlight the role of fenretinide in breast cancer chemoprevention.
A70: =HYPERLINK("http://www.ncbi.nlm.nih.gov/pubmed/" & I70,I70) -> 15846697 | B70: =(LEN($J70) - LEN(SUBSTITUTE(LOWER($J70),LOWER(B$3),"")))/LEN(B$3) -> 0 | C70: =(LEN($J70) - LEN(SUBSTITUTE(LOWER($J70),LOWER(C$3),"")))/LEN(C$3) -> 8 | D70: =(LEN($J70) - LEN(SUBSTITUTE(LOWER($J70),LOWER(D$3),"")))/LEN(D$3) -> 0 | E70: =SUM(B70:D70) -> 8 | F70: 2005 | G70: Vitamin supplementation for preventing miscarriage. | H70: Rumbold | I70: 15846697 | J70: Vitamin supplementation for preventing miscarriage. Abstract: BACKGROUND : Miscarriage is a common complication of pregnancy that can be caused by a wide range of factors. Poor dietary intake of vitamins has been associated with an increased risk of miscarriage, therefore supplementing women with vitamins either prior to or in early pregnancy may help prevent miscarriage. OBJECTIVES : The objectives of this review are to determine the effectiveness and safety of any vitamin supplementation, on the risk of spontaneous miscarriage, maternal adverse outcomes and fetal and infant adverse outcomes. SEARCH STRATEGY : We searched the Cochrane Pregnancy and Childbirth Group Trials Register (8 September 2004), the Cochrane Central Register of Controlled Trials (The Cochrane Library, Issue 2, 2003) and MEDLINE (1966 to May 2003), Current Contents (1998 to May 2003) and EMBASE (1980 to May 2003). SELECTION CRITERIA : All randomised and quasi-randomised trials comparing one or more vitamins with either placebo, other vitamins, no vitamins or other interventions, prior to conception, periconceptionally or in early pregnancy (less than 20 weeks gestation). DATA COLLECTION AND ANALYSIS : Two review authors independently assessed trials for inclusion, extracted data and assessed trial quality. MAIN RESULTS : We identified seventeen trials assessing supplementation with any vitamin(s) starting prior to 20 weeks gestation and reporting at least one primary outcome that were eligible for the review. Overall, the included trials involved 35,812 women and 37,353 pregnancies. Two trials were cluster randomised and contributed data for 20,758 women and 22,299 pregnancies in total. No difference was seen between women taking any vitamins compared with controls for total fetal loss (relative risk (RR) 1.05, 95% confidence interval (CI) 0.95 to 1.15), early or late miscarriage (RR 1.08, 95% CI 0.95 to 1.24) or stillbirth (RR 0.85, 95% CI 0.63 to 1.14) and most of the other primary outcomes, using fixed-effect models. For the other primary outcomes, women given any type of vitamin(s) compared with controls were less likely to develop pre-eclampsia (RR 0.68, 95% CI 0.54 to 0.85, four trials, 5580 women) and more likely to have a multiple pregnancy (RR 1.38, 95% CI 1.12 to 1.70, three trials, 20,986 women). AUTHORS CONCLUSIONS : Taking vitamin supplements, alone or in combination with other vitamins, prior to pregnancy or in early pregnancy, does not prevent women experiencing miscarriage or stillbirth. However, women taking vitamin supplements may be less likely to develop pre-eclampsia and more likely to have a multiple pregnancy.
A71: =HYPERLINK("http://www.ncbi.nlm.nih.gov/pubmed/" & I71,I71) -> 15569396 | B71: =(LEN($J71) - LEN(SUBSTITUTE(LOWER($J71),LOWER(B$3),"")))/LEN(B$3) -> 8 | C71: =(LEN($J71) - LEN(SUBSTITUTE(LOWER($J71),LOWER(C$3),"")))/LEN(C$3) -> 0 | D71: =(LEN($J71) - LEN(SUBSTITUTE(LOWER($J71),LOWER(D$3),"")))/LEN(D$3) -> 0 | E71: =SUM(B71:D71) -> 8 | F71: 2004 | G71: Retinoids: potential in cancer prevention and therapy. | H71: Clarke | I71: 15569396 | J71: Retinoids: potential in cancer prevention and therapy. Abstract: Retinoids (derivatives of vitamin A) are signalling molecules that play important roles in cell growth, differentiation and death. Retinoids act through two types of receptors - retinoic acid receptors (RAR alpha, RAR beta and RAR gamma) and retinoid X receptors (RXR alpha, RXR beta and RXR gamma) - which themselves act as ligand-dependent transcription factors. Retinoids are of special interest in cancer research owing to their antiproliferative and cancer-preventative properties. They have been used successfully to cure acute promyelocytic leukaemia (APL) and can suppress carcinogenesis in a variety of tissue types (e.g. skin, lung, breast and oral cancers). Extensive research efforts have been dedicated to elucidating the molecular and cellular networks that are induced by retinoids, and this has recently yielded novel insights into how retinoids can both prevent and combat cancer.
A72: =HYPERLINK("http://www.ncbi.nlm.nih.gov/pubmed/" & I72,I72) -> 15197471 | B72: =(LEN($J72) - LEN(SUBSTITUTE(LOWER($J72),LOWER(B$3),"")))/LEN(B$3) -> 8 | C72: =(LEN($J72) - LEN(SUBSTITUTE(LOWER($J72),LOWER(C$3),"")))/LEN(C$3) -> 0 | D72: =(LEN($J72) - LEN(SUBSTITUTE(LOWER($J72),LOWER(D$3),"")))/LEN(D$3) -> 0 | E72: =SUM(B72:D72) -> 8 | F72: 2004 | G72: How retinoids regulate breast cancer cell proliferation and apoptosis. | H72: Simeone | I72: 15197471 | J72: How retinoids regulate breast cancer cell proliferation and apoptosis. Abstract: Breast cancer still remains a major problem in its incidence, morbidity and mortality; therefore, more effective strategies for its prevention are urgently needed. Retinoids, natural and synthetic derivatives of vitamin A, possess antiproliferative and proapoptotic properties, making them a promising class of chemopreventive agents against breast cancer. The efficacy of all-trans retinoic acid, 9-cis-retinoic acid, LGD1069 (Targretin, bexarotene), and N-(4-hydroxyphenyl)retinamide (fenretinide) as breast cancer chemopreventive agents is being studied. A better understanding of the molecular mechanisms of action of these agents should lead to improvements in their clinical application. In this review, we discuss the mechanisms by which retinoids exert their antiproliferative and apoptotic effects in breast cancer cells.
A73: =HYPERLINK("http://www.ncbi.nlm.nih.gov/pubmed/" & I73,I73) -> 12852263 | B73: =(LEN($J73) - LEN(SUBSTITUTE(LOWER($J73),LOWER(B$3),"")))/LEN(B$3) -> 8 | C73: =(LEN($J73) - LEN(SUBSTITUTE(LOWER($J73),LOWER(C$3),"")))/LEN(C$3) -> 0 | D73: =(LEN($J73) - LEN(SUBSTITUTE(LOWER($J73),LOWER(D$3),"")))/LEN(D$3) -> 0 | E73: =SUM(B73:D73) -> 8 | F73: 2003 | G73: Vitamin A and infancy. Biochemical, functional, and clinical aspects. | H73: Perrotta | I73: 12852263 | J73: Vitamin A and infancy. Biochemical, functional, and clinical aspects. Abstract: Vitamin A is a very intriguing natural compound. The molecule not only has a complex array of physiological functions, but also represents the precursor of promising and powerful new pharmacological agents. Although several aspects of human retinol metabolism, including absorption and tissue delivery, have been clarified, the type and amounts of vitamin A derivatives that are intracellularly produced remain quite elusive. In addition, their precise function and targets still need to be identified. Retinoic acids, undoubtedly, play a major role in explaining activities of retinol, but, recently, a large number of physiological functions have been attributed to different retinoids and to vitamin A itself. One of the primary roles this vitamin plays is in embryogenesis. Almost all steps in organogenesis are controlled by retinoic acids, thus suggesting that retinol is necessary for proper development of embryonic tissues. These considerations point to the dramatic importance of a sufficient intake of vitamin A and explain the consequences if intake of retinol is deficient. However, hypervitaminosis A also has a number of remarkable negative consequences, which, in same cases, could be fatal. Thus, the use of large doses of retinol in the treatment of some human diseases and the use of megavitamin therapy for certain chronic disorders as well as the growing tendency toward vitamin faddism should alert physicians to the possibility of vitamin overdose.
A74: =HYPERLINK("http://www.ncbi.nlm.nih.gov/pubmed/" & I74,I74) -> 12757024 | B74: =(LEN($J74) - LEN(SUBSTITUTE(LOWER($J74),LOWER(B$3),"")))/LEN(B$3) -> 8 | C74: =(LEN($J74) - LEN(SUBSTITUTE(LOWER($J74),LOWER(C$3),"")))/LEN(C$3) -> 0 | D74: =(LEN($J74) - LEN(SUBSTITUTE(LOWER($J74),LOWER(D$3),"")))/LEN(D$3) -> 0 | E74: =SUM(B74:D74) -> 8 | F74: 2003 | G74: Clinical applications of retinoids in cancer medicine. | H74: Camacho | I74: 12757024 | J74: Clinical applications of retinoids in cancer medicine. Abstract: The retinoids are compounds structurally related to vitamin A. The most extensively studied agents in cancer medicine include all-trans-retinoic acid, 9-cis-retinoic acid, and 13-cis-retinoic acid. In addition to several described immune regulatory functions, these agents may exert their antineoplastic effects through the regulation of tumor suppressor genes such as RAR-beta2. The survival benefit provided to patients with acute promyelocytic leukemia (APL) after induction therapy with all-trans RA and the responses experienced by patients with cutaneous lesions from Kaposis sarcoma and cutaneous T cell lymphoma treated with 9-cis RA and a selective rexinoid--bexarotene--respectively, led to their approval by the Food and Drug Administration during the last decade. As chemopreventive agents, retinoids have proven to effectively regress laryngeal papillomatosis and oral leukoplakia lesions. The ability of 13-cis-RA to prevent second primary malignancies in patients with carcinoma of the head and neck has also been demonstrated. Unfortunately, this intervention did not affect the primary tumor recurrence rates. The toxicity and efficacy of retinoids administered in combination with other biological and cytotoxic agents have also been explored in patients with renal cell carcinoma, breast cancer, myelodysplasia, prostate, cervix, and other malignancies with a broad range of reported responses. Further characterization of the molecular processes modulated by these agents will serve to better define their role in the prevention and treatment of human cancer and to tailor specific targeted therapies in combination with other compounds. Newer and more selective retinoids and rexinoids are completing phase I and phase II studies and hold promising.
A75: =HYPERLINK("http://www.ncbi.nlm.nih.gov/pubmed/" & I75,I75) -> 11375780 | B75: =(LEN($J75) - LEN(SUBSTITUTE(LOWER($J75),LOWER(B$3),"")))/LEN(B$3) -> 8 | C75: =(LEN($J75) - LEN(SUBSTITUTE(LOWER($J75),LOWER(C$3),"")))/LEN(C$3) -> 0 | D75: =(LEN($J75) - LEN(SUBSTITUTE(LOWER($J75),LOWER(D$3),"")))/LEN(D$3) -> 0 | E75: =SUM(B75:D75) -> 8 | F75: 2001 | G75: The role of metabolism and toxicokinetics in retinoid teratogenesis. | H75: Tzimas | I75: 11375780 | J75: The role of metabolism and toxicokinetics in retinoid teratogenesis. Abstract: Retinoids (vitamin A and its analogs) exert profound effects on a wide variety of life processes, including morphogenesis and embryonic development. Several retinoids are also effective drugs for therapy of skin diseases and some types of cancer. However, the applicability of this class of compounds is limited by their teratogenic activity. A major question in retinoid toxicology has been the marked interspecies differences in the lowest teratogenic doses of 13-cis-retinoic acid and retinol. In addition, great attention has been drawn to the risk assessment of embryotoxicity resulting from excessive intake of vitamin A by pregnant women. The present review first gives an overview of the biochemistry, metabolism and mode of action of retinoids as well as their role in embryonic development. It then summarizes the results of recent studies on retinoid metabolism, toxicokinetics, and embryonic exposure and discusses how the available information provides explanation of the aforementioned interspecies variations. Finally, it presents some approaches for risk assessment of high vitamin A intake by humans based on various animal models and epidemiological studies.
A76: =HYPERLINK("http://www.ncbi.nlm.nih.gov/pubmed/" & I76,I76) -> 10549233 | B76: =(LEN($J76) - LEN(SUBSTITUTE(LOWER($J76),LOWER(B$3),"")))/LEN(B$3) -> 1 | C76: =(LEN($J76) - LEN(SUBSTITUTE(LOWER($J76),LOWER(C$3),"")))/LEN(C$3) -> 7 | D76: =(LEN($J76) - LEN(SUBSTITUTE(LOWER($J76),LOWER(D$3),"")))/LEN(D$3) -> 0 | E76: =SUM(B76:D76) -> 8 | F76: 1999 | G76: [Pharmacotherapy in pregnancy]. | H76: Paulus | I76: 10549233 | J76: [Pharmacotherapy in pregnancy]. Abstract: Between 1958 and 1961 approximately 10,000 children with severe limb defects were born, whose mothers had taken the somnifacient thalidomid. Since then, pharmaceutical agents in pregnancy are applied with legitimate caution by the pharmaceutical industry, physicians and patients, although often accompanied by irrational panic. According to statistical inquests, 15 to 50 percent of expectant mothers take pharmaceutical agents in the first trimester of pregnancy, often being not aware of their pregnancy. Considering the sensitive phase of organogenesis, the consequences may be particularly fatal in the first three months of pregnancy. After thalidomid more teratogenic pharmaceutical agents were discovered, i.e. coumarin derivates (e.g. warfarin), vitamin A and its derivates (e.g. isotretinoin), antifolates or anticonvulsants such as hydantoin or valproic acid. A number of other drugs are supposed to be potentially embryotoxic/fetotoxic, the effect of those pharmaceutical agents above all depending on dose and time of exposure. Case reports on malformations are available for numerous drugs, but studies with statistical validity are often missing. The pharmaceutical industry takes a legally safe position noting quot;contraindicationquot; or at least quot;strict indicationquot; in the consumer information. Concerning expectant mothers with chronic diseases like epilepsy, hypertension or bronchial asthma a therapeutic nihilism may lead to a dramatic deterioration of the disease, thereby causing high risks in fetal development. On the other hand numerous abortions without profound indications are carried out due to insufficient information of patients and medical staff on the real risks of a medication during early pregnancy. On principle reliable drugs should be preferred to new agents during fertile age of women. Special information centres for reproductive toxicology with corresponding data banks should be established and consulted, if an exposure with an insufficiently tested substance has taken place in ignorance of pregnancy.
A77: =HYPERLINK("http://www.ncbi.nlm.nih.gov/pubmed/" & I77,I77) -> 10331090 | B77: =(LEN($J77) - LEN(SUBSTITUTE(LOWER($J77),LOWER(B$3),"")))/LEN(B$3) -> 8 | C77: =(LEN($J77) - LEN(SUBSTITUTE(LOWER($J77),LOWER(C$3),"")))/LEN(C$3) -> 0 | D77: =(LEN($J77) - LEN(SUBSTITUTE(LOWER($J77),LOWER(D$3),"")))/LEN(D$3) -> 0 | E77: =SUM(B77:D77) -> 8 | F77: 1999 | G77: Teratology of retinoids. | H77: Collins | I77: 10331090 | J77: Teratology of retinoids. Abstract: Either an excess or a deficiency of vitamin A and related compounds (retinoids) causes abnormal morphological development (teratogenesis). Potential retinoid sources come from dietary intake, nutritional supplements, and some therapeutic drugs. Therefore, understanding the mechanisms of retinoid teratogenesis is important. This review first gives an overview of the principles of teratology as they apply to retinoid-induced malformations. It then describes relevant aspects of the biochemical pathway and signal transduction of retinoids. The teratogenic activity of various retinoid compounds, the role of the retinoid receptors, and important toxicokinetic parameters in teratogenesis are reviewed.
A78: =HYPERLINK("http://www.ncbi.nlm.nih.gov/pubmed/" & I78,I78) -> 8634987 | B78: =(LEN($J78) - LEN(SUBSTITUTE(LOWER($J78),LOWER(B$3),"")))/LEN(B$3) -> 8 | C78: =(LEN($J78) - LEN(SUBSTITUTE(LOWER($J78),LOWER(C$3),"")))/LEN(C$3) -> 0 | D78: =(LEN($J78) - LEN(SUBSTITUTE(LOWER($J78),LOWER(D$3),"")))/LEN(D$3) -> 0 | E78: =SUM(B78:D78) -> 8 | F78: 1995 | G78: Chemoprevention trials and surrogate end point biomarkers in the cervix. | H78: Mitchell | I78: 8634987 | J78: Chemoprevention trials and surrogate end point biomarkers in the cervix. Abstract: Cervical cancer is the second most common malignancy in women worldwide and remains a significant health problem for women, especially minority and underserved women. Despite an understanding of the epidemiologic risks, the screening Papanicolaou smear, and morbid and costly treatment, overall survival remains 40%. New strategies, based on the clinical and molecular aspects of cervical carcinogenesis, are desperately needed. Chemoprevention refers to the use of chemical agents to prevent or delay the development of cancer in healthy populations. Chemoprevention studies have several unique features that distinguish them from classic chemotherapeutic trials; these features touch on several disciplines and weave knowledge of the biology of carcinogenesis into the trial design. In the design of chemoprevention trials, four factors are important: high risk cohorts must be identified; suitable medications must be selected; study designs should include Phases I, II, and III; and studies should include the use of surrogate end point biomarkers. Surrogate end point biomarkers are sought because the cancer develops over a long period of time, and studies of chemopreventives would require a huge number of subjects followed for many years. Surrogate end point biomarkers serve as alternative end points for examination of the efficacy of chemopreventives in tissue. High risk cohorts include women with cervical intraepithelial neoplasia (CIN) or squamous intraepithelial lesions (SIL). Nutritional studies have helped define micronutrients of interest (folate, carotenoids, vitamin C, vitamin E). Other medications of interest include retinoids (4-hydroxyphenylretinamide [4-HPR], retinyl acetate gel, topical all-trans-retinoic acid), polyamine synthesis inhibitors (alpha-difluoromethylornithine [DFMO]), and nonsteroidal anti-inflammatory drugs (ibuprofen). Phase I chemoprevention studies of the cervix have tested retinyl acetate gel and all-trans-retinoic acid. Phase II trials of all-trans-retinoic acid, beta-carotene, and folic acid have been and are being carried out, whereas Phase III trials of all-trans-retinoic acid have been completed and have shown significant regression of CIN 2 but not CIN 3. Phase I studies of DFMO and Phase II studies of DFMO and 4-HPR are underway. Surrogate end point biomarkers under study include (1) quantitative cytology and histopathology; (2) human papillomavirus type testing; (3) biologic measures of proliferation, regulation, differentiation, and genomic instability; and 4) fluorescence spectroscopic emission. Clinical trials with biologic end points will contribute to our understanding of the neoplastic process and hence aid us in developing new preventive and therapeutic strategies.
A79: =HYPERLINK("http://www.ncbi.nlm.nih.gov/pubmed/" & I79,I79) -> 1392106 | B79: =(LEN($J79) - LEN(SUBSTITUTE(LOWER($J79),LOWER(B$3),"")))/LEN(B$3) -> 8 | C79: =(LEN($J79) - LEN(SUBSTITUTE(LOWER($J79),LOWER(C$3),"")))/LEN(C$3) -> 0 | D79: =(LEN($J79) - LEN(SUBSTITUTE(LOWER($J79),LOWER(D$3),"")))/LEN(D$3) -> 0 | E79: =SUM(B79:D79) -> 8 | F79: 1992 | G79: Retinoids and contraception. | H79: Ceyrac | I79: 1392106 | J79: Retinoids and contraception. Abstract: The main side effect of the retinoids is teratogenicity. Every dermatologist has a moral obligation to ensure that this effect is avoided, and the present publication is aimed at helping prescribe these drugs. After a review of the key properties of each of the retinoids on the market, the different forms of contraception available and their indication in young patients undergoing retinoid treatment are discussed. Unless otherwise contraindicated, oral contraception with an estrogen-progestogen formulation is the contraceptive method of choice for women undergoing retinoid treatment. The intrauterine device (IUD) is of little or almost no relevance for young women undergoing treatment with a retinoid. IUDs are indicated in older multiparae who have practised this form of contraception before starting retinoid treatment and who refuse to take the pill. Natural and local methods of contraception are totally unsuitable for women undergoing treatment with retinoids. However, they may be used as an additional precautionary measure by IUD users.
A80: =HYPERLINK("http://www.ncbi.nlm.nih.gov/pubmed/" & I80,I80) -> 2643696 | B80: =(LEN($J80) - LEN(SUBSTITUTE(LOWER($J80),LOWER(B$3),"")))/LEN(B$3) -> 8 | C80: =(LEN($J80) - LEN(SUBSTITUTE(LOWER($J80),LOWER(C$3),"")))/LEN(C$3) -> 0 | D80: =(LEN($J80) - LEN(SUBSTITUTE(LOWER($J80),LOWER(D$3),"")))/LEN(D$3) -> 0 | E80: =SUM(B80:D80) -> 8 | F80: 1989 | G80: Comparative aspects of carotenoids and retinoids as chemopreventive agents for cancer. | H80: Moon | I80: 2643696 | J80: Comparative aspects of carotenoids and retinoids as chemopreventive agents for cancer. Abstract: Retinoids are well established chemopreventive agents for experimental carcinogenesis of many target organs including mammary gland, urinary bladder, lung, skin, liver, pancreas, colon and esophagus. Modification of the basic retinoid structure has produced analogs with enhanced target organ specificity, increased inhibitory activity and reduced toxicity. N-(4-hydroxyphenyl) retinamide (4-HPR) currently appears to be the most efficaceous retinoid against carcinogen-induced breast, urinary bladder, and lung cancer in rodents. Retinoids are most effective when administered shortly after the carcinogen treatment; however, the treatment can be delayed significantly while maintaining its chemopreventive effect. Under various experimental conditions, combining retinoid treatment with other modifiers of growth enhances its chemopreventive activity; for example, retinoid plus hormonal modulation can provide better protection against mammary cancer than either treatment alone. The role of carotenoids in cancer chemoprevention is less well defined. Studies have been complicated by the poor absorption and low tissue levels of carotenoids in the rodent models used for such studies. Aside from experimental skin carcinogenesis, little information is available relative to the effect of carotenoids on the chemoprevention of cancer at other organ sites.
A81: =HYPERLINK("http://www.ncbi.nlm.nih.gov/pubmed/" & I81,I81) -> 7040511 | B81: =(LEN($J81) - LEN(SUBSTITUTE(LOWER($J81),LOWER(B$3),"")))/LEN(B$3) -> 8 | C81: =(LEN($J81) - LEN(SUBSTITUTE(LOWER($J81),LOWER(C$3),"")))/LEN(C$3) -> 0 | D81: =(LEN($J81) - LEN(SUBSTITUTE(LOWER($J81),LOWER(D$3),"")))/LEN(D$3) -> 0 | E81: =SUM(B81:D81) -> 8 | F81: 1982 | G81: Toxicology, carcinogenicity, and teratogenicity of some orally administered retinoids. | H81: Kamm | I81: 7040511 | J81: Toxicology, carcinogenicity, and teratogenicity of some orally administered retinoids. Abstract: This paper is a review of the acute, subchronic, and chronic toxicity, mutagenicity, carcinogenicity, and teratogenicity of vitamin A, tretinoin (all-trans-retinoic acid), isotretinoin (13-cis-retinoic acid), and etretinate. The results of in vitro mutagenicity testing of the retinoids are also presented. In addition to teratogenesis studies, experiments designed to evaluate the effects of the retinoids on fertility and reproductive performance and on perinatal and postnatal development are also described.
A82: =HYPERLINK("http://www.ncbi.nlm.nih.gov/pubmed/" & I82,I82) -> 27150280 | B82: =(LEN($J82) - LEN(SUBSTITUTE(LOWER($J82),LOWER(B$3),"")))/LEN(B$3) -> 0 | C82: =(LEN($J82) - LEN(SUBSTITUTE(LOWER($J82),LOWER(C$3),"")))/LEN(C$3) -> 7 | D82: =(LEN($J82) - LEN(SUBSTITUTE(LOWER($J82),LOWER(D$3),"")))/LEN(D$3) -> 0 | E82: =SUM(B82:D82) -> 7 | F82: 2016 | G82: Vitamin supplementation for preventing miscarriage. | H82: Balogun | I82: 27150280 | J82: Vitamin supplementation for preventing miscarriage. Abstract: BACKGROUND : Miscarriage is a common complication of pregnancy that can be caused by a wide range of factors. Poor dietary intake of vitamins has been associated with an increased risk of miscarriage, therefore supplementing women with vitamins either prior to or in early pregnancy may help prevent miscarriage. OBJECTIVES : The objectives of this review were to determine the effectiveness and safety of any vitamin supplementation, on the risk of spontaneous miscarriage. SEARCH METHODS : We searched the Cochrane Pregnancy and Childbirth Group Trials Register (6 November 2015) and reference lists of retrieved studies. SELECTION CRITERIA : All randomised and quasi-randomised trials comparing supplementation during pregnancy with one or more vitamins with either placebo, other vitamins, no vitamins or other interventions. We have included supplementation that started prior to conception, periconceptionally or in early pregnancy (less than 20 weeks gestation). DATA COLLECTION AND ANALYSIS : Three review authors independently assessed trials for inclusion, extracted data and assessed trial quality. We assessed the quality of the evidence using the GRADE approach. The quality of evidence is included for numerical results of outcomes included in the Summary of findings tables. MAIN RESULTS : We included a total of 40 trials (involving 276,820 women and 278,413 pregnancies) assessing supplementation with any vitamin(s) starting prior to 20 weeks gestation and reporting at least one primary outcome that was eligible for the review. Eight trials were cluster-randomised and contributed data for 217,726 women and 219,267 pregnancies in total.Approximately half of the included trials were assessed to have a low risk of bias for both random sequence generation and adequate concealment of participants to treatment and control groups. Vitamin C supplementation There was no difference in the risk of total fetal loss (risk ratio (RR) 1.14, 95% confidence interval (CI) 0.92 to 1.40, seven trials, 18,949 women; high-quality evidence); early or late miscarriage (RR 0.90, 95% CI 0.65 to 1.26, four trials, 13,346 women; moderate-quality evidence); stillbirth (RR 1.31, 95% CI 0.97 to 1.76, seven trials, 21,442 women; moderate-quality evidence) or adverse effects of vitamin supplementation (RR 1.16, 95% CI 0.39 to 3.41, one trial, 739 women; moderate-quality evidence) between women receiving vitamin C with vitamin E compared with placebo or no vitamin C groups. No clear differences were seen in the risk of total fetal loss or miscarriage between women receiving any other combination of vitamin C compared with placebo or no vitamin C groups. Vitamin A supplementation No difference was found in the risk of total fetal loss (RR 1.01, 95% CI 0.61 to 1.66, three trials, 1640 women; low-quality evidence); early or late miscarriage (RR 0.86, 95% CI 0.46 to 1.62, two trials, 1397 women; low-quality evidence) or stillbirth (RR 1.29, 95% CI 0.57 to 2.91, three trials, 1640 women; low-quality evidence) between women receiving vitamin A plus iron and folate compared with placebo or no vitamin A groups. There was no evidence of differences in the risk of total fetal loss or miscarriage between women receiving any other combination of vitamin A compared with placebo or no vitamin A groups. Multivitamin supplementation There was evidence of a decrease in the risk for stillbirth among women receiving multivitamins plus iron and folic acid compared iron and folate only groups (RR 0.92, 95% CI 0.85 to 0.99, 10 trials, 79,851 women; high-quality evidence). Although total fetal loss was lower in women who were given multivitamins without folic acid (RR 0.49, 95% CI 0.34 to 0.70, one trial, 907 women); and multivitamins with or without vitamin A (RR 0.60, 95% CI 0.39 to 0.92, one trial, 1074 women), these findings included one trial each with small numbers of women involved. Also, they include studies where the comparison groups included women receiving either vitamin A or placebo, and thus require caution in interpretation.We found no difference in the risk of total fetal loss (RR 0.96, 95% CI 0.93 to 1.00, 10 trials, 94,948 women; high-quality evidence) or early or late miscarriage (RR 0.98, 95% CI 0.94 to 1.03, 10 trials, 94,948 women; moderate-quality evidence) between women receiving multivitamins plus iron and folic acid compared with iron and folate only groups.There was no evidence of differences in the risk of total fetal loss or miscarriage between women receiving any other combination of multivitamins compared with placebo, folic acid or vitamin A groups. Folic acid supplementation There was no evidence of any difference in the risk of total fetal loss, early or late miscarriage, stillbirth or congenital malformations between women supplemented with folic acid with or without multivitamins and/or iron compared with no folic acid groups. Antioxidant vitamins supplementation There was no evidence of differences in early or late miscarriage between women given antioxidant compared with the low antioxidant group (RR 1.12, 95% CI 0.24 to 5.29, one trial, 110 women). AUTHORS CONCLUSIONS : Taking any vitamin supplements prior to pregnancy or in early pregnancy does not prevent women experiencing miscarriage. However, evidence showed that women receiving multivitamins plus iron and folic acid had reduced risk for stillbirth. There is insufficient evidence to examine the effects of different combinations of vitamins on miscarriage and miscarriage-related outcomes.
A83: =HYPERLINK("http://www.ncbi.nlm.nih.gov/pubmed/" & I83,I83) -> 27012320 | B83: =(LEN($J83) - LEN(SUBSTITUTE(LOWER($J83),LOWER(B$3),"")))/LEN(B$3) -> 6 | C83: =(LEN($J83) - LEN(SUBSTITUTE(LOWER($J83),LOWER(C$3),"")))/LEN(C$3) -> 1 | D83: =(LEN($J83) - LEN(SUBSTITUTE(LOWER($J83),LOWER(D$3),"")))/LEN(D$3) -> 0 | E83: =SUM(B83:D83) -> 7 | F83: 2016 | G83: Vitamin A supplementation for postpartum women. | H83: Oliveira | I83: 27012320 | J83: Vitamin A supplementation for postpartum women. Abstract: BACKGROUND : In areas where vitamin A deficiency (VAD) is a public health concern, the maternal dietary intake of vitamin A may be not sufficient to meet either the maternal nutritional requirements, or those of the breastfed infant, due the low retinol concentrations in breast milk. OBJECTIVES : To evaluate the effects of vitamin A supplementation for postpartum women on maternal and infant health. SEARCH METHODS : We searched the Cochrane Pregnancy and Childbirth Groups Trials Register (8 February 2016), LILACS (1982 to December 2015), Web of Science (1945 to December 2015), and the reference lists of retrieved studies. SELECTION CRITERIA : Randomised controlled trials (RCTs) or cluster-randomised trials that assessed the effects of vitamin A supplementation for postpartum women on maternal and infant health (morbidity, mortality and vitamin A nutritional status). DATA COLLECTION AND ANALYSIS : Two review authors independently assessed trials for inclusion, conducted data extraction, assessed risk of bias and checked for accuracy. We assessed the quality of the evidence using the GRADE approach. MAIN RESULTS : Fourteen trials of mainly low or unclear risk of bias, enrolling 25,758 women and infant pairs were included. The supplementation schemes included high, single or double doses of vitamin A (200,000 to 400,000 internation units (IU)), or 7.8 mg daily beta-carotene compared with placebo, no treatment, other (iron); or higher (400,000 IU) versus lower dose (200,000 IU). In all trials, a considerable proportion of infants were at least partially breastfed until six months. Supplement (vitamin A as retinyl, water-miscible or beta-carotene) 200,000 to 400,000 IU versus control (placebo or no treatment) Maternal: We did not find evidence that vitamin A supplementation reduced maternal mortality at 12 months (hazard ratio (HR) 1.01, 95% confidence interval (CI) 0.44 to 2.21; 8577 participants; 1 RCT, moderate-quality evidence). Effects were less certain at six months (risk ratio (RR) 0.50, 95% CI 0.09 to 2.71; 564 participants; 1 RCT; low-quality evidence). The effect on maternal morbidity (diarrhoea, respiratory infections, fever) was uncertain because the quality of evidence was very low (50 participants, 1 RCT). We found insufficient evidence that vitamin A increases abdominal pain (RR 1.28, 95% CI 0.95 to 1.73; 786 participants; 1 RCT; low-quality evidence). We found low-quality evidence that vitamin A supplementation increased breast milk retinol concentrations by 0.20 µmol/L at three to three and a half months (mean difference (MD) 0.20 µmol/L, 95% CI 0.08 to 0.31; 837 participants; 6 RCTs). Infant: We did not find evidence that vitamin A supplementation reduced infant mortality at two to 12 months (RR 1.08, 95% CI 0.77 to 1.52; 6090 participants; 5 RCTs; low-quality evidence). Effects on morbidity (gastroenteritis at three months) was uncertain (RR 6.03, 95% CI 0.30 to 121.82; 84 participants; 1 RCT; very low-quality evidence). There was low-quality evidence for the effect on infant adverse outcomes (bulging fontanelle at 24 to 48 hours) (RR 2.00, 95% CI 0.61 to 6.55; 444 participants; 1 RCT). Supplement (vitamin A as retinyl) 400,000 IU versus 200,000 IUThree studies (1312 participants) were included in this comparison. None of the studies assessed maternal mortality, maternal morbidity or infant mortality. Findings from one study showed that there may be little or no difference in infant morbidity between the doses (diarrhoea, respiratory illnesses, and febrile illnesses) (312 participants, data not pooled). No firm conclusion could be drawn on the impact on maternal and infant adverse outcomes (limited data available).The effect on breast milk retinol was also uncertain due to the small amount of information available. AUTHORS CONCLUSIONS : There was no evidence of benefit from different doses of vitamin A supplementation for postpartum women on maternal and infant mortality and morbidity, compared with other doses or placebo. Although maternal breast milk retinol concentrations improved with supplementation, this did not translate to health benefits for either women or infants. Few studies reported on maternal and infant mortality and morbidity. Future studies should include these important outcomes.
A84: =HYPERLINK("http://www.ncbi.nlm.nih.gov/pubmed/" & I84,I84) -> 24239628 | B84: =(LEN($J84) - LEN(SUBSTITUTE(LOWER($J84),LOWER(B$3),"")))/LEN(B$3) -> 7 | C84: =(LEN($J84) - LEN(SUBSTITUTE(LOWER($J84),LOWER(C$3),"")))/LEN(C$3) -> 0 | D84: =(LEN($J84) - LEN(SUBSTITUTE(LOWER($J84),LOWER(D$3),"")))/LEN(D$3) -> 0 | E84: =SUM(B84:D84) -> 7 | F84: 2014 | G84: Retinoids and their biological effects against cancer. | H84: Alizadeh | I84: 24239628 | J84: Retinoids and their biological effects against cancer. Abstract: There are more than 4000 natural and synthetic molecules structurally and/or functionally related to vitamin A. Retinoids are a class of these compounds that are structurally associated to vitamin A. The retinoids have a wide spectrum of functions. Retinoic acid, which is the active metabolite of retinol, regulates a wide range of biological processes including development, differentiation, proliferation and apoptosis. It suppresses carcinogenesis in tumorigenic animal models for the skin, oral, lung, breast, bladder, ovarian and prostate. It is important how major retinoids may act in cancer treatment or prevention. The reports have indicated that lower levels of vitamin A in humans may be associated with relative type 1 cytokine dominance and a higher proportion of NK cells. In addition, very low vitamin A levels would be undesirable explaining the essential role of vitamin A in epithelial and general cell maturation and function. However, the cytokine shifts associated with moderately low levels of vitamin A may be in some ways beneficial in an environment where HIV infection, M. tuberculosis infection, or other type 1 infections are highly prevalent and/or when acquired immunity is cooperated. In this review, we intend to describe the biochemical and immunological functions of retinoids against cancer.
A85: =HYPERLINK("http://www.ncbi.nlm.nih.gov/pubmed/" & I85,I85) -> 23996075 | B85: =(LEN($J85) - LEN(SUBSTITUTE(LOWER($J85),LOWER(B$3),"")))/LEN(B$3) -> 1 | C85: =(LEN($J85) - LEN(SUBSTITUTE(LOWER($J85),LOWER(C$3),"")))/LEN(C$3) -> 6 | D85: =(LEN($J85) - LEN(SUBSTITUTE(LOWER($J85),LOWER(D$3),"")))/LEN(D$3) -> 0 | E85: =SUM(B85:D85) -> 7 | F85: 2013 | G85: The management of acne vulgaris in pregnancy. | H85: Meredith | I85: 23996075 | J85: The management of acne vulgaris in pregnancy. Abstract: Acne vulgaris is a common condition in adolescence and also for many women of childbearing age. The management of acne in pregnancy is complicated by the lack of clinical studies and pharmacokinetic data in this patient population and safety concerns regarding retinoid use in pregnancy. Of primary concern to both patients and clinicians is the safety profile of medications used during pregnancy. This review seeks to clarify what management options are available to treat acne during pregnancy and what data are available to guide decision making. Topical treatments are considered the safest option during pregnancy. They have the best safety profile and minimize the levels of systemic absorption, and therefore the least risk of fetal exposure. If these are applied properly with a strong emphasis on adherence, excellent results can be achieved.
A86: =HYPERLINK("http://www.ncbi.nlm.nih.gov/pubmed/" & I86,I86) -> 23891453 | B86: =(LEN($J86) - LEN(SUBSTITUTE(LOWER($J86),LOWER(B$3),"")))/LEN(B$3) -> 7 | C86: =(LEN($J86) - LEN(SUBSTITUTE(LOWER($J86),LOWER(C$3),"")))/LEN(C$3) -> 0 | D86: =(LEN($J86) - LEN(SUBSTITUTE(LOWER($J86),LOWER(D$3),"")))/LEN(D$3) -> 0 | E86: =SUM(B86:D86) -> 7 | F86: 2013 | G86: Guidelines for the use of acitretin in psoriasis. Psoriasis Group of the Spanish Academy of Dermatology and Venereology. | H86: Carretero | I86: 23891453 | J86: Guidelines for the use of acitretin in psoriasis. Psoriasis Group of the Spanish Academy of Dermatology and Venereology. Abstract: Phototherapy, classic systemic treatments (methotrexate, acitretin, and ciclosporin), and biologic agents (etanercept, infliximab, adalimumab, and ustekinumab) constitute a broad therapeutic arsenal that increases the likelihood of achieving control of severe and extensive disease in patients with psoriasis. Acitretin continues to be a very valuable tool in both monotherapy, in which it is combined with other systemic treatments (classic or biologic), and in sequential therapy. Thanks to its lack of a direct immunosuppressive effect and its ability to achieve a long-term response, acitretin has an important role in the treatment of psoriasis, although this has not always been acknowledged in relevant treatment guidelines. We present consensus guidelines for the use of acitretin in psoriasis drawn up by the Psoriasis Group of the Spanish Academy of Dermatology and Venereology. These guidelines provide a detailed account of acitretin, including pharmacological properties, indications and contraindications, adverse effects, and factors that should be taken into account to enhance the safe use of this drug. They also propose treatment strategies for use in routine clinical practice. The overall aim of these guidelines is to define the criteria for the use and management of acetretin in psoriasis.
A87: =HYPERLINK("http://www.ncbi.nlm.nih.gov/pubmed/" & I87,I87) -> 22771225 | B87: =(LEN($J87) - LEN(SUBSTITUTE(LOWER($J87),LOWER(B$3),"")))/LEN(B$3) -> 1 | C87: =(LEN($J87) - LEN(SUBSTITUTE(LOWER($J87),LOWER(C$3),"")))/LEN(C$3) -> 6 | D87: =(LEN($J87) - LEN(SUBSTITUTE(LOWER($J87),LOWER(D$3),"")))/LEN(D$3) -> 0 | E87: =SUM(B87:D87) -> 7 | F87: 2012 | G87: Influence of mineral and vitamin supplements on pregnancy outcome. | H87: Hovdenak | I87: 22771225 | J87: Influence of mineral and vitamin supplements on pregnancy outcome. Abstract: The literature was searched for publications on minerals and vitamins during pregnancy and the possible influence of supplements on pregnancy outcome. Maternal iron (Fe) deficiency has a direct impact on neonatal Fe stores and birth weight, and may cause cognitive and behavioural problems in childhood. Fe supplementation is recommended to low-income pregnant women, to pregnant women in developing countries, and in documented deficiency, but overtreatment should be avoided. Calcium (Ca) deficiency is associated with pre-eclampsia and intra-uterine growth restriction. Supplementation may reduce both the risk of low birth weight and the severity of pre-eclampsia. Gestational magnesium (Mg) deficiency may cause hematological and teratogenic damage. A Cochrane review showed a significant low birth weight risk reduction in Mg supplemented individuals. Intake of cereal-based diets rich in phytate, high intakes of supplemental Fe, or any gastrointestinal disease, may interfere with zinc (Zn) absorption. Zn deficiency in pregnant animals may limit fetal growth. Supplemental Zn may be prudent for women with poor gastrointestinal function, and in Zn deficient women, increasing birth weight and head circumference, but no evidence was found for beneficial effects of general Zn supplementation during pregnancy. Selenium (Se) is an antioxidant supporting humoral and cell-mediated immunity. Low Se status is associated with recurrent abortion, pre-eclampsia and IUGR, and although beneficial effects are suggested there is no evidence-based recommendation for supplementation. An average of 20-30% of pregnant women suffer from any vitamin deficiency, and without prophylaxis, about 75% of these would show a deficit of at least one vitamin. Vitamin B6 deficiency is associated with pre-eclampsia, gestational carbohydrate intolerance, hyperemesis gravidarum, and neurologic disease of infants. About 25% of pregnant women in India are folate deficient. Folate deficiency may lead to congenital malformations (neural tube damage, orofacial clefts, cardiac anomalies), anaemia and spontaneous abortions, and pre-eclampsia, IUGR and abruption placentae. Pregestational supplementation of folate prevents neural tube defects. A daily supplemental dose of 400 μg/day of folate is recommended when planning pregnancy. In developing countries diets are generally low in animal products and consequently in vitamin B12 content. An insufficient supply may cause reduced fetal growth. In vegetarian women, supplementation of vitamin B12 may be needed. Vitamin A deficiency is prevalent in the developing world, impairing Fe status and resistance to infections. The recommended upper limit for retinol supplements is 3000 IU/day. Vitamin A supplementation enhances birth weight and growth in infants born to HIV-infected women. Overdosing should be avoided. Low concentrations of vitamin C seem to increase the development of pre-eclampsia, and supplementation may be beneficial. Supplementation with vitamin D in the third trimester in vitamin D deficient women seems to be beneficial. The use of vitamins E, although generally considered quot;healthyquot;, may be harmful to the pregnancy outcome by disrupting a physiologic oxidative gestational state and is consequently not recommended to prevent pre-eclampsia. Further studies on specific substances are needed as the basis for stratified, placebo-controlled analyses.
A88: =HYPERLINK("http://www.ncbi.nlm.nih.gov/pubmed/" & I88,I88) -> 22205187 | B88: =(LEN($J88) - LEN(SUBSTITUTE(LOWER($J88),LOWER(B$3),"")))/LEN(B$3) -> 0 | C88: =(LEN($J88) - LEN(SUBSTITUTE(LOWER($J88),LOWER(C$3),"")))/LEN(C$3) -> 7 | D88: =(LEN($J88) - LEN(SUBSTITUTE(LOWER($J88),LOWER(D$3),"")))/LEN(D$3) -> 0 | E88: =SUM(B88:D88) -> 7 | F88: 2012 | G88: Pregnancy after bariatric surgery: a current view of maternal, obstetrical and perinatal challenges. | H88: Magdaleno | I88: 22205187 | J88: Pregnancy after bariatric surgery: a current view of maternal, obstetrical and perinatal challenges. Abstract: UNLABELLEDWith the increase in the number of bariatric surgeries being performed in women of childbearing age, physicians must have concerns regarding the safety of pregnancy after bariatric surgery. The aim of this review is to summarize the literature reporting on maternal, obstetrical and perinatal implications of pregnancy following BS. METHODS : English, Spanish and Portuguese-language articles were identified in a PUBMED search from 2005 to February 2011 using the keywords for pregnancy and bariatric surgery or gastric bypass or gastric banding. RESULTS : The studies show improved fertility and a reduced risk of gestational diabetes, pregnancy-induced hypertension and pre-eclampsia, macrosomia in pregnant women after bariatric surgery. The incidence of intrauterine growth restriction and small for gestational age are increased. No conclusions can be drawn concerning the risk for cesarean delivery and the best surgery-to-conception interval. Deficiencies in iron, vitamin A, vitamin B12, vitamin K, folate and calcium can result in maternal and fetal complications. CONCLUSIONS : Pregnancy outcome of women who delivered after BS, as compared to obese populations, is better and safer and comparable to the general population. Close supervision before, during and after pregnancy following bariatric surgery and nutrient supplementation adapted to the patients individual requirements can prevent nutrition-related complications and improve maternal and fetal health.
A89: =HYPERLINK("http://www.ncbi.nlm.nih.gov/pubmed/" & I89,I89) -> 20961299 | B89: =(LEN($J89) - LEN(SUBSTITUTE(LOWER($J89),LOWER(B$3),"")))/LEN(B$3) -> 7 | C89: =(LEN($J89) - LEN(SUBSTITUTE(LOWER($J89),LOWER(C$3),"")))/LEN(C$3) -> 0 | D89: =(LEN($J89) - LEN(SUBSTITUTE(LOWER($J89),LOWER(D$3),"")))/LEN(D$3) -> 0 | E89: =SUM(B89:D89) -> 7 | F89: 2010 | G89: Tissue-specific increases in endogenous all-trans retinoic acid: possible contributing factor in ethanol toxicity. | H89: Wolf | I89: 20961299 | J89: Tissue-specific increases in endogenous all-trans retinoic acid: possible contributing factor in ethanol toxicity. Abstract: All-trans retinoic acid (atRA) is required for neurogenesis and dendritic growth in the hippocampus. The toxic effects of ethanol include developmental defects, cognitive dysfunction, and increased risk of cancer and have some similarities to the detrimental effects of excess atRA, the active form of vitamin A. It is therefore possible that disruption of atRA homeostasis would contribute to the deleterious effects of ethanol. However, previous work, using very high exogenous doses of retinol, found that ethanol toxicity led to decreased formation of atRA, apparently due to competitive inhibition of alcohol dehydrogenase, which is purportedly involved in the conversion of retinol to retinal. A new study, using assays that are highly sensitive for endogenous atRA, has reported that ethanol toxicity in mice actually increased atRA concentration in certain tissues, including brain hippocampus, apparently due to a mobilization of hepatic retinyl esters that led to increased retinol and atRA in specific tissues.
A90: =HYPERLINK("http://www.ncbi.nlm.nih.gov/pubmed/" & I90,I90) -> 20034809 | B90: =(LEN($J90) - LEN(SUBSTITUTE(LOWER($J90),LOWER(B$3),"")))/LEN(B$3) -> 7 | C90: =(LEN($J90) - LEN(SUBSTITUTE(LOWER($J90),LOWER(C$3),"")))/LEN(C$3) -> 0 | D90: =(LEN($J90) - LEN(SUBSTITUTE(LOWER($J90),LOWER(D$3),"")))/LEN(D$3) -> 0 | E90: =SUM(B90:D90) -> 7 | F90: 2010 | G90: Angioprevention with fenretinide: targeting angiogenesis in prevention and therapeutic strategies. | H90: Sogno | I90: 20034809 | J90: Angioprevention with fenretinide: targeting angiogenesis in prevention and therapeutic strategies. Abstract: Clinical trials have revealed that N-(4-hydroxyphenyl) retinamide (4HPR; fenretinide), a synthetic retinoic acid derivative, is a highly active and promising therapeutic and chemopreventive agent. Fenretinide shows biological activity against numerous cancer types in vitro and in preclinical studies. Clinical trials have shown that fenretinide induces a significant reduction of second breast cancer in premenopausal women. Several studies on different neoplasms are ongoing, such as breast and ovarian cancer, neuroblastoma, glioblastoma, head and neck and skin cancers and others. It has minimal side effects in humans, so that trials in young women at high-risk of breast cancer and ovarian and for the prevention of other tumor types such as lung cancer could be envisaged. Here we review some ongoing clinical trials and evaluate the possible mechanisms underlying the secondary chemopreventive effects of 4HPR. In particular we report basic and translational data on the anti-angiogenic quot;angiopreventivequot; properties of fenretinide, its anti-invasive activity, its ability to induce apoptosis and to generate or enhance production of reactive oxygen species as possible molecular bases for a chemopreventive action in patients.
A91: =HYPERLINK("http://www.ncbi.nlm.nih.gov/pubmed/" & I91,I91) -> 19476422 | B91: =(LEN($J91) - LEN(SUBSTITUTE(LOWER($J91),LOWER(B$3),"")))/LEN(B$3) -> 2 | C91: =(LEN($J91) - LEN(SUBSTITUTE(LOWER($J91),LOWER(C$3),"")))/LEN(C$3) -> 5 | D91: =(LEN($J91) - LEN(SUBSTITUTE(LOWER($J91),LOWER(D$3),"")))/LEN(D$3) -> 0 | E91: =SUM(B91:D91) -> 7 | F91: 2009 | G91: Treatment of acute promyelocytic leukemia during pregnancy. | H91: Yang | I91: 19476422 | J91: Treatment of acute promyelocytic leukemia during pregnancy. Abstract: Management of the pregnant patient with acute promyelocytic leukemia (APL) is a challenge. Immediate treatment of APL is critical, as it is an oncologic emergency, with a high risk of morbidity and mortality associated with disseminated intravascular coagulation. However, administration of chemotherapy and differentiating agents in pregnancy is controversial because of potential teratogenic effects. In addition, complications associated with APL, including retinoic acid syndrome, add to the complexity of management. To better understand how to manage this complex patient care situation, we searched the PubMed database (January 1972-May 2008) for English-language articles about maternal and fetal outcomes resulting from APL treatment during pregnancy. A total of 42 cases from 35 articles were identified: 12 first-trimester, 21 second-trimester, and 9 third-trimester cases. The most commonly administered agents were all-trans-retinoic acid (ATRA), anthracyclines, and antimetabolites. Complete remission was reported in 35 (83%) of 42 patients. Administration of ATRA or chemotherapy in the first trimester was associated with an increased risk of fetal malformations and spontaneous abortion, whereas administration in the second and third trimesters was associated with relatively favorable fetal outcomes. The overall treatment of the pregnant patient with APL should include a discussion about pregnancy termination, especially if APL is diagnosed in the first trimester. If the pregnancy is to continue, then the appropriate chemotherapy regimen needs to be determined. Frequent fetal monitoring, along with aggressive management of potential APL-related complications, is necessary to allow for optimal maternal and fetal outcomes.
A92: =HYPERLINK("http://www.ncbi.nlm.nih.gov/pubmed/" & I92,I92) -> 17852449 | B92: =(LEN($J92) - LEN(SUBSTITUTE(LOWER($J92),LOWER(B$3),"")))/LEN(B$3) -> 3 | C92: =(LEN($J92) - LEN(SUBSTITUTE(LOWER($J92),LOWER(C$3),"")))/LEN(C$3) -> 4 | D92: =(LEN($J92) - LEN(SUBSTITUTE(LOWER($J92),LOWER(D$3),"")))/LEN(D$3) -> 0 | E92: =SUM(B92:D92) -> 7 | F92: 2007 | G92: Outcome of pregnancy in women treated with all-trans retinoic acid; a case report and review of literature. | H92: Valappil | I92: 17852449 | J92: Outcome of pregnancy in women treated with all-trans retinoic acid; a case report and review of literature. Abstract: All-trans-retinoic acid (ATRA) has been proved to be an effective treatment for acute promyelocytic leukemia (APL), inducing remission in more than 90% of cases. Treatment of APL in pregnancy is controversial as the use of ATRA has been questioned due to the teratogenic effect of retinoids. We report a case of pregnancy in a woman exposed to ATRA during the first trimester. The baby was born healthy, without any anomalies. Review of all reported cases of the use of ATRA in pregnancy revealed no serious adverse outcomes or congenital anomalies although only very few cases had exposure in the first trimester.
A93: =HYPERLINK("http://www.ncbi.nlm.nih.gov/pubmed/" & I93,I93) -> 17539885 | B93: =(LEN($J93) - LEN(SUBSTITUTE(LOWER($J93),LOWER(B$3),"")))/LEN(B$3) -> 0 | C93: =(LEN($J93) - LEN(SUBSTITUTE(LOWER($J93),LOWER(C$3),"")))/LEN(C$3) -> 7 | D93: =(LEN($J93) - LEN(SUBSTITUTE(LOWER($J93),LOWER(D$3),"")))/LEN(D$3) -> 0 | E93: =SUM(B93:D93) -> 7 | F93: 2007 | G93: Does birth spacing affect maternal or child nutritional status? A systematic literature review. | H93: Dewey | I93: 17539885 | J93: Does birth spacing affect maternal or child nutritional status? A systematic literature review. Abstract: This review addresses the question of whether a short birth interval is associated with adverse nutritional outcomes for the mother or the child. Indices of anthropometric status (maternal weight or body mass index; child growth) and micronutrient status (e.g. iron or vitamin A) were included as outcomes. A computerized search of all relevant papers published since 1966 was completed, and the snowball method was used to identify additional relevant published or unpublished papers. In total, 57 papers were found to contain data regarding the relationship between birth spacing and nutritional outcomes (35 for child nutrition, 11 for maternal anthropometric status, and 11 for maternal anaemia or micronutrient status). Of these, 23 papers were excluded from further consideration because they did not include any multivariate analysis, leaving 34 papers that met the criteria for the review (22 for child nutrition, eight for maternal anthropometric status, and four for maternal anaemia or micronutrient status). The studies on child nutrition outcomes indicate that a longer birth interval is associated with a lower risk of malnutrition in some populations, but not all. In those countries in which the relationship was significant, the reduction in stunting associated with a previous birth interval gt;or=36 months ranged from approximately 10% to 50%. Some of this reduction may be due to residual confounding, i.e. to factors not included in the analysis (such as breastfeeding and maternal height). The studies on maternal anthropometric outcomes yielded mixed results. Because the nutritional burden on the mother between pregnancies depends on the extent of breastfeeding, the interpregnancy interval is not the best measure of whether the mother has had a chance to recover from the pregnancy, in terms of repleting her nutritional status. Therefore, some studies examined the recuperative interval (duration of the non-pregnant, non-lactating interval) instead. Taken as a whole, the studies do not provide clear evidence of a link between interpregnancy or recuperative interval and maternal anthropometric status. This may be due, in part, to changes in the hormonal regulation of nutrient partitioning between the mother and the fetus when a mother is malnourished. Only four papers were identified that related to micronutrient status, three of which examined maternal anaemia. One study showed an increased risk for maternal anaemia when the interpregnancy interval was lt;6 months, but the analysis did not control for iron supplementation during pregnancy. The other two studies did not show a significant association between interpregnancy interval and maternal anaemia. One study of micronutrient status indicated no significant relationship between interpregnancy interval and maternal serum zinc, copper, magnesium, ferritin, folate or thyroid-stimulating hormone. Important methodological limitations were apparent in most of the studies. Thus, further research with more comprehensive control of potentially confounding variables is needed.
A94: =HYPERLINK("http://www.ncbi.nlm.nih.gov/pubmed/" & I94,I94) -> 15639998 | B94: =(LEN($J94) - LEN(SUBSTITUTE(LOWER($J94),LOWER(B$3),"")))/LEN(B$3) -> 7 | C94: =(LEN($J94) - LEN(SUBSTITUTE(LOWER($J94),LOWER(C$3),"")))/LEN(C$3) -> 0 | D94: =(LEN($J94) - LEN(SUBSTITUTE(LOWER($J94),LOWER(D$3),"")))/LEN(D$3) -> 0 | E94: =SUM(B94:D94) -> 7 | F94: 2004 | G94: [Molecular biology of the retinol-binding proteins and their genes]. | H94: Guo | I94: 15639998 | J94: [Molecular biology of the retinol-binding proteins and their genes]. Abstract: Retinol-binding proteins (RBPs) are a kind of circulating carrier proteins for serum and cellular retinol and retinol acid, which are lipid-soluble vitamins, and are members of hydrophobic binding protein family. Serum RBPs were synthesized primarily in liver, then was released into blood streams, and then to various tissues. Under the interaction with substances such as retinol, pre-albumin and the receptors of cellular surface, they play important roles in storage, metabolism of VitA and transport of VitA to the target cells. Cellular RBPs play the similar function as serum RBPs in intracell. This review introduces action mechanism, tissue localization and developmental expression of retinol-binding proteins. This review also introduces the structure, chromosome mapping and their relationships with reproductive performance of retinol-binding protein genes.
A95: =HYPERLINK("http://www.ncbi.nlm.nih.gov/pubmed/" & I95,I95) -> 15095280 | B95: =(LEN($J95) - LEN(SUBSTITUTE(LOWER($J95),LOWER(B$3),"")))/LEN(B$3) -> 7 | C95: =(LEN($J95) - LEN(SUBSTITUTE(LOWER($J95),LOWER(C$3),"")))/LEN(C$3) -> 0 | D95: =(LEN($J95) - LEN(SUBSTITUTE(LOWER($J95),LOWER(D$3),"")))/LEN(D$3) -> 0 | E95: =SUM(B95:D95) -> 7 | F95: 2004 | G95: Synthetic retinoids as inducers of apoptosis in ovarian carcinoma cell lines. | H95: Holmes | I95: 15095280 | J95: Synthetic retinoids as inducers of apoptosis in ovarian carcinoma cell lines. Abstract: Apoptosis is also known as programmed cell death. Apoptosis plays an essential role in maintaining normal tissue and cell physiology in multicellular organisms. Clearance of aberrant or pre-cancerous cells occurs through the induction of apoptosis. It has been reported that many tumors and tumor cell lines have dysfunctional apoptosis signaling, causing these tumors to escape immune monitoring and internal cellular control mechanisms. One potential cause of this dysfunctional apoptosis is the tumor suppressor p53, an important regulator of growth arrest and apoptosis that is mutated in over 50% of all cancers. Retinoids have great potential in the areas of cancer therapy and chemoprevention. While some tumor cells are sensitive to the growth inhibitory effects of natural retinoids such as all-trans-retinoic acid (ATRA), many ovarian tumor cells are not. 6-[3-(1-Admantyl)]-4-hydroxyphenyl]-2-naphthalene carboxylic acid (CD437) and fenretinide N-[4-hydroxyphenyl] retinamide (4-HPR) are conformationally restricted synthetic retinoids that induce growth arrest and apoptosis in both ATRA-sensitive and ATRA-resistant ovarian tumor cell lines. Recently, we have identified the molecular pathways of apoptosis induced by treatment of ovarian carcinoma cells with mutated p53 by CD437 and 4-HPR.
A96: =HYPERLINK("http://www.ncbi.nlm.nih.gov/pubmed/" & I96,I96) -> 12218221 | B96: =(LEN($J96) - LEN(SUBSTITUTE(LOWER($J96),LOWER(B$3),"")))/LEN(B$3) -> 7 | C96: =(LEN($J96) - LEN(SUBSTITUTE(LOWER($J96),LOWER(C$3),"")))/LEN(C$3) -> 0 | D96: =(LEN($J96) - LEN(SUBSTITUTE(LOWER($J96),LOWER(D$3),"")))/LEN(D$3) -> 0 | E96: =SUM(B96:D96) -> 7 | F96: 2002 | G96: Is there a reproductive safety risk in male patients treated with acitretin (neotigason/soriatane? | H96: Geiger | I96: 12218221 | J96: Is there a reproductive safety risk in male patients treated with acitretin (neotigason/soriatane? Abstract: Review of preclinical data including genotoxicity assays and a male rat reproduction toxicology study demonstrates that acitretin (Neotigason)/Soriatane) does not affect the reproductive outcome in naive females mated with treated males. Prospective studies of teratogenic risk or impairment of fertility cannot be ethically conducted in humans. However, it is highly unlikely that any fetal malformation could be induced by an ejaculate containing traces of acitretin. Indeed, worldwide postmarketing surveillance has not revealed any cases of retinoid embryopathy associated with paternal treatment with acitretin. Birth defects seen in pregnancies fathered by male acitretin patients were all events expected to occur in the general population at known frequencies. In conclusion, therefore, available data do not appear to indicate any reproductive safety risk due to paternal treatment with acitretin.
A97: =HYPERLINK("http://www.ncbi.nlm.nih.gov/pubmed/" & I97,I97) -> 12055350 | B97: =(LEN($J97) - LEN(SUBSTITUTE(LOWER($J97),LOWER(B$3),"")))/LEN(B$3) -> 7 | C97: =(LEN($J97) - LEN(SUBSTITUTE(LOWER($J97),LOWER(C$3),"")))/LEN(C$3) -> 0 | D97: =(LEN($J97) - LEN(SUBSTITUTE(LOWER($J97),LOWER(D$3),"")))/LEN(D$3) -> 0 | E97: =SUM(B97:D97) -> 7 | F97: 2002 | G97: The role of vitamin A in mammalian reproduction and embryonic development. | H97: Clagett-Dame | I97: 12055350 | J97: The role of vitamin A in mammalian reproduction and embryonic development. Abstract: Since the late 1980s, there has been an explosion of information on the molecular mechanisms and functions of vitamin A. This review focuses on the essential role of vitamin A in female reproduction and embryonic development and the metabolism of vitamin A (retinol) that results in these functions. Evidence strongly supports that in situ-generated all-trans retinoic acid (atRA) is the functional form of vitamin A in female reproduction and embryonic development. This is supported by the ability to reverse most reproductive and developmental blocks found in vitamin A deficiency with atRA, the block in embryonic development that occurs in retinaldehyde dehydrogenase type 2 null mutant mice, and the essential roles of the retinoic acid receptors, at least in embryogenesis. Early studies of embryos from marginally vitamin A-deficient (VAD) pregnant rats revealed a collection of defects called the vitamin A-deficiency syndrome. The manipulation of all-trans retinoic acid (atRA) levels in the diet of VAD female rats undergoing a reproduction cycle has proved to be an important new tool in deciphering the points of atRA function in early embryos and has provided a means to generate large numbers of embryos at later stages of development with the vitamin A-deficiency syndrome. The essentiality of the retinoid receptors in mediating the activity of atRA is exemplified by the many compound null mutant embryos that now recapitulate both the original vitamin A-deficiency syndrome and exhibit a host of new defects, many of which can also be observed in the VAD-atRA-supported rat embryo model and in retinaldehyde dehydrogenase type 2 (RALDH2) mutant mice. A major task for the future is to elucidate the atRA-dependent pathways that are normally operational in vitamin A-sufficient animals and that are perturbed in deficiency, thus leading to the characteristic VAD phenotypes described above.
A98: =HYPERLINK("http://www.ncbi.nlm.nih.gov/pubmed/" & I98,I98) -> 11796231 | B98: =(LEN($J98) - LEN(SUBSTITUTE(LOWER($J98),LOWER(B$3),"")))/LEN(B$3) -> 7 | C98: =(LEN($J98) - LEN(SUBSTITUTE(LOWER($J98),LOWER(C$3),"")))/LEN(C$3) -> 0 | D98: =(LEN($J98) - LEN(SUBSTITUTE(LOWER($J98),LOWER(D$3),"")))/LEN(D$3) -> 0 | E98: =SUM(B98:D98) -> 7 | F98: 2002 | G98: Retinoids and their receptors in cancer development and chemoprevention. | H98: Sun | I98: 11796231 | J98: Retinoids and their receptors in cancer development and chemoprevention. Abstract: Retinoids play an important role in regulating the growth and differentiation of normal, premalignant and malignant cell types, especially epithelial cells, mainly through interaction with two types of nuclear receptors: retinoic acid receptors (RARalpha, beta and gamma) and retinoid X receptors (RXRalpha, beta and gamma). Vitamin A deficiency in experimental animals has been associated with a higher incidence of cancer and with increased susceptibility to chemical carcinogens. This is in agreement with the epidemiological studies indicating that individuals with a lower dietary vitamin A intake are at a higher risk to develop cancer. At the molecular level, aberrant expression and function of nuclear retinoid receptors have been found in various types of cancer including premalignant lesions. Thus, aberrations in retinoid signaling are early events in carcinogenesis. Retinoids at pharmacological doses exhibit a variety of effects associated with cancer prevention. They suppress transformation of cells in vitro, inhibit carcinogenesis in various organs in animal models, reduce premalignant human epithelial lesions and prevent second primary tumors following curative therapy for epithelial malignancies such as head and neck, lung, liver, and breast cancer.
A99: =HYPERLINK("http://www.ncbi.nlm.nih.gov/pubmed/" & I99,I99) -> 11509110 | B99: =(LEN($J99) - LEN(SUBSTITUTE(LOWER($J99),LOWER(B$3),"")))/LEN(B$3) -> 1 | C99: =(LEN($J99) - LEN(SUBSTITUTE(LOWER($J99),LOWER(C$3),"")))/LEN(C$3) -> 6 | D99: =(LEN($J99) - LEN(SUBSTITUTE(LOWER($J99),LOWER(D$3),"")))/LEN(D$3) -> 0 | E99: =SUM(B99:D99) -> 7 | F99: 2001 | G99: Micronutrients in pregnancy. | H99: Black | I99: 11509110 | J99: Micronutrients in pregnancy. Abstract: Vitamins and minerals, referred to collectively as micronutrients, have important influences on the health of pregnant women and the growing fetus. Iron deficiency results in anemia which may increase the risk of death from hemorrhage during delivery, but its effects on fetal development and birth outcomes is still unclear. Folic acid deficiency can lead to hematological consequences, pregnancy complications and congenital malformations, but again the association with other birth outcomes is equivocal. Zinc deficiency has been associated in some, but not all studies with complications of pregnancy and delivery, as well as with growth retardation, congenital abnormalities and retarded neurobehavioral and immunological development in the fetus. Iodine deficiency during pregnancy results in cretinism and possible fetal wastage and preterm delivery. Deficiency of other minerals such as magnesium, selenium, copper, and calcium have also been associated with complications of pregnancy, childbirth or fetal development. Deficiencies of vitamins other than folate may likewise be related to such complications; and vitamin A or beta-carotene supplements in pregnancy reduced maternal mortality by 50 % in a controlled trial in Nepal. Additional research is need on the prevalence of such deficiencies and their consequences and on cost-effective public health interventions for their control.
A100: =HYPERLINK("http://www.ncbi.nlm.nih.gov/pubmed/" & I100,I100) -> 10828175 | B100: =(LEN($J100) - LEN(SUBSTITUTE(LOWER($J100),LOWER(B$3),"")))/LEN(B$3) -> 7 | C100: =(LEN($J100) - LEN(SUBSTITUTE(LOWER($J100),LOWER(C$3),"")))/LEN(C$3) -> 0 | D100: =(LEN($J100) - LEN(SUBSTITUTE(LOWER($J100),LOWER(D$3),"")))/LEN(D$3) -> 0 | E100: =SUM(B100:D100) -> 7 | F100: 2000 | G100: The role of retinoic acid in embryonic and post-embryonic development. | H100: Maden | I100: 10828175 | J100: The role of retinoic acid in embryonic and post-embryonic development. Abstract: Retinoic acid (RA) is the bioactive metabolite of vitamin A (retinol) which acts on cells to establish or change the pattern of gene activity. Retinol is converted to RA by the action of two types of enzyme, retinol dehydrogenases and retinal dehydrogenases. In the nucleus RA acts as a ligand to activate two families of transcription factors, the RA receptors (RAR) and the retinoid X receptors (RXR) which heterodimerize and bind to the upstream sequences of RA-responsive genes. Thus, in addition to the well-established experimental paradigm of depriving animals of vitamin A to determine the role of RA in embryonic and post-embryonic development, molecular biology has provided us with two additional methodologies: knockout the enzymes or the RAR and RXR in the mouse embryo. The distribution of the enzymes and receptors, and recent experiments to determine the endogenous distribution of RA in the embryo are described here, as well as the effects on the embryo of knocking out the enzymes and receptors. In addition, recent studies using the classical vitamin A-deprivation technique are described, as they have provided novel insights into the regions of the embryo which crucially require RA, and the gene pathways involved in their development. Finally, the post-embryonic or regenerating systems in which RA plays a part are described, i.e. the regenerating limb, lung regeneration, hair cell regeneration in the ear and spinal cord regeneration in the adult.
A101: =HYPERLINK("http://www.ncbi.nlm.nih.gov/pubmed/" & I101,I101) -> 8709884 | B101: =(LEN($J101) - LEN(SUBSTITUTE(LOWER($J101),LOWER(B$3),"")))/LEN(B$3) -> 4 | C101: =(LEN($J101) - LEN(SUBSTITUTE(LOWER($J101),LOWER(C$3),"")))/LEN(C$3) -> 3 | D101: =(LEN($J101) - LEN(SUBSTITUTE(LOWER($J101),LOWER(D$3),"")))/LEN(D$3) -> 0 | E101: =SUM(B101:D101) -> 7 | F101: 1996 | G101: Oral retinoids and pregnancy. | H101: Chan | I101: 8709884 | J101: Oral retinoids and pregnancy. Abstract: The oral retinoids isotretinoin and etretinate are uniquely effective in the treatment of severe cystic acne and keratinisation disorders. Because of their known teratogenicity, there are strict prescription guidelines, but exposure during pregnancy still occurs. A dedicated effort by women and their clinicians is required, involving patient selection, education and informed consent, detailed contraceptive counselling, and careful monitoring and management, including pregnancy testing before commencement of therapy.
A102: =HYPERLINK("http://www.ncbi.nlm.nih.gov/pubmed/" & I102,I102) -> 8801162 | B102: =(LEN($J102) - LEN(SUBSTITUTE(LOWER($J102),LOWER(B$3),"")))/LEN(B$3) -> 7 | C102: =(LEN($J102) - LEN(SUBSTITUTE(LOWER($J102),LOWER(C$3),"")))/LEN(C$3) -> 0 | D102: =(LEN($J102) - LEN(SUBSTITUTE(LOWER($J102),LOWER(D$3),"")))/LEN(D$3) -> 0 | E102: =SUM(B102:D102) -> 7 | F102: 1996 | G102: Bioactivities of N-(4-hydroxyphenyl) retinamide and retinoyl beta-glucuronide. | H102: Formelli | I102: 8801162 | J102: Bioactivities of N-(4-hydroxyphenyl) retinamide and retinoyl beta-glucuronide. Abstract: N-(4-Hydroxyphenyl) retinamide (4HPR) and retinoyl beta-glucuronide (RAG) are two derivatives of all-trans retinoic acid (RA) that show properties both similar to as well as different from their parent compound, RA. Both retinoids possess the important property of showing much-reduced toxicity relative to RA while maintaining significant biological activity. 4HPR, a synthetic derivative, is active in the prevention and treatment of a variety of neoplasms in animals, and by inducing apoptosis, shows growth inhibitory activity against many human tumor cell types in vitro. In humans, 4HPR reduces the incidence of new occurrences of leukoplakia and is currently being tested as a preventive agent for breast cancer. RAG, a naturally occurring metabolite of RA, effectively stimulates the growth of vitamin A-deficient animals, induces the differentiation of epithelial cells in vivo and in vitro, and is effective in the topical treatment of acne in humans. Unlike RA, RAG is nontoxic when applied to the skin and is nonteratogenic when given orally to rats. Possible mechanisms of action of both compounds are discussed. These two derivatives of retinoids show interesting physiologic effects and potentially beneficial pharmacologic actions.
A103: =HYPERLINK("http://www.ncbi.nlm.nih.gov/pubmed/" & I103,I103) -> 8657191 | B103: =(LEN($J103) - LEN(SUBSTITUTE(LOWER($J103),LOWER(B$3),"")))/LEN(B$3) -> 7 | C103: =(LEN($J103) - LEN(SUBSTITUTE(LOWER($J103),LOWER(C$3),"")))/LEN(C$3) -> 0 | D103: =(LEN($J103) - LEN(SUBSTITUTE(LOWER($J103),LOWER(D$3),"")))/LEN(D$3) -> 0 | E103: =SUM(B103:D103) -> 7 | F103: 1996 | G103: Retinoid receptors in human lung cancer and breast cancer. | H103: Zhang | I103: 8657191 | J103: Retinoid receptors in human lung cancer and breast cancer. Abstract: Retinoids, the natural and synthetic vitamin A derivatives, are known to inhibit the proliferation of lung cancer and breast cancer cells and the growth of carcinogen-induced bronchogenic squamous cell carcinoma and mammary tumors, and have been used as chemoprevention agents against both types of cancer. However, clinical trials of retinoids in patients with advanced lung cancer and breast cancer have not been successful. In studying how retinoid sensitivity is lost in cancer cells, we have found that lack of the retinoic acid receptor beta (RAR beta) gene expression and its abnormal regulation by retinoic acid (RA) are common features in human lung cancer and breast cancer cells. The absence and abnormal RA regulation of RAR beta correlates with the loss of anti-proliferation effect of RA in hormone-independent breast cancer cells, and is due to different abnormalities found in cancer cells. Furthermore, expression of RAR beta gene in hormone-independent breast cancer cells restores their RA sensitivity. These data demonstrate that RAR beta can mediate the growth inhibitory effect of RA and suggest that the lack of RAR beta may contribute to retinoid resistance in certain cancer cells.
A104: =HYPERLINK("http://www.ncbi.nlm.nih.gov/pubmed/" & I104,I104) -> 8635026 | B104: =(LEN($J104) - LEN(SUBSTITUTE(LOWER($J104),LOWER(B$3),"")))/LEN(B$3) -> 1 | C104: =(LEN($J104) - LEN(SUBSTITUTE(LOWER($J104),LOWER(C$3),"")))/LEN(C$3) -> 6 | D104: =(LEN($J104) - LEN(SUBSTITUTE(LOWER($J104),LOWER(D$3),"")))/LEN(D$3) -> 0 | E104: =SUM(B104:D104) -> 7 | F104: 1995 | G104: Acute promyelocytic leukemia and pregnancy. A case report. | H104: Hoffman | I104: 8635026 | J104: Acute promyelocytic leukemia and pregnancy. A case report. Abstract: BACKGROUND : Acute promyelocytic leukemia (APL) is an uncommon form of acute myeloid leukemia usually associated with disseminated intravascular coagulation (DIC). Pregnancy in patients with APL requires special consideration to maximize the probability of survival of both mother and fetus. METHODS : A patient with APL diagnosed during pregnancy who developed DIC is described. Obstetric and oncologic management of this difficult patient is discussed, and a pertinent literature review of pregnancy in APL is presented. RESULTS : Of 23 pregnancies in patients with APL reported in the literature (including the present patient), 19 yielded live births, including 8 of 12 who received chemotherapy during late pregnancy and all 3 patients who received all-trans-retinoic acid (ATRA) during late pregnancy. Chemotherapy or ATRA induced complete remission in 72% of treated patients. CONCLUSIONS : Proper management of pregnant patients with APL usually results in a live birth and complete remission of the mothers leukemia, despite the potentially devastating consequences of DIC, which is present at diagnosis in most patients.
A105: =HYPERLINK("http://www.ncbi.nlm.nih.gov/pubmed/" & I105,I105) -> 21607448 | B105: =(LEN($J105) - LEN(SUBSTITUTE(LOWER($J105),LOWER(B$3),"")))/LEN(B$3) -> 7 | C105: =(LEN($J105) - LEN(SUBSTITUTE(LOWER($J105),LOWER(C$3),"")))/LEN(C$3) -> 0 | D105: =(LEN($J105) - LEN(SUBSTITUTE(LOWER($J105),LOWER(D$3),"")))/LEN(D$3) -> 0 | E105: =SUM(B105:D105) -> 7 | F105: 1994 | G105: Fenretinide in breast-cancer chemoprevention (review). | H105: Decensi | I105: 21607448 | J105: Fenretinide in breast-cancer chemoprevention (review). Abstract: Fenretinide (4-HPR), a synthetic amide derivative of retinoic acid, has proven effective in preventing chemically induced mammary carcinoma in rodents. During the past years, our group has made a particular effort with regard to this molecule in clinical studies aimed at evaluating its pharmacology, toxicity and efficacy in breast cancer prevention. We have demonstrated that 4-HPR blood levels remain constant during administration for as long as 5 years, that the drug accumulates in the human breast, and that it induces a significant decline of plasma retinol and insulinlike growth factor-I (IGF-I) levels. Accrual of the phase III study was closed on July 31, 1993 including 2,972 Stage I breast cancer patients. The aim is to evaluate the efficacy of a 5-year administration of 4-HPR to prevent new contralateral primary breast cancers. Compliance to protocol and treatment is high and tolerability of the drug is good; only 51 women out of 1,397 (3.6%) have interrupted drug intake due to toxicity. The only remarkable adverse effect of 4-HPR administration is diminished dark adaptation, which occurs in about one-fourth of the patients and is dependent on the decline of plasma retinol below the threshold level of 100 ng/ml. However, about 50% of the patients with altered dark-adaptometry are asymptomatic and the alterations of dark adaptation are promptly reversible upon drug discontinuation. Plasma level of N-(4-methoxyphenyl) retinamide (4-MPR), the principal metabolite of 4-HPR, which tends to be higher in women over 55 years with a high percentage of adipose tissue, is the major determinant of both retinol and IGF-I decrease. Since the combination of 4-HPR with the antioestrogen tamoxifen has shown a synergistic activity in preclinical models, it is currently an important avenue of clinical investigation in an attempt to prevent breast cancer. Moreover, a dose reduction of one or both agents in an effort to minimise toxicity while maintaining activity, would represent a major improvement in cancer chemoprevention.
A106: =HYPERLINK("http://www.ncbi.nlm.nih.gov/pubmed/" & I106,I106) -> 8463566 | B106: =(LEN($J106) - LEN(SUBSTITUTE(LOWER($J106),LOWER(B$3),"")))/LEN(B$3) -> 5 | C106: =(LEN($J106) - LEN(SUBSTITUTE(LOWER($J106),LOWER(C$3),"")))/LEN(C$3) -> 2 | D106: =(LEN($J106) - LEN(SUBSTITUTE(LOWER($J106),LOWER(D$3),"")))/LEN(D$3) -> 0 | E106: =SUM(B106:D106) -> 7 | F106: 1993 | G106: [Teratogenicity of retinoids. A case and review of the literature]. | H106: Heckel | I106: 8463566 | J106: [Teratogenicity of retinoids. A case and review of the literature]. Abstract: Retinoids are vitamin A derivatives used in dermatology. One of them, isotretinoin, is frequently prescribed for refractory juvenile acne. The teratogenetic power of this drug is substantial, being estimated at 15 to 45% of exposures in utero. The risk is maximum in the first trimester of pregnancy and persists up to one month after treatment has been discontinued. The most frequently described multiple malformation syndrome involves the face, the central nervous system and the heart. There is also a 20 to 30% rate of spontaneous abortion. The authors report a case where exposure during the first trimester did not result in foetal malformation. From a full review of the literature the various malformations observed, the presumed mechanisms of teratogenesis and the strict rules of prescription and surveillance in women child-bearing age are presented. The problem of the measures to be taken in case of retinoid treatment during pregnancy is discussed. The teratogenic risk from other retinoids is dealt with.
A107: =HYPERLINK("http://www.ncbi.nlm.nih.gov/pubmed/" & I107,I107) -> 1514108 | B107: =(LEN($J107) - LEN(SUBSTITUTE(LOWER($J107),LOWER(B$3),"")))/LEN(B$3) -> 7 | C107: =(LEN($J107) - LEN(SUBSTITUTE(LOWER($J107),LOWER(C$3),"")))/LEN(C$3) -> 0 | D107: =(LEN($J107) - LEN(SUBSTITUTE(LOWER($J107),LOWER(D$3),"")))/LEN(D$3) -> 0 | E107: =SUM(B107:D107) -> 7 | F107: 1992 | G107: Retinol (vitamin A) and riboflavin (vitamin B2) administration and metabolism in very low birth weight infants. | H107: Porcelli | I107: 1514108 | J107: Retinol (vitamin A) and riboflavin (vitamin B2) administration and metabolism in very low birth weight infants. Abstract: The combination of marginal hepatic retinol stores at delivery and the reduction of daily retinol dose due to complications with the delivery system places the VLBW infant receiving parenteral nutrition at high risk for retinol deficiency during the first month of life. This has serious health implications because retinol is essential during this period for normal growth and repair of the pulmonary tissue in VLBW infants. Enterally fed VLBW infants, on the other hand, receive relatively higher doses of retinol from vitamin-supplemented premature infant formula and fortified breast milk. Equally serious is the problem of monitoring vitamin A status in infants receiving supplemental doses of vitamin A. It seems clear that while plasma vitamin A levels are the most easily available method of monitoring vitamin A status, further studies are necessary to determine if these levels correlate with hepatic content. This is of particular concern since liver disease is common in VLBW infants and vitamin A hepatotoxicity has been described in a cohort of 41 patients receiving therapeutic doses of the vitamin. While further research of daily enteral and parenteral retinol requirements of VLBW infants should continue, formulation of a specific VLBW parenteral vitamin supplement should also be developed.
A108: =HYPERLINK("http://www.ncbi.nlm.nih.gov/pubmed/" & I108,I108) -> 1667403 | B108: =(LEN($J108) - LEN(SUBSTITUTE(LOWER($J108),LOWER(B$3),"")))/LEN(B$3) -> 7 | C108: =(LEN($J108) - LEN(SUBSTITUTE(LOWER($J108),LOWER(C$3),"")))/LEN(C$3) -> 0 | D108: =(LEN($J108) - LEN(SUBSTITUTE(LOWER($J108),LOWER(D$3),"")))/LEN(D$3) -> 0 | E108: =SUM(B108:D108) -> 7 | F108: 1991 | G108: Retinoid-binding proteins in craniofacial development. | H108: Dencker | I108: 1667403 | J108: Retinoid-binding proteins in craniofacial development. Abstract: Cephalic neural crest cells are known to form the frontonasal mesenchyme and contribute to the mesenchyme of the visceral arches. Retinoids affect neural crest cells and their derivatives during development, and thus cause craniofacial, thymus, and conotruncal heart malformations. In addition, retinoids induce malformations of the central nervous system (CNS). Retinoic acid (RA) and its congeners accumulate in a saturable manner in neural crest and neural crest-derived cells, in the hindbrain, and the spinal cord of mouse embryos. Cellular retinoic acid-binding protein (CRABP) was localized by immunohistochemistry in the same areas as were the labelled RA congeners. Thus, CRABP and RA congeners were found in the transitional zone between surface ectoderm and neuropeithelium, from where neural crest cells are known to emanate (day 8 1/2). Later, specific labelling was found in the frontonasal mesenchyme and in the visceral arches. Also in the trunk, neural crest cells were labelled. In CNS, strong staining was seen in the rhombomeres (especially numbers 4-6) of the hindbrain and in the spinal cord. Retinol and cellular retinol-binding protein (CRBP) were more evenly distributed, with exception of surface ectoderm, epithelium of gut, and myocardium, where CRBP was specifically expressed. These findings are discussed in relation to the differential expression of nuclear RA receptors and homeobox genes in the craniofacial region and in the hindbrain. It is possible that RA is important for the normal pattern formation in these regions and acts as a morphogen as previously proposed in limb development.
A109: =HYPERLINK("http://www.ncbi.nlm.nih.gov/pubmed/" & I109,I109) -> 2694156 | B109: =(LEN($J109) - LEN(SUBSTITUTE(LOWER($J109),LOWER(B$3),"")))/LEN(B$3) -> 7 | C109: =(LEN($J109) - LEN(SUBSTITUTE(LOWER($J109),LOWER(C$3),"")))/LEN(C$3) -> 0 | D109: =(LEN($J109) - LEN(SUBSTITUTE(LOWER($J109),LOWER(D$3),"")))/LEN(D$3) -> 0 | E109: =SUM(B109:D109) -> 7 | F109: 1989 | G109: Chemoprevention of experimental carcinogenesis in animals. | H109: Moon | I109: 2694156 | J109: Chemoprevention of experimental carcinogenesis in animals. Abstract: Retinoids are well-established chemopreventive agents for experimental carcinogenesis of many target organs including mammary glands, urinary bladder, lung, skin, liver, pancreas, colon, and esophagus. Modification of the basic retinoid structure has produced analogs with enhanced target organ specificity, increased inhibitory activity, and reduced toxicity. N-(4-hydroxyphenyl)retinamide (4-HPR) currently appears to be the most efficacious retinoid against carcinogen-induced breast, urinary bladder, and lung cancer in rodents. Retinoids are most effective when administered shortly after the carcinogen treatment; however, the treatment can be delayed significantly while maintaining its chemopreventive effect. Under various experimental conditions combining retinoid treatment with other modifiers of growth enhances its chemopreventive activity; for example retinoid plus hormonal modulation can provide better protection against mammary cancer than either treatment alone. More recently chemopreventive activity of various other classes of agents, such as thiols, phenols, antioxidants, inhibitors of prostaglandin synthesis, etc., have been investigated in experimental mammary, urinary bladder, and lung cancer models.
A110: =HYPERLINK("http://www.ncbi.nlm.nih.gov/pubmed/" & I110,I110) -> 2974796 | B110: =(LEN($J110) - LEN(SUBSTITUTE(LOWER($J110),LOWER(B$3),"")))/LEN(B$3) -> 6 | C110: =(LEN($J110) - LEN(SUBSTITUTE(LOWER($J110),LOWER(C$3),"")))/LEN(C$3) -> 1 | D110: =(LEN($J110) - LEN(SUBSTITUTE(LOWER($J110),LOWER(D$3),"")))/LEN(D$3) -> 0 | E110: =SUM(B110:D110) -> 7 | F110: 1988 | G110: Isotretinoin revisited. | H110: Shalita | I110: 2974796 | J110: Isotretinoin revisited. Abstract: Isotretinoin (13-cis-retinoic acid) remains the drug of choice for treatment of severe, recalcitrant nodulocystic acne that is unresponsive to conventional therapy, including oral antibiotics. The drug has been shown to produce dramatic clearing of lesions and prolonged remissions. The length of remission may be dependent on both the dosage used and the duration of therapy. Since fetal malformations have been observed in infants born of mothers taking isotretinoin during pregnancy, it is mandatory to prevent women who are pregnant or may become pregnant during treatment from taking isotretinoin. Because the half-life of isotretinoin is ten to twenty hours, and because it is eliminated from the body rapidly enough, women may become pregnant one month after discontinuation of therapy without an increased risk of birth defects. Common side effects of the drug include mucocutaneous reactions, serum lipid alterations, eye irritation, and myalgias. Less commonly observed are hyperostoses and exuberant granulation tissue, and rarely, pseudotumor cerebri. Recommendations for substantially reducing or eliminating these effects are made.
A111: =HYPERLINK("http://www.ncbi.nlm.nih.gov/pubmed/" & I111,I111) -> 3015289 | B111: =(LEN($J111) - LEN(SUBSTITUTE(LOWER($J111),LOWER(B$3),"")))/LEN(B$3) -> 7 | C111: =(LEN($J111) - LEN(SUBSTITUTE(LOWER($J111),LOWER(C$3),"")))/LEN(C$3) -> 0 | D111: =(LEN($J111) - LEN(SUBSTITUTE(LOWER($J111),LOWER(D$3),"")))/LEN(D$3) -> 0 | E111: =SUM(B111:D111) -> 7 | F111: 1986 | G111: [Metabolism of vitamin A and retinoids]. | H111: Jardillier | I111: 3015289 | J111: [Metabolism of vitamin A and retinoids]. Abstract: Dietary vitamin A is stored in the liver as ester derivatives; after hydrolysis it is transported through the organism bound to a Retinol Binding Protein-Prealbumin complex. Intracellular metabolism is complex and involves the binding to specific receptors for retinol (CRBP) and retinoic acid (CRABP) followed by a nuclear translocation. In addition, retinol can be phosphorylated and implicated in glycosylation processes. Retinoids are characterized by their action on cellular growth and differentiation. Such properties result in anticancer activities which have been clearly put in evidence in vitro and begin to be applied in human oncology. Nevertheless there is always a need for a better comprehension on fundamental mechanisms of natural or synthetic retinoids.
A112: =HYPERLINK("http://www.ncbi.nlm.nih.gov/pubmed/" & I112,I112) -> 6233342 | B112: =(LEN($J112) - LEN(SUBSTITUTE(LOWER($J112),LOWER(B$3),"")))/LEN(B$3) -> 5 | C112: =(LEN($J112) - LEN(SUBSTITUTE(LOWER($J112),LOWER(C$3),"")))/LEN(C$3) -> 2 | D112: =(LEN($J112) - LEN(SUBSTITUTE(LOWER($J112),LOWER(D$3),"")))/LEN(D$3) -> 0 | E112: =SUM(B112:D112) -> 7 | F112: 1984 | G112: Isotretinoin and pregnancy. | H112: Stern | I112: 6233342 | J112: Isotretinoin and pregnancy. Abstract: Approximately 120,000 women of childbearing age used isotretinoin in the first 16 months after its release for the treatment of cystic acne. In September, 1983, the American Academy of Dermatology requested its members to relate the outcome of pregnancies of women inadvertently exposed to isotretinoin ( Accutane ) during pregnancy to its Adverse Drug Reaction Reporting System ( ADRRS ). Of nine pregnancies reported, seven ended in spontaneous abortion or the birth of an infant with birth defects. Of thirty-five pregnancies with isotretinoin exposure reported to the ADRRS or the U.S. Food and Drug Administration, twenty-nine (83%) resulted in spontaneous abortion or infants with birth defects. The most frequently reported severe birth defects involved the central nervous system (microcephaly or hydrocephalus) and the cardiovascular system (anomalies of the great vessels). Microtia or absence of external ears were also noted in a majority of cases. These findings illustrate the usefulness of specialty-based reporting of adverse drug effects and emphasize the teratogenic risk of isotretinoin in humans. Physicians need to fully and carefully inform women of childbearing age of these risks.
A113: =HYPERLINK("http://www.ncbi.nlm.nih.gov/pubmed/" & I113,I113) -> 27511929 | B113: =(LEN($J113) - LEN(SUBSTITUTE(LOWER($J113),LOWER(B$3),"")))/LEN(B$3) -> 6 | C113: =(LEN($J113) - LEN(SUBSTITUTE(LOWER($J113),LOWER(C$3),"")))/LEN(C$3) -> 0 | D113: =(LEN($J113) - LEN(SUBSTITUTE(LOWER($J113),LOWER(D$3),"")))/LEN(D$3) -> 0 | E113: =SUM(B113:D113) -> 6 | F113: 2016 | G113: Biomarkers of Nutrition for Development (BOND)-Vitamin A Review. | H113: Tanumihardjo | I113: 27511929 | J113: Biomarkers of Nutrition for Development (BOND)-Vitamin A Review. Abstract: The Biomarkers of Nutrition for Development (BOND) project is designed to provide evidence-informed advice to anyone with an interest in the role of nutrition in health. The BOND program provides information with regard to selection, use, and interpretation of biomarkers of nutrient exposure, status, function, and effect, which will be especially useful for readers who want to assess nutrient status. To accomplish this objective, expert panels are recruited to evaluate the literature and to draft comprehensive reports on the current state of the art with regard to specific nutrient biology and available biomarkers for assessing nutritional status at the individual and population levels. Phase I of the BOND project includes the evaluation of biomarkers for 6 nutrients: iodine, folate, zinc, iron, vitamin A, and vitamin B-12. This review of vitamin A is the current article in this series. Although the vitamin was discovered gt;100 y ago, vitamin A status assessment is not trivial. Serum retinol concentrations are under homeostatic control due in part to vitamin As use in the body for growth and cellular differentiation and because of its toxic properties at high concentrations. Furthermore, serum retinol concentrations are depressed during infection and inflammation because retinol-binding protein (RBP) is a negative acute-phase reactant, which makes status assessment challenging. Thus, this review describes the clinical and functional indicators related to eye health and biochemical biomarkers of vitamin A status (i.e., serum retinol, RBP, breast-milk retinol, dose-response tests, isotope dilution methodology, and serum retinyl esters). These biomarkers are then related to liver vitamin A concentrations, which are usually considered the gold standard for vitamin A status. With regard to biomarkers, future research questions and gaps in our current understanding as well as limitations of the methods are described.
A114: =HYPERLINK("http://www.ncbi.nlm.nih.gov/pubmed/" & I114,I114) -> 25997921 | B114: =(LEN($J114) - LEN(SUBSTITUTE(LOWER($J114),LOWER(B$3),"")))/LEN(B$3) -> 6 | C114: =(LEN($J114) - LEN(SUBSTITUTE(LOWER($J114),LOWER(C$3),"")))/LEN(C$3) -> 0 | D114: =(LEN($J114) - LEN(SUBSTITUTE(LOWER($J114),LOWER(D$3),"")))/LEN(D$3) -> 0 | E114: =SUM(B114:D114) -> 6 | F114: 2015 | G114: Retinoids induce cellular senescence in breast cancer cells by RAR-β dependent and independent pathways: Potential clinical implications (Review). | H114: Shilkaitis | I114: 25997921 | J114: Retinoids induce cellular senescence in breast cancer cells by RAR-β dependent and independent pathways: Potential clinical implications (Review). Abstract: Most studies on cellular senescence (CS) have been performed in vitro by employing cytotoxic agents, irradiation, chromatin and telomerase modulators or by activating certain oncogenes. All these approaches usually lead to DNA damage, gene instability and/or chromatin alterations that primarily affect p53-p21 signaling. Little is known on whether retinoids and rexinoids, which are cell differentiation agents, can also induce CS in vitro and in vivo, and which molecular mechanisms are involved in promoting the senescent phenotype. We reviewed the recent publications on CS induced by retinoids and rexinoids in ER+ and ER- breast cancer cell lines and in corresponding animal models of mammary carcinogenesis which simulate those of human breast cancer. The role of retinoic acid receptors β2 and 5 (RARβ2 and RARβ5) and of receptor independent genes involved in mediating the senescence program of retinoids and rexinoids in ER+ and ER- breast cancer cells is discussed. Potential strategists for clinical implication of CS as biomarker of prognosis and of response to treatment with retinoids, rexinoids and with other cell differentiation and antitumor agents are outlined.
A115: =HYPERLINK("http://www.ncbi.nlm.nih.gov/pubmed/" & I115,I115) -> 25904072 | B115: =(LEN($J115) - LEN(SUBSTITUTE(LOWER($J115),LOWER(B$3),"")))/LEN(B$3) -> 2 | C115: =(LEN($J115) - LEN(SUBSTITUTE(LOWER($J115),LOWER(C$3),"")))/LEN(C$3) -> 4 | D115: =(LEN($J115) - LEN(SUBSTITUTE(LOWER($J115),LOWER(D$3),"")))/LEN(D$3) -> 0 | E115: =SUM(B115:D115) -> 6 | F115: 2015 | G115: Involvement of Different networks in mammary gland involution after the pregnancy/lactation cycle: Implications in breast cancer. | H115: Zaragozá | I115: 25904072 | J115: Involvement of Different networks in mammary gland involution after the pregnancy/lactation cycle: Implications in breast cancer. Abstract: Early pregnancy is associated with a reduction in a womans lifetime risk for breast cancer. However, different studies have demonstrated an increase in breast cancer risk in the years immediately following pregnancy. Early and long-term risk is even higher if the mother age is above 35 years at the time of first parity. The proinflammatory microenvironment within the mammary gland after pregnancy renders an quot;ideal nichequot; for oncogenic events. Signaling pathways involved in programmed cell death and tissue remodeling during involution are also activated in breast cancer. Herein, the major signaling pathways involved in mammary gland involution, signal transducer and activator of transcription (STAT3), nuclear factor-kappa B (NF-κB), transforming growth factor beta (TGFβ), and retinoid acid receptors (RARs)/retinoid X receptors (RXRs), are reviewed as part of the complex network of signaling pathways that crosstalk in a contextual-dependent manner. These factors, also involved in breast cancer development, are important regulatory nodes for signaling amplification after weaning. Indeed, during involution, p65/p300 target genes such as MMP9, Capn1, and Capn2 are upregulated. Elevated expression and activities of these proteases in breast cancer have been extensively documented. The role of these proteases during mammary gland involution is further discussed. MMPs, calpains, and cathepsins exert their effect by modification of the extracellular matrix and intracellular proteins. Calpains, activated in the mammary gland during involution, cleave several proteins located in cell membrane, lysosomes, mitochondria, and nuclei favoring cell death. Besides, during this period, Capn1 is most probably involved in the modulation of preadipocyte differentiation through chromatin remodeling. Calpains can be implicated in cell anchoring loss, providing a proper microenvironment for tumor growth. A better understanding of the role of any of these proteases in tumorigenesis may yield novel therapeutic targets or prognostic markers for breast cancer.
A116: =HYPERLINK("http://www.ncbi.nlm.nih.gov/pubmed/" & I116,I116) -> 25255817 | B116: =(LEN($J116) - LEN(SUBSTITUTE(LOWER($J116),LOWER(B$3),"")))/LEN(B$3) -> 1 | C116: =(LEN($J116) - LEN(SUBSTITUTE(LOWER($J116),LOWER(C$3),"")))/LEN(C$3) -> 5 | D116: =(LEN($J116) - LEN(SUBSTITUTE(LOWER($J116),LOWER(D$3),"")))/LEN(D$3) -> 0 | E116: =SUM(B116:D116) -> 6 | F116: 2015 | G116: Stretch marks during pregnancy: a review of topical prevention. | H116: Korgavkar | I116: 25255817 | J116: Stretch marks during pregnancy: a review of topical prevention. Abstract: Striae gravidarum (SG), or stretch marks developing during pregnancy, affect up to 90% of women. While not medically dangerous, SG can be disfiguring, causing emotional and psychological distress. However, studies specifically addressing the prevention of SG, especially during pregnancy, are sparse. Furthermore, the molecular pathogenesis of SG is unclear and may differ from that of striae from other causes. Considering these factors, we review topical modalities that have been used specifically for preventing SG during pregnancy. We identify two major strategies (end points) addressed by these modalities, namely (i) preventing the de novo development of SG and (ii) reducing the severity of SG that have recently developed. We also identify risk factors for the development of SG and suggest that pregnant women with these risk factors are an appropriate target population for prevention. In reviewing the literature, we find that there is limited evidence that centella, and possibly massage with bitter almond oil, may prevent SG and/or reduce their severity. There is weak evidence that hyaluronic acid prevents SG. Tretinoin holds promise for reducing the severity of new-onset SG, but its use is limited by its pregnancy category. Finally, cocoa butter and olive oil are not effective for preventing SG or reducing the severity of lesions. We conclude that reliable methods for preventing SG are scarce. Furthermore, available topical modalities generally lack strong evidence from rigorous, well-designed, randomized controlled trials with ample numbers of subjects. Thus, further research is necessary to elucidate SG pathogenesis, which may lead to effective prevention modalities.
A117: =HYPERLINK("http://www.ncbi.nlm.nih.gov/pubmed/" & I117,I117) -> 24147278 | B117: =(LEN($J117) - LEN(SUBSTITUTE(LOWER($J117),LOWER(B$3),"")))/LEN(B$3) -> 5 | C117: =(LEN($J117) - LEN(SUBSTITUTE(LOWER($J117),LOWER(C$3),"")))/LEN(C$3) -> 1 | D117: =(LEN($J117) - LEN(SUBSTITUTE(LOWER($J117),LOWER(D$3),"")))/LEN(D$3) -> 0 | E117: =SUM(B117:D117) -> 6 | F117: 2013 | G117: Isotretinoin: update on controversial issues. | H117: Prevost | I117: 24147278 | J117: Isotretinoin: update on controversial issues. Abstract: Acne vulgaris is a commonly seen dermatologic condition that plagues millions and can be very psychosocially disabling. Severe and recalcitrant acne is typically treated with isotretinoin. Isotretinoin is a synthetic vitamin A derivative that has been available since 1982.This therapeutic option has been the most effective at putting severe and recalcitrant acne vulgaris into remission. Despite its effectiveness,it has been associated with inflammatory bowel disease, depression, suicidality, and teratogenicity. We review the current literature on isotretinoins role in inflammatory bowel disease, depression, and suicidality. In addition, we review whether or not the iPledge program has been successful at reducing pregnancy rates while on isotretinoin.
A118: =HYPERLINK("http://www.ncbi.nlm.nih.gov/pubmed/" & I118,I118) -> 22419909 | B118: =(LEN($J118) - LEN(SUBSTITUTE(LOWER($J118),LOWER(B$3),"")))/LEN(B$3) -> 5 | C118: =(LEN($J118) - LEN(SUBSTITUTE(LOWER($J118),LOWER(C$3),"")))/LEN(C$3) -> 0 | D118: =(LEN($J118) - LEN(SUBSTITUTE(LOWER($J118),LOWER(D$3),"")))/LEN(D$3) -> 1 | E118: =SUM(B118:D118) -> 6 | F118: 2012 | G118: Enzymes of the AKR1B and AKR1C Subfamilies and Uterine Diseases. | H118: Rižner | I118: 22419909 | J118: Enzymes of the AKR1B and AKR1C Subfamilies and Uterine Diseases. Abstract: Endometrial and cervical cancers, uterine myoma, and endometriosis are very common uterine diseases. Worldwide, more than 800,000 women are affected annually by gynecological cancers, as a result of which, more than 360,000 die. During their reproductive age, about 70% of women develop uterine myomas and 10-15% suffer from endometriosis. Uterine diseases are associated with aberrant inflammatory responses and concomitant increased production of prostaglandins (PG). They are also related to decreased differentiation, due to low levels of protective progesterone and retinoic acid, and to enhanced proliferation, due to high local concentrations of estrogens. The pathogenesis of these diseases can thus be attributed to disturbed PG, estrogen, and retinoid metabolism and actions. Five human members of the aldo-keto reductase 1B (AKR1B) and 1C (AKR1C) superfamilies, i.e., AKR1B1, AKR1B10, AKR1C1, AKR1C2, and AKR1C3, have roles in these processes and can thus be implicated in uterine diseases. AKR1B1 and AKR1C3 catalyze the formation of PGF2α, which stimulates cell proliferation. AKR1C3 converts PGD2 to 9α,11β-PGF2, and thus counteracts the formation of 15-deoxy-PGJ2, which can activate pro-apoptotic peroxisome-proliferator-activated receptor γ. AKR1B10 catalyzes the reduction of retinal to retinol, and thus lessens the formation of retinoic acid, with potential pro-differentiating actions. The AKR1C1-AKR1C3 enzymes also act as 17-keto- and 20-ketosteroid reductases to varying extents, and are implicated in increased estradiol and decreased progesterone levels. This review comprises an introduction to uterine diseases and AKR1B and AKR1C enzymes, followed by an overview of the current literature on the AKR1B and AKR1C expression in the uterus and in uterine diseases. The potential implications of the AKR1B and AKR1C enzymes in the pathophysiologies are then discussed, followed by conclusions and future perspectives.
A119: =HYPERLINK("http://www.ncbi.nlm.nih.gov/pubmed/" & I119,I119) -> 20865785 | B119: =(LEN($J119) - LEN(SUBSTITUTE(LOWER($J119),LOWER(B$3),"")))/LEN(B$3) -> 5 | C119: =(LEN($J119) - LEN(SUBSTITUTE(LOWER($J119),LOWER(C$3),"")))/LEN(C$3) -> 1 | D119: =(LEN($J119) - LEN(SUBSTITUTE(LOWER($J119),LOWER(D$3),"")))/LEN(D$3) -> 0 | E119: =SUM(B119:D119) -> 6 | F119: 2010 | G119: The neurobehavioral teratology of retinoids: a 50-year history. | H119: Adams | I119: 20865785 | J119: The neurobehavioral teratology of retinoids: a 50-year history. Abstract: This review of the central nervous system (CNS) and behavioral teratology of the retinoids over the last 50 years is a commemorative retrospective organized by decade to show the prominent research focus within each period and the most salient findings. In the 1960s, research focused on the gross CNS malformations associated with exposure and the delineation of dose-response and stage-specific responses in rodent models. Relevant scientific events before and during the 1960s are also discussed to provide the zeitgeist in which the field of neurobehavioral teratology emerged in the 1970s. During this period, studies demonstrated that adverse effects on postnatal behavior could be produced in animals exposed to doses of vitamin A lower than those that were teratogenic or impacted growth. Work during the 1980s showed an overrepresentation of behavioral studies focused on the reliability of screening methods, while the marked effects of human exposure were illustrated in children born to women treated with isotretinoin during pregnancy. The human catastrophe invigorated research during the 1990s, a period when technological advances allowed more elegant examinations of the developing CNS, of biochemical, cellular, and molecular developmental events and regulatory actions, and of the effects of direct genetic manipulations. Likewise, research in the 1990s reflected a reinvigoration of research in neurobehavioral teratology evinced in studies that used animal models to try to better understand human vulnerability. These foci continued in the 2000-2010 period while examinations of the role of retinoids in brain development and lifelong functioning became increasingly sophisticated and broader in scope. This review of the work on retinoids also provides a lens on the more general ontogeny of the field of neurobehavioral teratology. Birth Defects Research (Part A), 2010. © 2010 Wiley-Liss, Inc.
A120: =HYPERLINK("http://www.ncbi.nlm.nih.gov/pubmed/" & I120,I120) -> 20456381 | B120: =(LEN($J120) - LEN(SUBSTITUTE(LOWER($J120),LOWER(B$3),"")))/LEN(B$3) -> 2 | C120: =(LEN($J120) - LEN(SUBSTITUTE(LOWER($J120),LOWER(C$3),"")))/LEN(C$3) -> 4 | D120: =(LEN($J120) - LEN(SUBSTITUTE(LOWER($J120),LOWER(D$3),"")))/LEN(D$3) -> 0 | E120: =SUM(B120:D120) -> 6 | F120: 2010 | G120: Differing obstetric outcomes of rosacea fulminans in pregnancy: report of three cases with review of pathogenesis and management. | H120: Jarrett | I120: 20456381 | J120: Differing obstetric outcomes of rosacea fulminans in pregnancy: report of three cases with review of pathogenesis and management. Abstract: Rosacea fulminans (RF) is a rare facial dermatosis characterized by the sudden onset of severe facial inflammation consisting of numerous pustules, cystic swellings and coalescing sinuses. The standard treatment is the retinoid drug isotretinoin in combination with systemic corticosteroids or with high-dose oral tetracycline antibiotics. We report three recent cases of RF in pregnancy with differing obstetric outcomes: an intrauterine death, a termination of pregnancy, and a normal vaginal delivery. The pathogenesis of RF is considered and therapeutic options in pregnancy are reviewed.
A121: =HYPERLINK("http://www.ncbi.nlm.nih.gov/pubmed/" & I121,I121) -> 19305958 | B121: =(LEN($J121) - LEN(SUBSTITUTE(LOWER($J121),LOWER(B$3),"")))/LEN(B$3) -> 1 | C121: =(LEN($J121) - LEN(SUBSTITUTE(LOWER($J121),LOWER(C$3),"")))/LEN(C$3) -> 5 | D121: =(LEN($J121) - LEN(SUBSTITUTE(LOWER($J121),LOWER(D$3),"")))/LEN(D$3) -> 0 | E121: =SUM(B121:D121) -> 6 | F121: 2009 | G121: [Drug therapy during pregnancy]. | H121: Schaefer | I121: 19305958 | J121: [Drug therapy during pregnancy]. Abstract: Most acute and chronic diseases do not require termination of a pregnancy nor is a pregnancy a reason to withhold necessary drug therapy. As many pregnancies are unplanned, any drug treatment during reproductive age should consider the occurrence of a pregnancy. Wherever possible, only medicinal drugs with sufficient documentation in pregnant women not indicating developmental toxicity should be chosen. There are acceptable drugs for the majority of diseases, although many of them are labeled as contraindicated during pregnancy. This article provides an overview on prenatal risks of ACE-inhibitors, AT II-receptor antagonists, antiepileptics, SSRI, atypical neuroleptics, lithium, coumarin anticoagulants, retinoids, selected antibiotics, immunomodulatory drugs and provides treatment recommendations for the most common diseases.
A122: =HYPERLINK("http://www.ncbi.nlm.nih.gov/pubmed/" & I122,I122) -> 19213560 | B122: =(LEN($J122) - LEN(SUBSTITUTE(LOWER($J122),LOWER(B$3),"")))/LEN(B$3) -> 6 | C122: =(LEN($J122) - LEN(SUBSTITUTE(LOWER($J122),LOWER(C$3),"")))/LEN(C$3) -> 0 | D122: =(LEN($J122) - LEN(SUBSTITUTE(LOWER($J122),LOWER(D$3),"")))/LEN(D$3) -> 0 | E122: =SUM(B122:D122) -> 6 | F122: 2009 | G122: Retinoids and breast cancer prevention. | H122: Bonanni | I122: 19213560 | J122: Retinoids and breast cancer prevention. Abstract: Preclinical models suggest that retinoids inhibit mammary carcinogenesis. Induction of apoptosis is a unique feature of fenretinide, the most studied retinoid in clinical trials of breast cancer chemoprevention due to its selective accumulation in breast tissue and its favorable toxicological profile. In a phase III breast cancer prevention trial, fenretinide showed a very strong trend of reduction of incidence of second breast malignancies in premenopausal women, which was confirmed by the 15-year follow-up. Interestingly, ovarian cancer incidence appeared reduced during treatment in the same trial. This warrants further research on fenretinide mechanisms of action and potential efficacy and provides the rationale for a phase III primary prevention trial in young women at high risk for breast cancer.
A123: =HYPERLINK("http://www.ncbi.nlm.nih.gov/pubmed/" & I123,I123) -> 17326003 | B123: =(LEN($J123) - LEN(SUBSTITUTE(LOWER($J123),LOWER(B$3),"")))/LEN(B$3) -> 6 | C123: =(LEN($J123) - LEN(SUBSTITUTE(LOWER($J123),LOWER(C$3),"")))/LEN(C$3) -> 0 | D123: =(LEN($J123) - LEN(SUBSTITUTE(LOWER($J123),LOWER(D$3),"")))/LEN(D$3) -> 0 | E123: =SUM(B123:D123) -> 6 | F123: 2007 | G123: Vitamins as hormones. | H123: Reichrath | I123: 17326003 | J123: Vitamins as hormones. Abstract: Vitamins A and D are the first group of substances that have been reported to exhibit properties of skin hormones, such as organized metabolism, activation, inactivation, and elimination in specialized cells of the tissue, exertion of biological activity, and release in the circulation. Vitamin A and its two important metabolites, retinaldehyde and retinoic acids, are fat-soluble unsaturated isoprenoids necessary for growth, differentiation and maintenance of epithelial tissues, and also for reproduction. In a reversible process, vitamin A is oxidized IN VIVO to give retinaldehyde, which is important for vision. The dramatic effects of vitamin A analogues on embryogenesis have been studied by animal experiments; the clinical malformation pattern in humans is known. Retinoic acids are major oxidative metabolites of vitamin A and can substitute for it in vitamin A-deficient animals in growth promotion and epithelial differentiation. Natural vitamin A metabolites are vitamins, because vitamin A is not synthesized in the body and must be derived from carotenoids in the diet. On the other hand, retinoids are also hormones - with intracrine activity - because retinol is transformed in the cells into molecules that bind to and activate specific nuclear receptors, exhibit their function, and are subsequently inactivated. The mechanisms of action of natural vitamin A metabolites on human skin are based on the time- and dose-dependent influence of morphogenesis, epithelial cell proliferation and differentiation, epithelial and mesenchymal synthetic performance, immune modulation, stimulation of angiogenesis and inhibition of carcinogenesis. As drugs, vitamin A and its natural metabolites have been approved for the topical and systemic treatment of mild to moderate and severe, recalcitrant acne, photoaging and biologic skin aging, acute promyelocytic leukaemia and Kaposis sarcoma. On the other hand, the critical importance of the skin for the human bodys vitamin D endocrine system is documented by the fact that the skin is both the site of vitamin D (3)- and 1,25-dihydroxyvitamin D (3) [1, 25(OH) (2)D (3)]-synthesis and a target organ for 1,25(OH) (2)D (3). 1,25(OH) (2)D (3) is not only essential for mineral homeostasis and bone integrity, but also for numerous further physiologic functions including regulation of growth and differentiation in a broad variety of normal and malignant tissues, including cells derived from prostate, breast and bone. In keratinocytes and other cell types, 1,25(OH) (2)D (3) regulates growth and differentiation. Consequently, vitamin D analogues have been introduced for the treatment of the hyperproliferative skin disease psoriasis. Other newly detected functions of vitamin D analogues include profound effects on the immune system as well as protection against cancer and other diseases, including autoimmune and infectious diseases, in various tissues. Current investigation of the biological effects of vitamin D analogues are likely to lead to new therapeutic applications that, besides cancer prevention, may include the prevention and treatment of infectious as well as of inflammatory skin diseases. This review summarizes existing knowledge on vitamins A and D, the major vitamin-hormones of the skin.
A124: =HYPERLINK("http://www.ncbi.nlm.nih.gov/pubmed/" & I124,I124) -> 15981190 | B124: =(LEN($J124) - LEN(SUBSTITUTE(LOWER($J124),LOWER(B$3),"")))/LEN(B$3) -> 6 | C124: =(LEN($J124) - LEN(SUBSTITUTE(LOWER($J124),LOWER(C$3),"")))/LEN(C$3) -> 0 | D124: =(LEN($J124) - LEN(SUBSTITUTE(LOWER($J124),LOWER(D$3),"")))/LEN(D$3) -> 0 | E124: =SUM(B124:D124) -> 6 | F124: 2005 | G124: Congenital diaphragmatic hernia: a retinoid-signaling pathway disruption during lung development? | H124: Gallot | I124: 15981190 | J124: Congenital diaphragmatic hernia: a retinoid-signaling pathway disruption during lung development? Abstract: Congenital diaphragmatic hernia (CDH) usually occurs sporadically. The prognosis remains poor, with a 50% perinatal mortality rate. Most deaths result from hypoxemia due to lung hypoplasia and abnormal development of pulmonary vasculature that results in persistent pulmonary hypertension. Our current understanding of the pathogenesis of CDH is based on an assumption linking herniation of abdominal viscera into the thorax with compression of the developing lung. Pulmonary hypoplasia, however, can also result from reduced distension of the developing lung secondary to impaired fetal breathing movements. Moreover, a nitrofen-induced CDH model shows that lung hypoplasia precedes the diaphragmatic defect, leading to a quot;dual-hit hypothesis.quot; Recent data reveal the role of a retinoid-signaling pathway disruption in the pathogenesis of CDH. We describe the clinical and epidemiological aspects of human CDH, the metabolic and molecular aspects of the retinoid-signaling pathway, and the implications of retinoids in the development of the diaphragm and the lung. Finally, we highlight the existing links between CDH and disruption of the retinoid-signaling pathway, which may suggest an eventual use of retinoids in the treatment of CDH.
A125: =HYPERLINK("http://www.ncbi.nlm.nih.gov/pubmed/" & I125,I125) -> 14587861 | B125: =(LEN($J125) - LEN(SUBSTITUTE(LOWER($J125),LOWER(B$3),"")))/LEN(B$3) -> 6 | C125: =(LEN($J125) - LEN(SUBSTITUTE(LOWER($J125),LOWER(C$3),"")))/LEN(C$3) -> 0 | D125: =(LEN($J125) - LEN(SUBSTITUTE(LOWER($J125),LOWER(D$3),"")))/LEN(D$3) -> 0 | E125: =SUM(B125:D125) -> 6 | F125: 2003 | G125: Breast cancer prevention trials using retinoids. | H125: Decensi | I125: 14587861 | J125: Breast cancer prevention trials using retinoids. Abstract: Retinoids have been studied as chemopreventive agents in clinical trials. Given their ability to inhibit mammary carcinogenesis in preclinical models. Fenretinide has extensively been investigated because of its favorable toxicological profile in humans. In a phase III secondary prevention trial, fenretinide showed a trend to a reduction of second breast malignancies in premenopausal women but not in postmenopausal women. This pattern was associated with a similar modulation of circulating IGF-I. A trend towards a reduction of ovarian cancer was also noted. Biomarker studies of fenretinide or novel selective retinoids alone and in combination with different nuclear receptor ligands are being conducted. These studies provide a model for testing the safety and tolerability, pharmacokinetics and pharmacodynamics, and biomarker modulation in high-risk women, and offer clues as to both the pathophysiology of carcinogenesis and the drug mechanisms of action, and help select new compounds and doses for testing in large randomized studies.
A126: =HYPERLINK("http://www.ncbi.nlm.nih.gov/pubmed/" & I126,I126) -> 12743994 | B126: =(LEN($J126) - LEN(SUBSTITUTE(LOWER($J126),LOWER(B$3),"")))/LEN(B$3) -> 6 | C126: =(LEN($J126) - LEN(SUBSTITUTE(LOWER($J126),LOWER(C$3),"")))/LEN(C$3) -> 0 | D126: =(LEN($J126) - LEN(SUBSTITUTE(LOWER($J126),LOWER(D$3),"")))/LEN(D$3) -> 0 | E126: =SUM(B126:D126) -> 6 | F126: 2003 | G126: Retinoids, retinoic acid receptors, and breast cancer. | H126: Paik | I126: 12743994 | J126: Retinoids, retinoic acid receptors, and breast cancer. Abstract: Retinoids comprise both naturally and synthetically occurring compounds that have been proven to be differentiation agents for a variety of neoplasias, including breast cancer and promyelocytic leukemia in animal models and humans. They offer a unique panoply of therapeutics for the prevention or treatment of breast cancer. Nonetheless, considerable controversy remains as to the efficacy and potential toxic side-effects and as to which group of patients may most benefit. In this article, we review evidence of retinoid efficacy in breast cancer in humans and in animal models and provide possible mechanisms of retinoid action in breast cancer treatment, focusing on the roles of the different retinoic acid receptors and the metabolic pathways necessary for gene activation and cellular homeostasis.
A127: =HYPERLINK("http://www.ncbi.nlm.nih.gov/pubmed/" & I127,I127) -> 12195157 | B127: =(LEN($J127) - LEN(SUBSTITUTE(LOWER($J127),LOWER(B$3),"")))/LEN(B$3) -> 6 | C127: =(LEN($J127) - LEN(SUBSTITUTE(LOWER($J127),LOWER(C$3),"")))/LEN(C$3) -> 0 | D127: =(LEN($J127) - LEN(SUBSTITUTE(LOWER($J127),LOWER(D$3),"")))/LEN(D$3) -> 0 | E127: =SUM(B127:D127) -> 6 | F127: 2002 | G127: Linkage between retinoid and fatty acid receptors: implications for breast cancer prevention. | H127: Stoll | I127: 12195157 | J127: Linkage between retinoid and fatty acid receptors: implications for breast cancer prevention. Abstract: Certain dietary retinoids and polyunsaturated fatty acids (PUFAs) consistently inhibit progression of mammary carcinogenesis both in animal studies and cell culture, but clinically, their effect is inconsistent. New evidence of synergistic interaction between the nuclear receptors for the two groups of nutritional agents suggests that appropriate selective ligands from each group might be combined in breast cancer chemoprevention studies. Peroxisome proliferator-activated receptor (PPAR) gamma is a nuclear receptor that is activated by PUFAs, eicosanoids and antidiabetic agents such as troglitazone. Such activation can cause growth inhibition in human mammary cancer cells in culture and the effect is enhanced by ligands of retinoic acid receptor (RAR) and retinoid X receptor (RXR). In mouse mammary tissue in organ culture, an RXR-selective ligand has been shown to enhance the effect of troglitazone in suppressing carcinogen-induced pre-neoplastic changes. A PPAR/RXR heterodimer is involved in tumour growth inhibition and has been shown to bind directly to nuclear oestrogen response elements (ERE) independently of oestrogen receptor (ER) activity. A combination of an RXR-selective retinoid with either troglitazone or else a long-chain n-3 PUFA, is proposed for a short-term study in postmenopausal women after primary surgery for intraductal breast cancer. The resulting activation of PPAR/RXR expression may increase response to retinoid administration, especially in the presence of obesity and insulin resistance, because of the ability of PPAR gamma ligands to reduce insulin-like growth factor I (IGF-I) concentrations. Serial core biopsies of breast tissue over a short term are proposed to identify changes in phenotype, which may influence progression to invasiveness. In addition to cytomorphological criteria, expression of ER alpha and beta, RAR alpha and beta, and IGF-I receptor in the nucleus should be examined.
A128: =HYPERLINK("http://www.ncbi.nlm.nih.gov/pubmed/" & I128,I128) -> 11921197 | B128: =(LEN($J128) - LEN(SUBSTITUTE(LOWER($J128),LOWER(B$3),"")))/LEN(B$3) -> 6 | C128: =(LEN($J128) - LEN(SUBSTITUTE(LOWER($J128),LOWER(C$3),"")))/LEN(C$3) -> 0 | D128: =(LEN($J128) - LEN(SUBSTITUTE(LOWER($J128),LOWER(D$3),"")))/LEN(D$3) -> 0 | E128: =SUM(B128:D128) -> 6 | F128: 2002 | G128: Selective estrogen receptor modulators (SERMs) and retinoids in breast cancer chemoprevention. | H128: Zujewski | I128: 11921197 | J128: Selective estrogen receptor modulators (SERMs) and retinoids in breast cancer chemoprevention. Abstract: Tamoxifen has been shown to decrease the risk of invasive breast cancer by 49% and noninvasive breast cancer by 50%. Tamoxifen is also associated with a threefold increased risk of endometrial cancer. Raloxifene, a second-generation selective estrogen receptor modulator (SERM), has not been associated with endometrial cancer risk, and is currently under study in a large, multi-institutional, randomized Study of Tamoxifen and Raloxifene (STAR) for breast cancer prevention in postmenopausal women. A pilot trial of raloxifene in premenopausal women to assess the safety, tolerability, effects on bone mineral density, mammographic density, and other biological endpoints is ongoing. The retinoids have been shown to decrease mammary tumors in rodent carcinogenesis models. The Italian trial of fenretinide (4-HPR) in women with stage I breast cancer randomized women to fenretinide or no intervention. This study did not show an overall effect of decreasing the risk of contralateral breast cancer. However, a protective effect was suggested in premenopausal women. It has been suggested that this effect may be related to insulin-like growth factor 1 (IGF-1), which has been shown to be modulated by fenretinide in premenopausal but not postmenopausal women. Pilot studies of SERMs alone and in combination with retinoids or other agents provide a model for testing the safety and tolerability, pharmacokinetics and pharmacodynamics, and biomarker modulation in high-risk women. These studies can provide information as to both the pathophysiology of carcinogenesis and the mechanism of action of chemopreventive agents, and help select agents and doses for testing in large randomized studies.
A129: =HYPERLINK("http://www.ncbi.nlm.nih.gov/pubmed/" & I129,I129) -> 11501579 | B129: =(LEN($J129) - LEN(SUBSTITUTE(LOWER($J129),LOWER(B$3),"")))/LEN(B$3) -> 6 | C129: =(LEN($J129) - LEN(SUBSTITUTE(LOWER($J129),LOWER(C$3),"")))/LEN(C$3) -> 0 | D129: =(LEN($J129) - LEN(SUBSTITUTE(LOWER($J129),LOWER(D$3),"")))/LEN(D$3) -> 0 | E129: =SUM(B129:D129) -> 6 | F129: 2001 | G129: Epigenetic downregulation of the retinoic acid receptor-beta2 gene in breast cancer. | H129: Widschwendter | I129: 11501579 | J129: Epigenetic downregulation of the retinoic acid receptor-beta2 gene in breast cancer. Abstract: A growing body of evidence supports the hypothesis that the retinoic acid receptor beta2 (RAR-beta2) gene is a tumor suppressor gene which induces apoptosis and that the chemopreventive and therapeutic effects of retinoids are due to induction of RAR-beta2. During breast cancer progression, RAR-beta2 is reduced or even lost. It is known from studies of other tumor-suppressor genes that methylation of the 5-region is the cause of loss of expression. Several groups demonstrated that this is also true for the RAR-beta2 in breast cancer by treating breast cancer cell lines with a demethylating agent and examining expression of the RAR-beta2 gene in response to a challenge with retinoic acid. Studies using sodium bisulfite genomic sequencing as well as methylation specific PCR showed that a number of breast cancer cell lines as well as breast cancer tissue showed signs of methylation. The RAR-beta2 gene was unmethylated in non-neoplastic breast tissue as well as in other normal tissues. A combination of retinoic acid with demethylating agents as well as with histone deacetylase inhibitors acts synergistically to inhibit growth. This review presents data that suggest that treatment of cancer patients with demethylating agents followed by retinoic acid may offer a new therapeutic modality. Both the time of commencement of chemoprevention and the choice of substances that are able either to prevent de novo methylation or to reverse methylation-caused gene silencing may be important considerations.
A130: =HYPERLINK("http://www.ncbi.nlm.nih.gov/pubmed/" & I130,I130) -> 11140907 | B130: =(LEN($J130) - LEN(SUBSTITUTE(LOWER($J130),LOWER(B$3),"")))/LEN(B$3) -> 6 | C130: =(LEN($J130) - LEN(SUBSTITUTE(LOWER($J130),LOWER(C$3),"")))/LEN(C$3) -> 0 | D130: =(LEN($J130) - LEN(SUBSTITUTE(LOWER($J130),LOWER(D$3),"")))/LEN(D$3) -> 0 | E130: =SUM(B130:D130) -> 6 | F130: 2000 | G130: The oxidation of 9-cis-retinol: a possible synthesis pathway for 9-cis-retinoic acid. | H130: Wolf | I130: 11140907 | J130: The oxidation of 9-cis-retinol: a possible synthesis pathway for 9-cis-retinoic acid. Abstract: A short-chain alcohol dehydrogenase has been discovered that oxidizes 9-cis- and 11-cis-retinol to their corresponding aldehydes. The gene for this enzyme was sequenced and appears to be expressed with highest efficiency in the retinal pigment epithelium of the eye, as well as in human liver and mammary gland and in mouse liver and kidney. Because 9-cis-retinol occurs in liver, it may be a precursor of 9-cis-retinoic acid.
A131: =HYPERLINK("http://www.ncbi.nlm.nih.gov/pubmed/" & I131,I131) -> 10776699 | B131: =(LEN($J131) - LEN(SUBSTITUTE(LOWER($J131),LOWER(B$3),"")))/LEN(B$3) -> 1 | C131: =(LEN($J131) - LEN(SUBSTITUTE(LOWER($J131),LOWER(C$3),"")))/LEN(C$3) -> 5 | D131: =(LEN($J131) - LEN(SUBSTITUTE(LOWER($J131),LOWER(D$3),"")))/LEN(D$3) -> 0 | E131: =SUM(B131:D131) -> 6 | F131: 2000 | G131: Acute promyelocytic leukemia and pregnancy. | H131: Giagounidis | I131: 10776699 | J131: Acute promyelocytic leukemia and pregnancy. Abstract: In acute promyelocytic leukemia (APL), the use of all-trans-retinoic acid (ATRA) as a differentiating agent induces complete remission in a high percentage of patients. In pregnancy, however, this drug bears the risk of severe teratogenicity to the child. We report the case of a 23-yr-old woman at 21 weeks gestation suffering from APL. She was treated with ATRA (45 mg/m2) for 40 d and two courses of standard chemotherapy. The mother achieved complete remission within 22 d of treatment. Fetal development was normal, and a healthy premature girl was born in the 35th week of pregnancy. In a review of the literature we have identified 14 cases of APL in pregnancy treated with ATRA alone or in combination with chemotherapy. ATRA has been used as early as in the 3rd week of gestation and in no case have malformations or other teratogenic effects occurred. Side-effects, however, ranged from fetal cardiac arrhythmias to induction of labour. Although known to exhibit severe teratogenic effects during the first trimester of pregnancy, ATRA seems to be reasonably safe during the second and third trimesters in the treatment of APL. However, careful obstetric follow-up is mandatory regarding fetal cardiac complications.
A132: =HYPERLINK("http://www.ncbi.nlm.nih.gov/pubmed/" & I132,I132) -> 9431575 | B132: =(LEN($J132) - LEN(SUBSTITUTE(LOWER($J132),LOWER(B$3),"")))/LEN(B$3) -> 6 | C132: =(LEN($J132) - LEN(SUBSTITUTE(LOWER($J132),LOWER(C$3),"")))/LEN(C$3) -> 0 | D132: =(LEN($J132) - LEN(SUBSTITUTE(LOWER($J132),LOWER(D$3),"")))/LEN(D$3) -> 0 | E132: =SUM(B132:D132) -> 6 | F132: 1998 | G132: Periconceptional vitamin A use: how much is teratogenic? | H132: Miller | I132: 9431575 | J132: Periconceptional vitamin A use: how much is teratogenic? Abstract: The objective of the review is to determine whether preformed vitamin A (retinol and retinyl esters) is teratogenic at dosages commonly used by women living in industrialized countries. Published human and animal data and research developed by the authors are reviewed. It is well known that vitamin A is essential for normal reproduction and development. Although doses of 10,000 IU/d or less of preformed vitamin A (retinyl esters and retinol) are considered safe, doses gt; 10,000 IU/d as supplements have been reported to cause malformations in a single epidemiologic study. Nonhuman primate data show no teratogenicity at doses of 30,000 IU/d. Daily periconceptional exposures greater than 25,000 IU/d of preformed vitamin A have not been sufficiently studied to establish specific risk. Because no study reports adverse effects of 10,000 IU/d preformed vitamin A supplements and this dose is more than the Recommended Dietary Allowance for pregnant women (2670 IU or 800 RE/d), we recommend that women living in industrialized countries or who otherwise have nutritionally adequate diets may not need to ingest more than the Recommended Dietary Allowance of preformed vitamin A as supplements. If periconceptional vitamin A exposures to levels up to 30,000 IU/d (9,000 micrograms RE/d) do occur unintentionally, multiple animal studies do support only very low risk. Human epidemiologic studies do not establish at what level vitamin A becomes teratogenic; however, pharmacokinetic data presented in this paper indicate that blood levels of retinoids from women taking 30,000 IU/d of preformed vitamin A are not greater than retinoid blood levels in pregnant women during the first trimester who delivered healthy babies. Interestingly, neither teratogenicity nor vitamin A toxicity has been observed in multiple species exposed to high doses of beta-carotene.
A133: =HYPERLINK("http://www.ncbi.nlm.nih.gov/pubmed/" & I133,I133) -> 9219460 | B133: =(LEN($J133) - LEN(SUBSTITUTE(LOWER($J133),LOWER(B$3),"")))/LEN(B$3) -> 1 | C133: =(LEN($J133) - LEN(SUBSTITUTE(LOWER($J133),LOWER(C$3),"")))/LEN(C$3) -> 5 | D133: =(LEN($J133) - LEN(SUBSTITUTE(LOWER($J133),LOWER(D$3),"")))/LEN(D$3) -> 0 | E133: =SUM(B133:D133) -> 6 | F133: 1997 | G133: Serum concentrations of zinc, folate, vitamins A and E, and proteins, and their relationships to pregnancy outcome. | H133: Tamura | I133: 9219460 | J133: Serum concentrations of zinc, folate, vitamins A and E, and proteins, and their relationships to pregnancy outcome. Abstract: OBJECTIVE : To review the relationships between various laboratory measures relating to nutrition and pregnancy outcome. The data were obtained during the investigation entitled quot;Successive small-for-gestational-age births studyquot;. METHODS : A total of 289 pregnant women of the 1545 who participated in the study between 1986 and 1988 in Birmingham, Alabama, USA. The following determinations were done using the serum samples obtained at 18 and 30 weeks of gestation: zinc, folate, vitamins A and E, and proteins (alpha-2-macroglobulin, retinol-binding protein, prealbumin, and albumin). These laboratory values were correlated with various measures of pregnancy outcome including the incidence of fetal-growth retardation and maternal infections during the perinatal period and birth weight and Apgar score of infants. RESULTS : Serum folate concentrations showed positive relationships with the incidence of fetal-growth retardation as well as birth weight of infants, and alpha-2-macroglobulin was negatively correlated with birth weight. These relationships were significant after adjusting for factors previously known to affect the birth weight of infants. The concentrations of serum zinc, vitamins A and E, and proteins did not show significant correlation with measures of pregnancy outcome. CONCLUSION : Among the laboratory measures evaluated in this study, serum folate and alpha-2-macroglobulin concentrations correlated with pregnancy outcome. Further research is warranted to investigate the mechanism(s) of the relationship between serum alpha-2-macroglobulin and birth weight of infants.
A134: =HYPERLINK("http://www.ncbi.nlm.nih.gov/pubmed/" & I134,I134) -> 9077255 | B134: =(LEN($J134) - LEN(SUBSTITUTE(LOWER($J134),LOWER(B$3),"")))/LEN(B$3) -> 1 | C134: =(LEN($J134) - LEN(SUBSTITUTE(LOWER($J134),LOWER(C$3),"")))/LEN(C$3) -> 5 | D134: =(LEN($J134) - LEN(SUBSTITUTE(LOWER($J134),LOWER(D$3),"")))/LEN(D$3) -> 0 | E134: =SUM(B134:D134) -> 6 | F134: 1996 | G134: Fish and healthy pregnancy: more than just a red herring! | H134: Rice | I134: 9077255 | J134: Fish and healthy pregnancy: more than just a red herring! Abstract: In modern Western diets we eat predominantly omega-6 essential fatty acids from vegetable oils, and too little omega-3. The Department of Health recommends doubling the amount of omega-3s we eat. Omega-3 essential fatty acids (EFAs) are derived mainly from fish oils. Omega-3s are believed to help reduce the risks of cardiovascular disease. Among the main materials required for fetal brain and CNS growth in late pregnancy are omega-3s (mainly docosahexaenoic acid [DHA]) and omega-6 EFAs (mainly arachidonic acid [AA]). These come from the mothers diet. Several formulae for preterm infants now contain DHA and AA to aid optimum brain, nerve and retinal development. One manufacturer has begun to include DHA and AA in formulae for term babies. Breast milk contains DHA and AA, derived from the mothers diet. Eating oily fish in pregnancy has been found to have a slight beneficial effect on birthweight and length of gestation. Eating fresh or canned oil-rich fish (e.g. kippers, herring, mackerel, salmon, sardine, pilchards, tuna) twice or three times a week can be encouraged as part of a healthy balanced diet, in pregnancy and for all the family. As well as containing omega-3 polyunsaturates, oily fish is a good source of protein and vitamins A and D. Alternatively, a fish-oil supplement may be taken. Cod liver oil is best avoided during pregnancy, because of concerns over the possible teratogenicity of vitamin A.
A135: =HYPERLINK("http://www.ncbi.nlm.nih.gov/pubmed/" & I135,I135) -> 8825126 | B135: =(LEN($J135) - LEN(SUBSTITUTE(LOWER($J135),LOWER(B$3),"")))/LEN(B$3) -> 6 | C135: =(LEN($J135) - LEN(SUBSTITUTE(LOWER($J135),LOWER(C$3),"")))/LEN(C$3) -> 0 | D135: =(LEN($J135) - LEN(SUBSTITUTE(LOWER($J135),LOWER(D$3),"")))/LEN(D$3) -> 0 | E135: =SUM(B135:D135) -> 6 | F135: 1996 | G135: The efficacy of 9-cis retinoic acid in experimental models of cancer. | H135: Gottardis | I135: 8825126 | J135: The efficacy of 9-cis retinoic acid in experimental models of cancer. Abstract: 9-cis retinoic acid (9-cis RA) is a retinoid receptor pan-agonist that binds with high affinity to both retinoic acid receptors (RARs) and retinoid X receptors (RXRs). Using a variety of in vivo and in vitro cancer models, we present experimental data that 9-cis RA has activity as a potential chemotherapeutic agent. Treatment of the human promyelocytic leukemia cell line HL-60 with 9-cis RA decreases cell proliferation, increases cell differentiation, and increases apoptosis. Induction of apoptosis correlates with an increase in tissue transglutaminase (type II) activity. In vivo, 9-cis RA induces complete tumor regression of an early passage human lip squamous cell carcinoma xenograft. Finally, 9-cis RA inhibits the anchorage-independent growth of the human breast cancer cell lines MCF-7 and LY2 (an antiestrogen-resistant MCF-7 variant). Transient co-transfection assays indicate that 9-cis RA inhibits estrogen receptor transcription of an ERE-tk-LUC reporter through RAR or RXR receptors. These data suggest that retinoid receptors can antagonize estrogen-dependent transcription and provides one possible mechanism for the inhibition of cell growth by 9-cis RA in breast cancer cell lines. In summary, these findings present evidence that 9-cis RA has a wide range of activities in human cancer models.
A136: =HYPERLINK("http://www.ncbi.nlm.nih.gov/pubmed/" & I136,I136) -> 8573297 | B136: =(LEN($J136) - LEN(SUBSTITUTE(LOWER($J136),LOWER(B$3),"")))/LEN(B$3) -> 6 | C136: =(LEN($J136) - LEN(SUBSTITUTE(LOWER($J136),LOWER(C$3),"")))/LEN(C$3) -> 0 | D136: =(LEN($J136) - LEN(SUBSTITUTE(LOWER($J136),LOWER(D$3),"")))/LEN(D$3) -> 0 | E136: =SUM(B136:D136) -> 6 | F136: 1995 | G136: Risks and benefits of retinoids in the chemoprevention of cancer. | H136: de Palo | I136: 8573297 | J136: Risks and benefits of retinoids in the chemoprevention of cancer. Abstract: Chemoprevention of cancer is a new branch of clinical research; it may be defined as the reduction of cancer incidence by pharmacological means through the suppression of established malignant cell clones or through alteration in growth and progression of premalignant cell populations. In the last few years, this area of research has progressed dramatically from preclinical studies to phase I, II and III clinical trials. Among the various chemical or natural compounds used as chemopreventive agents, retinoids appear to be one of the most promising groups of agents. Analyses of preclinical and clinical studies have shown retinoids to be active in reversing skin and oral precancer, in preventing primary skin cancer, superficial bladder cancer, and second primary tumours associated with head and neck and lung cancers. Preclinical studies have shown evidence of the activity of fenretinide in breast cancer. Preliminary clinical data seem to show a protective effect of fenretinide against ovarian cancer. Current evidence therefore suggests that chemoprevention of cancer with retinoids is a promising path.
A137: =HYPERLINK("http://www.ncbi.nlm.nih.gov/pubmed/" & I137,I137) -> 8527214 | B137: =(LEN($J137) - LEN(SUBSTITUTE(LOWER($J137),LOWER(B$3),"")))/LEN(B$3) -> 6 | C137: =(LEN($J137) - LEN(SUBSTITUTE(LOWER($J137),LOWER(C$3),"")))/LEN(C$3) -> 0 | D137: =(LEN($J137) - LEN(SUBSTITUTE(LOWER($J137),LOWER(D$3),"")))/LEN(D$3) -> 0 | E137: =SUM(B137:D137) -> 6 | F137: 1995 | G137: Retinoids as teratogens. | H137: Soprano | I137: 8527214 | J137: Retinoids as teratogens. Abstract: Vitamin A is a necessary nutrient in the diet. However, excessive doses of retinoids by pregnant women result in teratogenesis. In this chapter, we initially discuss the occurrence and characteristics of fetal malformations associated with maternal ingestion of natural and synthetic retinoids in both experimental animals and humans. We then turn to an examination of the pharmacology of teratogenic retinoids, focusing on structure-function relationships and pharmacokinetics. Finally, we review the current literature on the molecular mechanism of action of teratogenic doses of retinoids and the role of the retinoic acid receptors and other target genes in this process.
A138: =HYPERLINK("http://www.ncbi.nlm.nih.gov/pubmed/" & I138,I138) -> 7499738 | B138: =(LEN($J138) - LEN(SUBSTITUTE(LOWER($J138),LOWER(B$3),"")))/LEN(B$3) -> 4 | C138: =(LEN($J138) - LEN(SUBSTITUTE(LOWER($J138),LOWER(C$3),"")))/LEN(C$3) -> 2 | D138: =(LEN($J138) - LEN(SUBSTITUTE(LOWER($J138),LOWER(D$3),"")))/LEN(D$3) -> 0 | E138: =SUM(B138:D138) -> 6 | F138: 1995 | G138: [Isotretinoin (RoAccutane) embryopathy. A case report]. | H138: Pilorget | I138: 7499738 | J138: [Isotretinoin (RoAccutane) embryopathy. A case report]. Abstract: Retinoids are synthetic vitamin A derivatives, particularly used in dermatology. Their prescription in women of childbearing age can cause, if pregnancy occurs, a serious malformative embryopathy, mainly involving external ear, brain and heart. A neonatal case caused by isotretinoin (RoAccutane) emphasizes the clinical and epidemiological data concerning this embryopathy. The aetiopathological hypothesis of an interaction between isotretinoin and Hox genes is advanced. Prophylactic measures are difficult since neonatal reported cases are uncommon, but antenatal exposition to this strong teratogenic agent results in multiple spontaneous abortions or pregnancy interruptions.
A139: =HYPERLINK("http://www.ncbi.nlm.nih.gov/pubmed/" & I139,I139) -> 8058294 | B139: =(LEN($J139) - LEN(SUBSTITUTE(LOWER($J139),LOWER(B$3),"")))/LEN(B$3) -> 6 | C139: =(LEN($J139) - LEN(SUBSTITUTE(LOWER($J139),LOWER(C$3),"")))/LEN(C$3) -> 0 | D139: =(LEN($J139) - LEN(SUBSTITUTE(LOWER($J139),LOWER(D$3),"")))/LEN(D$3) -> 0 | E139: =SUM(B139:D139) -> 6 | F139: 1994 | G139: [Retinoids in the therapy of diseases of the hematopoietic system and malignant tumors]. | H139: Bán | I139: 8058294 | J139: [Retinoids in the therapy of diseases of the hematopoietic system and malignant tumors]. Abstract: The antitumor effect of different retinoids focused attention in the treatment of malignant disorders on different pathways. The therapeutic effect was proved in acute promyelocytic leukaemia, but was limited in juvenile form of chronic myeloid leukaemia and in acute myelomonocytic and monoblastic leukaemia. Combined with different leukostatics, long remission could be achieved. The most important therapeutic pathway is direct growth inhibition with and without cell differentiation. Clinically, retinoids are effective in tumours, like: cutan T-cell lymphoma, mycosis fungoides, Sézary syndrome, oral leukoplakia (prevention of head and neck cancer metastases), variant form of small lung cell carcinoma, oestrogen dependent breast-carcinoma and cervix-carcinoma. The most serious complication of the retinoids administration is the retinoic acid syndrome which is followed sometimes with thromboembolic events. Retinoids are teratogenic and hepatotoxic.
A140: =HYPERLINK("http://www.ncbi.nlm.nih.gov/pubmed/" & I140,I140) -> 7725952 | B140: =(LEN($J140) - LEN(SUBSTITUTE(LOWER($J140),LOWER(B$3),"")))/LEN(B$3) -> 6 | C140: =(LEN($J140) - LEN(SUBSTITUTE(LOWER($J140),LOWER(C$3),"")))/LEN(C$3) -> 0 | D140: =(LEN($J140) - LEN(SUBSTITUTE(LOWER($J140),LOWER(D$3),"")))/LEN(D$3) -> 0 | E140: =SUM(B140:D140) -> 6 | F140: 1994 | G140: Vitamin A, retinoids and breast cancer. | H140: Moon | I140: 7725952 | J140: Vitamin A, retinoids and breast cancer. Abstract: Both epidemiologic and experimental evidence are highly suggestive of an inverse relationship between vitamin A status and cancer induction. However, protection by vitamin A and retinoids has not been a universal finding, nor are the compounds equally effective in inhibiting cancer induction at all organ sites. Although the experimental evidence for a protective effect of retinoids is especially strong for mammary cancer, the epidemiologic evidence is less convincing. Chronic pharmacologic administration of retinoids may be limited by their potential toxicity; such potential toxicity is particularly important in light of the expectation that, in order to achieve effective anticarcinogenesis in a clinical setting, administration of retinoids may be required at relatively high doses for extended periods. Clinical trials to determine the efficacy of several retinoids as cancer preventive agents are only in the early stages. Meanwhile, experimentation to develop synthetic vitamin A analogs with increased activity, increased target organ specificity, and reduced toxicity must continue. The question of increasing anticarcinogenic activity by increasing vitamin A intake in populations whose vitamin A status is normal is more difficult to assess. The vast majority of epidemiologic studies indicate that groups with a relatively high intake of carotenoids are at a reduced risk for cancer in several target tissues. However, in populations whose vitamin A status is not deficient, increases in vitamin A and carotene intake are not well correlated with increases in serum vitamin A.(ABSTRACT TRUNCATED AT 250 WORDS)
A141: =HYPERLINK("http://www.ncbi.nlm.nih.gov/pubmed/" & I141,I141) -> 8382073 | B141: =(LEN($J141) - LEN(SUBSTITUTE(LOWER($J141),LOWER(B$3),"")))/LEN(B$3) -> 6 | C141: =(LEN($J141) - LEN(SUBSTITUTE(LOWER($J141),LOWER(C$3),"")))/LEN(C$3) -> 0 | D141: =(LEN($J141) - LEN(SUBSTITUTE(LOWER($J141),LOWER(D$3),"")))/LEN(D$3) -> 0 | E141: =SUM(B141:D141) -> 6 | F141: 1993 | G141: Breast cancer chemoprevention. | H141: Costa | I141: 8382073 | J141: Breast cancer chemoprevention. Abstract: Cancer chemoprevention is a new challenging issue for oncology. For breast cancer, different strategies for risk avoidance, chemopreventive measures and chemosuppressive interventions are being investigated. Attention is presently focused on two compounds, the synthetic retinoid fenretinide (4-HPR) and the antioestrogen tamoxifen, and their possible synergism. More data are now available on the expression and regulation of retinoic acid receptors in human breast cancer cells and on the consequences of the interaction of retinoids with plasma retinol binding protein. Mechanistic relationships between retinoids and growth factors like transforming growth factor-beta have been demonstrated in the frame of a central regulatory system of the state of differentiation and proliferation, in which tamoxifen is involved as well. Recent data from different trials using tamoxifen as adjuvant treatment have shown a decrease in the incidence of contralateral new primaries and that it could soon become unethical not to prescribe this drug to all node-negative oestrogen receptor-positive postmenopausal patients.
A142: =HYPERLINK("http://www.ncbi.nlm.nih.gov/pubmed/" & I142,I142) -> 8145203 | B142: =(LEN($J142) - LEN(SUBSTITUTE(LOWER($J142),LOWER(B$3),"")))/LEN(B$3) -> 3 | C142: =(LEN($J142) - LEN(SUBSTITUTE(LOWER($J142),LOWER(C$3),"")))/LEN(C$3) -> 2 | D142: =(LEN($J142) - LEN(SUBSTITUTE(LOWER($J142),LOWER(D$3),"")))/LEN(D$3) -> 1 | E142: =SUM(B142:D142) -> 6 | F142: 1993 | G142: Embryo-uterine interactions in pigs during week 2 of pregnancy. | H142: Roberts | I142: 8145203 | J142: Embryo-uterine interactions in pigs during week 2 of pregnancy. Abstract: The second week of pregnancy is a particularly critical period for embryonic survival in pigs. Within that time, conceptus oestrogen synthesis is initiated, spacing and final placement of conceptuses is completed, and the signal for extending the functional lifespan of the corpora lutea is received by the mother. There is also a marked increase in blood flow to the uterus and the uterine endometrium produces and secretes nutrient histotrophe. Conceptus-derived oestrogen has been implicated in many of these events. It is also during this period that the trophoblast elongates dramatically and the inner cell mass starts to differentiate into the embryo proper. Here, we critically review the evidence that oestrogen is the sole factor initiating long-term corpus luteum maintenance in pigs. We also review the functions and general properties of the major secretory proteins in histotrophe and the role of oestrogen in controlling their expression. It is now generally accepted that asynchrony within a litter underlies much of the losses of conceptuses that are otherwise genetically normal, but which are lagging in their development; however, the underlying mechanisms remain unclear. Here we hypothesize that oestrogenic compounds derived from more advanced conceptuses or provided prematurely, either by injection or in the diet, trigger a massive increase in uterine expression and secretion of retinol-binding protein laden with retinol. We propose that less developed, smaller conceptuses are least able to contend with the sudden exposure to this potential teratogen at a time when they are particularly susceptible to imbalance in retinol supply. Hence, even though their growth proceeds for a few days, their developmental potential is irrevocably compromised.
A143: =HYPERLINK("http://www.ncbi.nlm.nih.gov/pubmed/" & I143,I143) -> 3896699 | B143: =(LEN($J143) - LEN(SUBSTITUTE(LOWER($J143),LOWER(B$3),"")))/LEN(B$3) -> 6 | C143: =(LEN($J143) - LEN(SUBSTITUTE(LOWER($J143),LOWER(C$3),"")))/LEN(C$3) -> 0 | D143: =(LEN($J143) - LEN(SUBSTITUTE(LOWER($J143),LOWER(D$3),"")))/LEN(D$3) -> 0 | E143: =SUM(B143:D143) -> 6 | F143: 1985 | G143: Retinoids and mammary gland differentiation. | H143: Moon | I143: 3896699 | J143: Retinoids and mammary gland differentiation. Abstract: Certain retinoids serve as effective chemopreventive agents against breast cancer. The effective retinoids are also antiproliferative agents for the mammary gland both in vivo and in vitro. N-(4-hydroxyphenyl)retinamide (HPR) can inhibit the occurrence of hyperplastic alveolar nodules in C3H mice in vivo and 7,12-dimethylbenz[a]anthracene-induced nodule-like alveolar lesions in vitro. Moreover, HPR can also inhibit the phorbol ester-induced promotion of hyperplastic alveolar nodule development in vitro. HPR is metabolized by the mammary gland in vitro and one of the metabolites competes for the cytosolic retinoic acid-binding protein although the metabolite is not all-trans-retinoic acid.
